{"text_format":"1","workbook":"xlsx","n_sheets":4,"sheets":["Январь","Февраль","ТС","Сотрудники"],"not_rendered":{"charts":0,"images":0,"macros":1,"external_links":1,"defined_names":4,"comments":0,"pivot_tables":0},"unopened":[],"bounds":{"document_bytes":16777216,"sheet_cells":100000,"rows_first":2000,"rows_last":500,"rows_between":2000,"halvings":0,"cell_chars":16384,"cell_head_chars":4096},"cells_cut":0,"cells_raw":0,"read":"whole","date_system":"1900"}

{"sheet":"Январь","index":0,"n_rows":72,"n_cols":26,"rows_kept":72,"cut":false,"hidden":false,"merged":[[1,0,1,15],[2,0,2,15],[3,14,3,15]]}
[null,null,null,null,null,null,null,null,null,null,null,null,null,null,null,"Январь",null,null,null,null,null,null,null,"Экономия","Базовая норма расхода на 100 км","Базовая норма расхода на 1 мото/час"]
["Общество с ограниченной ответственностью  \"Втормет Царицыно\"",null,null,null,null,null,null,null,null,null,null,null,null,null,null,null,null,"1-я пол.","2018-01-01","2018-01-18",{"$f":"ТС!E5","v":350},{"$f":"SUMIFS(Январь[Выдано топливо, литр],Январь[Дата],\">=\"&$S$2,Январь[Дата],\"<=\"&$T$2)+IF(MONTH(T2)<>MONTH(S2),INDIRECT(TEXT(A7-1,\"ММММ\")&\"!F69\")-SUM(INDIRECT(TEXT(A7-1,\"ММММ\")&\"!V1:V2\")))+SUMIFS($U$7:$U$69,Январь[Дата],\">=\"&$S$2,Январь[Дата],\"<=\"&$T$2)+IF(MONTH(T2)<>MONTH(S2),INDIRECT(TEXT(A7-1,\"ММММ\")&\"!F69\")-SUM(INDIRECT(TEXT(A7-1,\"ММММ\")&\"!V1:V2\")))","v":2300},{"$f":"IF(V2=0,0,(SUMIFS($N$7:$N$69,$A$7:$A$69,\">=\"&$S$2,$A$7:$A$69,\"<=\"&$T$2))/(V2-U2+G7))","v":0.78913043478260858},{"$f":"SUMIFS(Январь[Отклонение от нормы (Перерасход(+), экономия(-)), литр],Январь[Дата],\">=\"&$S$2,Январь[Дата],\"<=\"&$T$2)","v":485},{"$f":"IF(Y4=\"Зима\",VLOOKUP(Z4,Расчет[[Номер гос.регистрации / Заводской номер]:[Итога норма а/м \"ЛЕТО\"]],8,FALSE),VLOOKUP(Z4,Расчет[[Номер гос.регистрации / Заводской номер]:[Итога норма а/м \"ЛЕТО\"]],9,FALSE))","v":0},{"$f":"IF(Y4=\"Зима\",VLOOKUP(Z4,Расчет[[Номер гос.регистрации / Заводской номер]:[Итога норма а/м \"ЛЕТО\"]],13,FALSE),VLOOKUP(Z4,Расчет[[Номер гос.регистрации / Заводской номер]:[Итога норма а/м \"ЛЕТО\"]],14,FALSE))","v":18.150000000000002}]
["Отчет водителя ломовоза с манипулятором",null,null,null,null,null,null,null,null,null,null,null,null,null,null,null,null,"2-я пол.",{"$f":"T2+1","v":"2018-01-19"},{"$f":"INDEX(Январь[Дата],COUNT(Январь[Дата]))","v":""},{"$f":"ТС!E6","v":350},{"$f":"SUMIFS(Январь[Выдано топливо, литр],Январь[Дата],\">=\"&$S$3,Январь[Дата],\"<=\"&$T$3)+IF(MONTH(T3)<>MONTH(S3),INDIRECT(TEXT(A7-1,\"ММММ\")&\"!F38\")-SUM(INDIRECT(TEXT(A7-1,\"ММММ\")&\"!V1:V2\")))+SUMIFS($U$7:$U$68,Январь[Дата],\">=\"&$S$3,Январь[Дата],\"<=\"&$T$3)+IF(MONTH(T3)<>MONTH(S3),INDIRECT(TEXT(A7-1,\"ММММ\")&\"!F38\")-SUM(INDIRECT(TEXT(A7-1,\"ММММ\")&\"!V1:V2\")))","v":{"$error":"#VALUE!"}},{"$f":"IF(V3=0,0,(SUMIFS($N$7:$N$69,$A$7:$A$69,\">=\"&$S$3,$A$7:$A$69,\"<=\"&$T$3))/(V3-U3+U3))","v":{"$error":"#VALUE!"}},{"$f":"SUMIFS(Январь[Отклонение от нормы (Перерасход(+), экономия(-)), литр],Январь[Дата],\">=\"&$S$3,Январь[Дата],\"<=\"&$T$3)","v":0}]
[null,null,null,null,null,null,null,"за",2018,null,null,null,null,null,"Фукс 350 c",null,null,null,{"$f":"IF(INDEX(Январь[Дата],COUNT(Январь[Дата]))=T3,\"\",T3+1)","v":""},null,null,null,{"$f":"IFERROR(IF(S4=\"\",\"\",INDIRECT(TEXT(A7+40,\"ММММ\")&\"!W2\")),)","v":""},null,"Зима","Норма 1"]
[]
["Дата","ФИО водителя","Показание одометра машины на начало дня, км","Показание одометра машины на конец дня, км","Пройдено за день, км","Выдано топливо, литр","Остаток топлива в баке на начало дня, литр","Показание счетчика моточасов спецоборудования на начало дня, м/ч","Показание счетчика моточасов  спецоборудования на конец дня, м/ч","Работа спецоборудования за день, м/ч","Количество ходок","Расход топлива на работу спецоборудования, литр","Остаток топлива в баке на конец дня, литр","Расход топлива по норме, литр","Фактический расход топлива, литр","Отклонение от нормы (Перерасход(+), экономия(-)), литр",null,"Дата","Обнуление одометра, км","Пройдено за день, км","Выдано топливо, литр","Обнуление счетчика моточасов спецоборудования, м/ч","Работа спецоборудования за день, м/ч","Расход топлива по норме, литр","Фактический расход топлива, литр","Дата"]
[{"$f":"IF(ISEVEN(ROW(A1)),IFERROR(--(ROW(A1)/2&P$1&I$4),\"\"),\"\")","v":""},null,{"$f":"ТС!C5","v":0},null,null,null,{"$f":"ТС!E5","v":350},{"$f":"ТС!D5","v":29170},29170,{"$f":"IF(W7=\"\",Январь[[#This Row],[Показание счетчика моточасов  спецоборудования на конец дня, м/ч]],Январь[[#This Row],[Показание счетчика моточасов  спецоборудования на конец дня, м/ч]]+1)-Январь[[#This Row],[Показание счетчика моточасов спецоборудования на начало дня, м/ч]]","v":0},null,{"$f":"IF(Январь[[#This Row],[Работа спецоборудования за день, м/ч]]=\"\",Январь[[#This Row],[Остаток топлива в баке на начало дня, литр]],Январь[[#This Row],[Работа спецоборудования за день, м/ч]]*$Z$2)","v":0},{"$f":"Январь[[#This Row],[Выдано топливо, литр]]+U7+Январь[[#This Row],[Остаток топлива в баке на начало дня, литр]]","v":350},{"$f":"IFERROR(ROUND((Январь[[#This Row],[Пройдено за день, км]]*0.01*$Y$2+Январь[[#This Row],[Расход топлива на работу спецоборудования, литр]]),3)+X7,)","v":0},{"$f":"IF(Январь[[#This Row],[Дата]]=\"\",\"\",IFERROR(ROUND(Январь[[#This Row],[Расход топлива по норме, литр]]/VLOOKUP(Январь[Дата],S$2:W$4,5),0)+Y7,))","v":""},{"$f":"IFERROR(Январь[[#This Row],[Фактический расход топлива, литр]]-Январь[[#This Row],[Расход топлива по норме, литр]],\"\")","v":""},null,{"$f":"Январь[[#This Row],[Дата]]","v":""},null,null,null,null,null,null,null,{"$f":"Январь[[#This Row],[Дата]]","v":""}]
[{"$f":"IF(ISEVEN(ROW(A2)),IFERROR(--(ROW(A2)/2&P$1&I$4),\"\"),\"\")","v":"2018-01-01"},null,null,null,null,null,{"$f":"M7","v":350},{"$f":"I7","v":29170},29170,{"$f":"IF(W8=\"\",Январь[[#This Row],[Показание счетчика моточасов  спецоборудования на конец дня, м/ч]],Январь[[#This Row],[Показание счетчика моточасов  спецоборудования на конец дня, м/ч]]+1)-Январь[[#This Row],[Показание счетчика моточасов спецоборудования на начало дня, м/ч]]","v":0},null,{"$f":"IF(Январь[[#This Row],[Работа спецоборудования за день, м/ч]]=\"\",Январь[[#This Row],[Остаток топлива в баке на начало дня, литр]],Январь[[#This Row],[Работа спецоборудования за день, м/ч]]*$Z$2)","v":0},{"$f":"Январь[[#This Row],[Выдано топливо, литр]]+U8+Январь[[#This Row],[Остаток топлива в баке на начало дня, литр]]","v":350},{"$f":"IFERROR(ROUND((Январь[[#This Row],[Пройдено за день, км]]*0.01*$Y$2+Январь[[#This Row],[Расход топлива на работу спецоборудования, литр]]),3)+X8,)","v":0},{"$f":"IF(Январь[[#This Row],[Дата]]=\"\",\"\",IFERROR(ROUND(Январь[[#This Row],[Расход топлива по норме, литр]]/VLOOKUP(Январь[Дата],S$2:W$4,5),0)+Y8,))","v":0},{"$f":"IFERROR(Январь[[#This Row],[Фактический расход топлива, литр]]-Январь[[#This Row],[Расход топлива по норме, литр]],\"\")","v":0},null,{"$f":"Январь[[#This Row],[Дата]]","v":"2018-01-01"},null,null,null,null,null,null,null,{"$f":"Январь[[#This Row],[Дата]]","v":"2018-01-01"}]
[{"$f":"IF(ISEVEN(ROW(A3)),IFERROR(--(ROW(A3)/2&P$1&I$4),\"\"),\"\")","v":""},null,{"$f":"IFERROR(IF(INDIRECT(TEXT(A6,\"ММММ\")&\"!A7:A37\")=\"\",\"\",IF(S6=\"\",D6,S6)),\"\")","v":""},null,null,null,{"$f":"M8","v":350},{"$f":"I8","v":29170},29170,{"$f":"IF(W9=\"\",Январь[[#This Row],[Показание счетчика моточасов  спецоборудования на конец дня, м/ч]],Январь[[#This Row],[Показание счетчика моточасов  спецоборудования на конец дня, м/ч]]+1)-Январь[[#This Row],[Показание счетчика моточасов спецоборудования на начало дня, м/ч]]","v":0},null,{"$f":"IF(Январь[[#This Row],[Работа спецоборудования за день, м/ч]]=\"\",Январь[[#This Row],[Остаток топлива в баке на начало дня, литр]],Январь[[#This Row],[Работа спецоборудования за день, м/ч]]*$Z$2)","v":0},{"$f":"Январь[[#This Row],[Выдано топливо, литр]]+U9+Январь[[#This Row],[Остаток топлива в баке на начало дня, литр]]","v":350},{"$f":"IFERROR(ROUND((Январь[[#This Row],[Пройдено за день, км]]*0.01*$Y$2+Январь[[#This Row],[Расход топлива на работу спецоборудования, литр]]),3)+X9,)","v":0},{"$f":"IF(Январь[[#This Row],[Дата]]=\"\",\"\",IFERROR(ROUND(Январь[[#This Row],[Расход топлива по норме, литр]]/VLOOKUP(Январь[Дата],S$2:W$4,5),0)+Y9,))","v":""},{"$f":"IFERROR(Январь[[#This Row],[Фактический расход топлива, литр]]-Январь[[#This Row],[Расход топлива по норме, литр]],\"\")","v":""},null,{"$f":"Январь[[#This Row],[Дата]]","v":""},null,null,null,null,null,null,null,{"$f":"Январь[[#This Row],[Дата]]","v":""}]
["2018-01-02",null,"",null,null,null,350,29170,29170,{"$f":"IF(W10=\"\",Январь[[#This Row],[Показание счетчика моточасов  спецоборудования на конец дня, м/ч]],Январь[[#This Row],[Показание счетчика моточасов  спецоборудования на конец дня, м/ч]]+1)-Январь[[#This Row],[Показание счетчика моточасов спецоборудования на начало дня, м/ч]]","v":0},null,{"$f":"IF(Январь[[#This Row],[Работа спецоборудования за день, м/ч]]=\"\",Январь[[#This Row],[Остаток топлива в баке на начало дня, литр]],Январь[[#This Row],[Работа спецоборудования за день, м/ч]]*$Z$2)","v":0},{"$f":"Январь[[#This Row],[Выдано топливо, литр]]+U10+Январь[[#This Row],[Остаток топлива в баке на начало дня, литр]]","v":350},{"$f":"IFERROR(ROUND((Январь[[#This Row],[Пройдено за день, км]]*0.01*$Y$2+Январь[[#This Row],[Расход топлива на работу спецоборудования, литр]]),3)+X10,)","v":0},{"$f":"IF(Январь[[#This Row],[Дата]]=\"\",\"\",IFERROR(ROUND(Январь[[#This Row],[Расход топлива по норме, литр]]/VLOOKUP(Январь[Дата],S$2:W$4,5),0)+Y10,))","v":0},{"$f":"IFERROR(Январь[[#This Row],[Фактический расход топлива, литр]]-Январь[[#This Row],[Расход топлива по норме, литр]],\"\")","v":0},null,{"$f":"Январь[[#This Row],[Дата]]","v":"2018-01-02"},null,null,null,null,null,null,null,{"$f":"Январь[[#This Row],[Дата]]","v":"2018-01-02"}]
["",null,"",null,null,null,350,29170,29170,{"$f":"IF(W11=\"\",Январь[[#This Row],[Показание счетчика моточасов  спецоборудования на конец дня, м/ч]],Январь[[#This Row],[Показание счетчика моточасов  спецоборудования на конец дня, м/ч]]+1)-Январь[[#This Row],[Показание счетчика моточасов спецоборудования на начало дня, м/ч]]","v":0},null,{"$f":"IF(Январь[[#This Row],[Работа спецоборудования за день, м/ч]]=\"\",Январь[[#This Row],[Остаток топлива в баке на начало дня, литр]],Январь[[#This Row],[Работа спецоборудования за день, м/ч]]*$Z$2)","v":0},{"$f":"Январь[[#This Row],[Выдано топливо, литр]]+U11+Январь[[#This Row],[Остаток топлива в баке на начало дня, литр]]","v":350},{"$f":"IFERROR(ROUND((Январь[[#This Row],[Пройдено за день, км]]*0.01*$Y$2+Январь[[#This Row],[Расход топлива на работу спецоборудования, литр]]),3)+X11,)","v":0},{"$f":"IF(Январь[[#This Row],[Дата]]=\"\",\"\",IFERROR(ROUND(Январь[[#This Row],[Расход топлива по норме, литр]]/VLOOKUP(Январь[Дата],S$2:W$4,5),0)+Y11,))","v":""},{"$f":"IFERROR(Январь[[#This Row],[Фактический расход топлива, литр]]-Январь[[#This Row],[Расход топлива по норме, литр]],\"\")","v":""},null,{"$f":"Январь[[#This Row],[Дата]]","v":""},null,null,null,null,null,null,null,{"$f":"Январь[[#This Row],[Дата]]","v":""}]
["2018-01-03",null,"",null,null,null,350,29170,29170,{"$f":"IF(W12=\"\",Январь[[#This Row],[Показание счетчика моточасов  спецоборудования на конец дня, м/ч]],Январь[[#This Row],[Показание счетчика моточасов  спецоборудования на конец дня, м/ч]]+1)-Январь[[#This Row],[Показание счетчика моточасов спецоборудования на начало дня, м/ч]]","v":0},null,{"$f":"IF(Январь[[#This Row],[Работа спецоборудования за день, м/ч]]=\"\",Январь[[#This Row],[Остаток топлива в баке на начало дня, литр]],Январь[[#This Row],[Работа спецоборудования за день, м/ч]]*$Z$2)","v":0},{"$f":"Январь[[#This Row],[Выдано топливо, литр]]+U12+Январь[[#This Row],[Остаток топлива в баке на начало дня, литр]]","v":350},{"$f":"IFERROR(ROUND((Январь[[#This Row],[Пройдено за день, км]]*0.01*$Y$2+Январь[[#This Row],[Расход топлива на работу спецоборудования, литр]]),3)+X12,)","v":0},{"$f":"IF(Январь[[#This Row],[Дата]]=\"\",\"\",IFERROR(ROUND(Январь[[#This Row],[Расход топлива по норме, литр]]/VLOOKUP(Январь[Дата],S$2:W$4,5),0)+Y12,))","v":0},{"$f":"IFERROR(Январь[[#This Row],[Фактический расход топлива, литр]]-Январь[[#This Row],[Расход топлива по норме, литр]],\"\")","v":0},null,{"$f":"Январь[[#This Row],[Дата]]","v":"2018-01-03"},null,null,null,null,null,null,null,{"$f":"Январь[[#This Row],[Дата]]","v":"2018-01-03"}]
["",null,"",null,null,null,350,29170,29170,{"$f":"IF(W13=\"\",Январь[[#This Row],[Показание счетчика моточасов  спецоборудования на конец дня, м/ч]],Январь[[#This Row],[Показание счетчика моточасов  спецоборудования на конец дня, м/ч]]+1)-Январь[[#This Row],[Показание счетчика моточасов спецоборудования на начало дня, м/ч]]","v":0},null,{"$f":"IF(Январь[[#This Row],[Работа спецоборудования за день, м/ч]]=\"\",Январь[[#This Row],[Остаток топлива в баке на начало дня, литр]],Январь[[#This Row],[Работа спецоборудования за день, м/ч]]*$Z$2)","v":0},{"$f":"Январь[[#This Row],[Выдано топливо, литр]]+U13+Январь[[#This Row],[Остаток топлива в баке на начало дня, литр]]","v":350},{"$f":"IFERROR(ROUND((Январь[[#This Row],[Пройдено за день, км]]*0.01*$Y$2+Январь[[#This Row],[Расход топлива на работу спецоборудования, литр]]),3)+X13,)","v":0},{"$f":"IF(Январь[[#This Row],[Дата]]=\"\",\"\",IFERROR(ROUND(Январь[[#This Row],[Расход топлива по норме, литр]]/VLOOKUP(Январь[Дата],S$2:W$4,5),0)+Y13,))","v":""},{"$f":"IFERROR(Январь[[#This Row],[Фактический расход топлива, литр]]-Январь[[#This Row],[Расход топлива по норме, литр]],\"\")","v":""},null,{"$f":"Январь[[#This Row],[Дата]]","v":""},null,null,null,null,null,null,null,{"$f":"Январь[[#This Row],[Дата]]","v":""}]
["2018-01-04",null,"",null,null,null,350,29170,29170,{"$f":"IF(W14=\"\",Январь[[#This Row],[Показание счетчика моточасов  спецоборудования на конец дня, м/ч]],Январь[[#This Row],[Показание счетчика моточасов  спецоборудования на конец дня, м/ч]]+1)-Январь[[#This Row],[Показание счетчика моточасов спецоборудования на начало дня, м/ч]]","v":0},null,{"$f":"IF(Январь[[#This Row],[Работа спецоборудования за день, м/ч]]=\"\",Январь[[#This Row],[Остаток топлива в баке на начало дня, литр]],Январь[[#This Row],[Работа спецоборудования за день, м/ч]]*$Z$2)","v":0},{"$f":"Январь[[#This Row],[Выдано топливо, литр]]+U14+Январь[[#This Row],[Остаток топлива в баке на начало дня, литр]]","v":350},{"$f":"IFERROR(ROUND((Январь[[#This Row],[Пройдено за день, км]]*0.01*$Y$2+Январь[[#This Row],[Расход топлива на работу спецоборудования, литр]]),3)+X14,)","v":0},{"$f":"IF(Январь[[#This Row],[Дата]]=\"\",\"\",IFERROR(ROUND(Январь[[#This Row],[Расход топлива по норме, литр]]/VLOOKUP(Январь[Дата],S$2:W$4,5),0)+Y14,))","v":0},{"$f":"IFERROR(Январь[[#This Row],[Фактический расход топлива, литр]]-Январь[[#This Row],[Расход топлива по норме, литр]],\"\")","v":0},null,{"$f":"Январь[[#This Row],[Дата]]","v":"2018-01-04"},null,null,null,null,null,null,null,{"$f":"Январь[[#This Row],[Дата]]","v":"2018-01-04"}]
["",null,{"$f":"IFERROR(IF(INDIRECT(TEXT(A12,\"ММММ\")&\"!A7:A37\")=\"\",\"\",IF(S12=\"\",D12,S12)),\"\")","v":""},null,null,null,350,29170,29170,{"$f":"IF(W15=\"\",Январь[[#This Row],[Показание счетчика моточасов  спецоборудования на конец дня, м/ч]],Январь[[#This Row],[Показание счетчика моточасов  спецоборудования на конец дня, м/ч]]+1)-Январь[[#This Row],[Показание счетчика моточасов спецоборудования на начало дня, м/ч]]","v":0},null,{"$f":"IF(Январь[[#This Row],[Работа спецоборудования за день, м/ч]]=\"\",Январь[[#This Row],[Остаток топлива в баке на начало дня, литр]],Январь[[#This Row],[Работа спецоборудования за день, м/ч]]*$Z$2)","v":0},{"$f":"Январь[[#This Row],[Выдано топливо, литр]]+U15+Январь[[#This Row],[Остаток топлива в баке на начало дня, литр]]","v":350},{"$f":"IFERROR(ROUND((Январь[[#This Row],[Пройдено за день, км]]*0.01*$Y$2+Январь[[#This Row],[Расход топлива на работу спецоборудования, литр]]),3)+X15,)","v":0},{"$f":"IF(Январь[[#This Row],[Дата]]=\"\",\"\",IFERROR(ROUND(Январь[[#This Row],[Расход топлива по норме, литр]]/VLOOKUP(Январь[Дата],S$2:W$4,5),0)+Y15,))","v":""},{"$f":"IFERROR(Январь[[#This Row],[Фактический расход топлива, литр]]-Январь[[#This Row],[Расход топлива по норме, литр]],\"\")","v":""},null,{"$f":"Январь[[#This Row],[Дата]]","v":""},null,null,null,null,null,null,null,{"$f":"Январь[[#This Row],[Дата]]","v":""}]
["2018-01-05",null,{"$f":"IFERROR(IF(INDIRECT(TEXT(A15,\"ММММ\")&\"!A7:A37\")=\"\",\"\",IF(S15=\"\",D15,S15)),\"\")","v":""},null,null,null,350,29170,29179,{"$f":"IF(W16=\"\",Январь[[#This Row],[Показание счетчика моточасов  спецоборудования на конец дня, м/ч]],Январь[[#This Row],[Показание счетчика моточасов  спецоборудования на конец дня, м/ч]]+1)-Январь[[#This Row],[Показание счетчика моточасов спецоборудования на начало дня, м/ч]]","v":9},null,{"$f":"IF(Январь[[#This Row],[Работа спецоборудования за день, м/ч]]=\"\",Январь[[#This Row],[Остаток топлива в баке на начало дня, литр]],Январь[[#This Row],[Работа спецоборудования за день, м/ч]]*$Z$2)","v":163.35000000000002},{"$f":"Январь[[#This Row],[Выдано топливо, литр]]+U16+Январь[[#This Row],[Остаток топлива в баке на начало дня, литр]]","v":350},{"$f":"IFERROR(ROUND((Январь[[#This Row],[Пройдено за день, км]]*0.01*$Y$2+Январь[[#This Row],[Расход топлива на работу спецоборудования, литр]]),3)+X16,)","v":163.35},{"$f":"IF(Январь[[#This Row],[Дата]]=\"\",\"\",IFERROR(ROUND(Январь[[#This Row],[Расход топлива по норме, литр]]/VLOOKUP(Январь[Дата],S$2:W$4,5),0)+Y16,))","v":207},{"$f":"IFERROR(Январь[[#This Row],[Фактический расход топлива, литр]]-Январь[[#This Row],[Расход топлива по норме, литр]],\"\")","v":43.650000000000006},null,{"$f":"Январь[[#This Row],[Дата]]","v":"2018-01-05"},null,null,null,null,null,null,null,{"$f":"Январь[[#This Row],[Дата]]","v":"2018-01-05"}]
["",null,"",null,null,null,350,29179,29189,{"$f":"IF(W17=\"\",Январь[[#This Row],[Показание счетчика моточасов  спецоборудования на конец дня, м/ч]],Январь[[#This Row],[Показание счетчика моточасов  спецоборудования на конец дня, м/ч]]+1)-Январь[[#This Row],[Показание счетчика моточасов спецоборудования на начало дня, м/ч]]","v":10},null,{"$f":"IF(Январь[[#This Row],[Работа спецоборудования за день, м/ч]]=\"\",Январь[[#This Row],[Остаток топлива в баке на начало дня, литр]],Январь[[#This Row],[Работа спецоборудования за день, м/ч]]*$Z$2)","v":181.50000000000003},{"$f":"Январь[[#This Row],[Выдано топливо, литр]]+U17+Январь[[#This Row],[Остаток топлива в баке на начало дня, литр]]","v":350},{"$f":"IFERROR(ROUND((Январь[[#This Row],[Пройдено за день, км]]*0.01*$Y$2+Январь[[#This Row],[Расход топлива на работу спецоборудования, литр]]),3)+X17,)","v":181.5},{"$f":"IF(Январь[[#This Row],[Дата]]=\"\",\"\",IFERROR(ROUND(Январь[[#This Row],[Расход топлива по норме, литр]]/VLOOKUP(Январь[Дата],S$2:W$4,5),0)+Y17,))","v":""},{"$f":"IFERROR(Январь[[#This Row],[Фактический расход топлива, литр]]-Январь[[#This Row],[Расход топлива по норме, литр]],\"\")","v":""},null,{"$f":"Январь[[#This Row],[Дата]]","v":""},null,null,null,null,null,null,null,{"$f":"Январь[[#This Row],[Дата]]","v":""}]
["2018-01-06",null,null,null,null,null,350,29189,29189,{"$f":"IF(W18=\"\",Январь[[#This Row],[Показание счетчика моточасов  спецоборудования на конец дня, м/ч]],Январь[[#This Row],[Показание счетчика моточасов  спецоборудования на конец дня, м/ч]]+1)-Январь[[#This Row],[Показание счетчика моточасов спецоборудования на начало дня, м/ч]]","v":0},null,{"$f":"IF(Январь[[#This Row],[Работа спецоборудования за день, м/ч]]=\"\",Январь[[#This Row],[Остаток топлива в баке на начало дня, литр]],Январь[[#This Row],[Работа спецоборудования за день, м/ч]]*$Z$2)","v":0},{"$f":"Январь[[#This Row],[Выдано топливо, литр]]+U18+Январь[[#This Row],[Остаток топлива в баке на начало дня, литр]]","v":500},{"$f":"IFERROR(ROUND((Январь[[#This Row],[Пройдено за день, км]]*0.01*$Y$2+Январь[[#This Row],[Расход топлива на работу спецоборудования, литр]]),3)+X18,)","v":0},{"$f":"IF(Январь[[#This Row],[Дата]]=\"\",\"\",IFERROR(ROUND(Январь[[#This Row],[Расход топлива по норме, литр]]/VLOOKUP(Январь[Дата],S$2:W$4,5),0)+Y18,))","v":0},{"$f":"IFERROR(Январь[[#This Row],[Фактический расход топлива, литр]]-Январь[[#This Row],[Расход топлива по норме, литр]],\"\")","v":0},null,{"$f":"Январь[[#This Row],[Дата]]","v":"2018-01-06"},null,null,150,null,null,null,null,{"$f":"Январь[[#This Row],[Дата]]","v":"2018-01-06"}]
["",null,{"$f":"IFERROR(IF(INDIRECT(TEXT(A17,\"ММММ\")&\"!A7:A37\")=\"\",\"\",IF(S17=\"\",D17,S17)),\"\")","v":""},null,null,null,500,29189,29189,{"$f":"IF(W19=\"\",Январь[[#This Row],[Показание счетчика моточасов  спецоборудования на конец дня, м/ч]],Январь[[#This Row],[Показание счетчика моточасов  спецоборудования на конец дня, м/ч]]+1)-Январь[[#This Row],[Показание счетчика моточасов спецоборудования на начало дня, м/ч]]","v":0},null,{"$f":"IF(Январь[[#This Row],[Работа спецоборудования за день, м/ч]]=\"\",Январь[[#This Row],[Остаток топлива в баке на начало дня, литр]],Январь[[#This Row],[Работа спецоборудования за день, м/ч]]*$Z$2)","v":0},{"$f":"Январь[[#This Row],[Выдано топливо, литр]]+U19+Январь[[#This Row],[Остаток топлива в баке на начало дня, литр]]","v":500},{"$f":"IFERROR(ROUND((Январь[[#This Row],[Пройдено за день, км]]*0.01*$Y$2+Январь[[#This Row],[Расход топлива на работу спецоборудования, литр]]),3)+X19,)","v":0},{"$f":"IF(Январь[[#This Row],[Дата]]=\"\",\"\",IFERROR(ROUND(Январь[[#This Row],[Расход топлива по норме, литр]]/VLOOKUP(Январь[Дата],S$2:W$4,5),0)+Y19,))","v":""},{"$f":"IFERROR(Январь[[#This Row],[Фактический расход топлива, литр]]-Январь[[#This Row],[Расход топлива по норме, литр]],\"\")","v":""},null,{"$f":"Январь[[#This Row],[Дата]]","v":""},null,null,null,null,null,null,null,{"$f":"Январь[[#This Row],[Дата]]","v":""}]
["2018-01-07",null,"",null,null,null,500,29189,29189,{"$f":"IF(W20=\"\",Январь[[#This Row],[Показание счетчика моточасов  спецоборудования на конец дня, м/ч]],Январь[[#This Row],[Показание счетчика моточасов  спецоборудования на конец дня, м/ч]]+1)-Январь[[#This Row],[Показание счетчика моточасов спецоборудования на начало дня, м/ч]]","v":0},null,{"$f":"IF(Январь[[#This Row],[Работа спецоборудования за день, м/ч]]=\"\",Январь[[#This Row],[Остаток топлива в баке на начало дня, литр]],Январь[[#This Row],[Работа спецоборудования за день, м/ч]]*$Z$2)","v":0},{"$f":"Январь[[#This Row],[Выдано топливо, литр]]+U20+Январь[[#This Row],[Остаток топлива в баке на начало дня, литр]]","v":500},{"$f":"IFERROR(ROUND((Январь[[#This Row],[Пройдено за день, км]]*0.01*$Y$2+Январь[[#This Row],[Расход топлива на работу спецоборудования, литр]]),3)+X20,)","v":0},{"$f":"IF(Январь[[#This Row],[Дата]]=\"\",\"\",IFERROR(ROUND(Январь[[#This Row],[Расход топлива по норме, литр]]/VLOOKUP(Январь[Дата],S$2:W$4,5),0)+Y20,))","v":0},{"$f":"IFERROR(Январь[[#This Row],[Фактический расход топлива, литр]]-Январь[[#This Row],[Расход топлива по норме, литр]],\"\")","v":0},null,{"$f":"Январь[[#This Row],[Дата]]","v":"2018-01-07"},null,null,null,null,null,null,null,{"$f":"Январь[[#This Row],[Дата]]","v":"2018-01-07"}]
["",null,"",null,null,null,500,29189,29189,{"$f":"IF(W21=\"\",Январь[[#This Row],[Показание счетчика моточасов  спецоборудования на конец дня, м/ч]],Январь[[#This Row],[Показание счетчика моточасов  спецоборудования на конец дня, м/ч]]+1)-Январь[[#This Row],[Показание счетчика моточасов спецоборудования на начало дня, м/ч]]","v":0},null,{"$f":"IF(Январь[[#This Row],[Работа спецоборудования за день, м/ч]]=\"\",Январь[[#This Row],[Остаток топлива в баке на начало дня, литр]],Январь[[#This Row],[Работа спецоборудования за день, м/ч]]*$Z$2)","v":0},{"$f":"Январь[[#This Row],[Выдано топливо, литр]]+U21+Январь[[#This Row],[Остаток топлива в баке на начало дня, литр]]","v":500},{"$f":"IFERROR(ROUND((Январь[[#This Row],[Пройдено за день, км]]*0.01*$Y$2+Январь[[#This Row],[Расход топлива на работу спецоборудования, литр]]),3)+X21,)","v":0},{"$f":"IF(Январь[[#This Row],[Дата]]=\"\",\"\",IFERROR(ROUND(Январь[[#This Row],[Расход топлива по норме, литр]]/VLOOKUP(Январь[Дата],S$2:W$4,5),0)+Y21,))","v":""},{"$f":"IFERROR(Январь[[#This Row],[Фактический расход топлива, литр]]-Январь[[#This Row],[Расход топлива по норме, литр]],\"\")","v":""},null,{"$f":"Январь[[#This Row],[Дата]]","v":""},null,null,null,null,null,null,null,{"$f":"Январь[[#This Row],[Дата]]","v":""}]
["2018-01-08",null,"",null,null,null,500,29189,29189,{"$f":"IF(W22=\"\",Январь[[#This Row],[Показание счетчика моточасов  спецоборудования на конец дня, м/ч]],Январь[[#This Row],[Показание счетчика моточасов  спецоборудования на конец дня, м/ч]]+1)-Январь[[#This Row],[Показание счетчика моточасов спецоборудования на начало дня, м/ч]]","v":0},null,{"$f":"IF(Январь[[#This Row],[Работа спецоборудования за день, м/ч]]=\"\",Январь[[#This Row],[Остаток топлива в баке на начало дня, литр]],Январь[[#This Row],[Работа спецоборудования за день, м/ч]]*$Z$2)","v":0},{"$f":"Январь[[#This Row],[Выдано топливо, литр]]+U22+Январь[[#This Row],[Остаток топлива в баке на начало дня, литр]]","v":700},{"$f":"IFERROR(ROUND((Январь[[#This Row],[Пройдено за день, км]]*0.01*$Y$2+Январь[[#This Row],[Расход топлива на работу спецоборудования, литр]]),3)+X22,)","v":0},{"$f":"IF(Январь[[#This Row],[Дата]]=\"\",\"\",IFERROR(ROUND(Январь[[#This Row],[Расход топлива по норме, литр]]/VLOOKUP(Январь[Дата],S$2:W$4,5),0)+Y22,))","v":0},{"$f":"IFERROR(Январь[[#This Row],[Фактический расход топлива, литр]]-Январь[[#This Row],[Расход топлива по норме, литр]],\"\")","v":0},null,{"$f":"Январь[[#This Row],[Дата]]","v":"2018-01-08"},null,null,200,null,null,null,null,{"$f":"Январь[[#This Row],[Дата]]","v":"2018-01-08"}]
["",null,"",null,null,null,700,29189,29189,{"$f":"IF(W23=\"\",Январь[[#This Row],[Показание счетчика моточасов  спецоборудования на конец дня, м/ч]],Январь[[#This Row],[Показание счетчика моточасов  спецоборудования на конец дня, м/ч]]+1)-Январь[[#This Row],[Показание счетчика моточасов спецоборудования на начало дня, м/ч]]","v":0},null,{"$f":"IF(Январь[[#This Row],[Работа спецоборудования за день, м/ч]]=\"\",Январь[[#This Row],[Остаток топлива в баке на начало дня, литр]],Январь[[#This Row],[Работа спецоборудования за день, м/ч]]*$Z$2)","v":0},{"$f":"Январь[[#This Row],[Выдано топливо, литр]]+U23+Январь[[#This Row],[Остаток топлива в баке на начало дня, литр]]","v":700},{"$f":"IFERROR(ROUND((Январь[[#This Row],[Пройдено за день, км]]*0.01*$Y$2+Январь[[#This Row],[Расход топлива на работу спецоборудования, литр]]),3)+X23,)","v":0},{"$f":"IF(Январь[[#This Row],[Дата]]=\"\",\"\",IFERROR(ROUND(Январь[[#This Row],[Расход топлива по норме, литр]]/VLOOKUP(Январь[Дата],S$2:W$4,5),0)+Y23,))","v":""},{"$f":"IFERROR(Январь[[#This Row],[Фактический расход топлива, литр]]-Январь[[#This Row],[Расход топлива по норме, литр]],\"\")","v":""},null,{"$f":"Январь[[#This Row],[Дата]]","v":""},null,null,null,null,null,null,null,{"$f":"Январь[[#This Row],[Дата]]","v":""}]
["2018-01-09",null,"",null,null,null,700,29189,29199,{"$f":"IF(W24=\"\",Январь[[#This Row],[Показание счетчика моточасов  спецоборудования на конец дня, м/ч]],Январь[[#This Row],[Показание счетчика моточасов  спецоборудования на конец дня, м/ч]]+1)-Январь[[#This Row],[Показание счетчика моточасов спецоборудования на начало дня, м/ч]]","v":10},null,{"$f":"IF(Январь[[#This Row],[Работа спецоборудования за день, м/ч]]=\"\",Январь[[#This Row],[Остаток топлива в баке на начало дня, литр]],Январь[[#This Row],[Работа спецоборудования за день, м/ч]]*$Z$2)","v":181.50000000000003},{"$f":"Январь[[#This Row],[Выдано топливо, литр]]+U24+Январь[[#This Row],[Остаток топлива в баке на начало дня, литр]]","v":900},{"$f":"IFERROR(ROUND((Январь[[#This Row],[Пройдено за день, км]]*0.01*$Y$2+Январь[[#This Row],[Расход топлива на работу спецоборудования, литр]]),3)+X24,)","v":181.5},{"$f":"IF(Январь[[#This Row],[Дата]]=\"\",\"\",IFERROR(ROUND(Январь[[#This Row],[Расход топлива по норме, литр]]/VLOOKUP(Январь[Дата],S$2:W$4,5),0)+Y24,))","v":230},{"$f":"IFERROR(Январь[[#This Row],[Фактический расход топлива, литр]]-Январь[[#This Row],[Расход топлива по норме, литр]],\"\")","v":48.5},null,{"$f":"Январь[[#This Row],[Дата]]","v":"2018-01-09"},null,null,200,null,null,null,null,{"$f":"Январь[[#This Row],[Дата]]","v":"2018-01-09"}]
["",null,"",null,null,null,900,29199,29199,{"$f":"IF(W25=\"\",Январь[[#This Row],[Показание счетчика моточасов  спецоборудования на конец дня, м/ч]],Январь[[#This Row],[Показание счетчика моточасов  спецоборудования на конец дня, м/ч]]+1)-Январь[[#This Row],[Показание счетчика моточасов спецоборудования на начало дня, м/ч]]","v":0},null,{"$f":"IF(Январь[[#This Row],[Работа спецоборудования за день, м/ч]]=\"\",Январь[[#This Row],[Остаток топлива в баке на начало дня, литр]],Январь[[#This Row],[Работа спецоборудования за день, м/ч]]*$Z$2)","v":0},{"$f":"Январь[[#This Row],[Выдано топливо, литр]]+U25+Январь[[#This Row],[Остаток топлива в баке на начало дня, литр]]","v":900},{"$f":"IFERROR(ROUND((Январь[[#This Row],[Пройдено за день, км]]*0.01*$Y$2+Январь[[#This Row],[Расход топлива на работу спецоборудования, литр]]),3)+X25,)","v":0},{"$f":"IF(Январь[[#This Row],[Дата]]=\"\",\"\",IFERROR(ROUND(Январь[[#This Row],[Расход топлива по норме, литр]]/VLOOKUP(Январь[Дата],S$2:W$4,5),0)+Y25,))","v":""},{"$f":"IFERROR(Январь[[#This Row],[Фактический расход топлива, литр]]-Январь[[#This Row],[Расход топлива по норме, литр]],\"\")","v":""},null,{"$f":"Январь[[#This Row],[Дата]]","v":""},null,null,null,null,null,null,null,{"$f":"Январь[[#This Row],[Дата]]","v":""}]
["2018-01-10",null,null,null,null,null,900,29199,29210,{"$f":"IF(W26=\"\",Январь[[#This Row],[Показание счетчика моточасов  спецоборудования на конец дня, м/ч]],Январь[[#This Row],[Показание счетчика моточасов  спецоборудования на конец дня, м/ч]]+1)-Январь[[#This Row],[Показание счетчика моточасов спецоборудования на начало дня, м/ч]]","v":11},null,{"$f":"IF(Январь[[#This Row],[Работа спецоборудования за день, м/ч]]=\"\",Январь[[#This Row],[Остаток топлива в баке на начало дня, литр]],Январь[[#This Row],[Работа спецоборудования за день, м/ч]]*$Z$2)","v":199.65000000000003},{"$f":"Январь[[#This Row],[Выдано топливо, литр]]+U26+Январь[[#This Row],[Остаток топлива в баке на начало дня, литр]]","v":1200},{"$f":"IFERROR(ROUND((Январь[[#This Row],[Пройдено за день, км]]*0.01*$Y$2+Январь[[#This Row],[Расход топлива на работу спецоборудования, литр]]),3)+X26,)","v":199.65},{"$f":"IF(Январь[[#This Row],[Дата]]=\"\",\"\",IFERROR(ROUND(Январь[[#This Row],[Расход топлива по норме, литр]]/VLOOKUP(Январь[Дата],S$2:W$4,5),0)+Y26,))","v":253},{"$f":"IFERROR(Январь[[#This Row],[Фактический расход топлива, литр]]-Январь[[#This Row],[Расход топлива по норме, литр]],\"\")","v":53.349999999999994},null,{"$f":"Январь[[#This Row],[Дата]]","v":"2018-01-10"},null,null,300,null,null,null,null,{"$f":"Январь[[#This Row],[Дата]]","v":"2018-01-10"}]
["",null,{"$f":"IFERROR(IF(INDIRECT(TEXT(A25,\"ММММ\")&\"!A7:A37\")=\"\",\"\",IF(S25=\"\",D25,S25)),\"\")","v":""},null,null,null,1200,29210,29210,{"$f":"IF(W27=\"\",Январь[[#This Row],[Показание счетчика моточасов  спецоборудования на конец дня, м/ч]],Январь[[#This Row],[Показание счетчика моточасов  спецоборудования на конец дня, м/ч]]+1)-Январь[[#This Row],[Показание счетчика моточасов спецоборудования на начало дня, м/ч]]","v":0},null,{"$f":"IF(Январь[[#This Row],[Работа спецоборудования за день, м/ч]]=\"\",Январь[[#This Row],[Остаток топлива в баке на начало дня, литр]],Январь[[#This Row],[Работа спецоборудования за день, м/ч]]*$Z$2)","v":0},{"$f":"Январь[[#This Row],[Выдано топливо, литр]]+U27+Январь[[#This Row],[Остаток топлива в баке на начало дня, литр]]","v":1200},{"$f":"IFERROR(ROUND((Январь[[#This Row],[Пройдено за день, км]]*0.01*$Y$2+Январь[[#This Row],[Расход топлива на работу спецоборудования, литр]]),3)+X27,)","v":0},{"$f":"IF(Январь[[#This Row],[Дата]]=\"\",\"\",IFERROR(ROUND(Январь[[#This Row],[Расход топлива по норме, литр]]/VLOOKUP(Январь[Дата],S$2:W$4,5),0)+Y27,))","v":""},{"$f":"IFERROR(Январь[[#This Row],[Фактический расход топлива, литр]]-Январь[[#This Row],[Расход топлива по норме, литр]],\"\")","v":""},null,{"$f":"Январь[[#This Row],[Дата]]","v":""},null,null,null,null,null,null,null,{"$f":"Январь[[#This Row],[Дата]]","v":""}]
["2018-01-11",null,"",null,null,null,1200,29210,29217,{"$f":"IF(W28=\"\",Январь[[#This Row],[Показание счетчика моточасов  спецоборудования на конец дня, м/ч]],Январь[[#This Row],[Показание счетчика моточасов  спецоборудования на конец дня, м/ч]]+1)-Январь[[#This Row],[Показание счетчика моточасов спецоборудования на начало дня, м/ч]]","v":7},null,{"$f":"IF(Январь[[#This Row],[Работа спецоборудования за день, м/ч]]=\"\",Январь[[#This Row],[Остаток топлива в баке на начало дня, литр]],Январь[[#This Row],[Работа спецоборудования за день, м/ч]]*$Z$2)","v":127.05000000000001},{"$f":"Январь[[#This Row],[Выдано топливо, литр]]+U28+Январь[[#This Row],[Остаток топлива в баке на начало дня, литр]]","v":1200},{"$f":"IFERROR(ROUND((Январь[[#This Row],[Пройдено за день, км]]*0.01*$Y$2+Январь[[#This Row],[Расход топлива на работу спецоборудования, литр]]),3)+X28,)","v":127.05},{"$f":"IF(Январь[[#This Row],[Дата]]=\"\",\"\",IFERROR(ROUND(Январь[[#This Row],[Расход топлива по норме, литр]]/VLOOKUP(Январь[Дата],S$2:W$4,5),0)+Y28,))","v":161},{"$f":"IFERROR(Январь[[#This Row],[Фактический расход топлива, литр]]-Январь[[#This Row],[Расход топлива по норме, литр]],\"\")","v":33.950000000000003},null,{"$f":"Январь[[#This Row],[Дата]]","v":"2018-01-11"},null,null,null,null,null,null,null,{"$f":"Январь[[#This Row],[Дата]]","v":"2018-01-11"}]
["",null,"",null,null,null,1200,29217,29217,{"$f":"IF(W29=\"\",Январь[[#This Row],[Показание счетчика моточасов  спецоборудования на конец дня, м/ч]],Январь[[#This Row],[Показание счетчика моточасов  спецоборудования на конец дня, м/ч]]+1)-Январь[[#This Row],[Показание счетчика моточасов спецоборудования на начало дня, м/ч]]","v":0},null,{"$f":"IF(Январь[[#This Row],[Работа спецоборудования за день, м/ч]]=\"\",Январь[[#This Row],[Остаток топлива в баке на начало дня, литр]],Январь[[#This Row],[Работа спецоборудования за день, м/ч]]*$Z$2)","v":0},{"$f":"Январь[[#This Row],[Выдано топливо, литр]]+U29+Январь[[#This Row],[Остаток топлива в баке на начало дня, литр]]","v":1200},{"$f":"IFERROR(ROUND((Январь[[#This Row],[Пройдено за день, км]]*0.01*$Y$2+Январь[[#This Row],[Расход топлива на работу спецоборудования, литр]]),3)+X29,)","v":0},{"$f":"IF(Январь[[#This Row],[Дата]]=\"\",\"\",IFERROR(ROUND(Январь[[#This Row],[Расход топлива по норме, литр]]/VLOOKUP(Январь[Дата],S$2:W$4,5),0)+Y29,))","v":""},{"$f":"IFERROR(Январь[[#This Row],[Фактический расход топлива, литр]]-Январь[[#This Row],[Расход топлива по норме, литр]],\"\")","v":""},null,{"$f":"Январь[[#This Row],[Дата]]","v":""},null,null,null,null,null,null,null,{"$f":"Январь[[#This Row],[Дата]]","v":""}]
["2018-01-12",null,"",null,null,null,1200,29217,29227,{"$f":"IF(W30=\"\",Январь[[#This Row],[Показание счетчика моточасов  спецоборудования на конец дня, м/ч]],Январь[[#This Row],[Показание счетчика моточасов  спецоборудования на конец дня, м/ч]]+1)-Январь[[#This Row],[Показание счетчика моточасов спецоборудования на начало дня, м/ч]]","v":10},null,{"$f":"IF(Январь[[#This Row],[Работа спецоборудования за день, м/ч]]=\"\",Январь[[#This Row],[Остаток топлива в баке на начало дня, литр]],Январь[[#This Row],[Работа спецоборудования за день, м/ч]]*$Z$2)","v":181.50000000000003},{"$f":"Январь[[#This Row],[Выдано топливо, литр]]+U30+Январь[[#This Row],[Остаток топлива в баке на начало дня, литр]]","v":1350},{"$f":"IFERROR(ROUND((Январь[[#This Row],[Пройдено за день, км]]*0.01*$Y$2+Январь[[#This Row],[Расход топлива на работу спецоборудования, литр]]),3)+X30,)","v":181.5},{"$f":"IF(Январь[[#This Row],[Дата]]=\"\",\"\",IFERROR(ROUND(Январь[[#This Row],[Расход топлива по норме, литр]]/VLOOKUP(Январь[Дата],S$2:W$4,5),0)+Y30,))","v":230},{"$f":"IFERROR(Январь[[#This Row],[Фактический расход топлива, литр]]-Январь[[#This Row],[Расход топлива по норме, литр]],\"\")","v":48.5},null,{"$f":"Январь[[#This Row],[Дата]]","v":"2018-01-12"},null,null,150,null,null,null,null,{"$f":"Январь[[#This Row],[Дата]]","v":"2018-01-12"}]
["",null,"",null,null,null,1350,29227,29227,{"$f":"IF(W31=\"\",Январь[[#This Row],[Показание счетчика моточасов  спецоборудования на конец дня, м/ч]],Январь[[#This Row],[Показание счетчика моточасов  спецоборудования на конец дня, м/ч]]+1)-Январь[[#This Row],[Показание счетчика моточасов спецоборудования на начало дня, м/ч]]","v":0},null,{"$f":"IF(Январь[[#This Row],[Работа спецоборудования за день, м/ч]]=\"\",Январь[[#This Row],[Остаток топлива в баке на начало дня, литр]],Январь[[#This Row],[Работа спецоборудования за день, м/ч]]*$Z$2)","v":0},{"$f":"Январь[[#This Row],[Выдано топливо, литр]]+U31+Январь[[#This Row],[Остаток топлива в баке на начало дня, литр]]","v":1350},{"$f":"IFERROR(ROUND((Январь[[#This Row],[Пройдено за день, км]]*0.01*$Y$2+Январь[[#This Row],[Расход топлива на работу спецоборудования, литр]]),3)+X31,)","v":0},{"$f":"IF(Январь[[#This Row],[Дата]]=\"\",\"\",IFERROR(ROUND(Январь[[#This Row],[Расход топлива по норме, литр]]/VLOOKUP(Январь[Дата],S$2:W$4,5),0)+Y31,))","v":""},{"$f":"IFERROR(Январь[[#This Row],[Фактический расход топлива, литр]]-Январь[[#This Row],[Расход топлива по норме, литр]],\"\")","v":""},null,{"$f":"Январь[[#This Row],[Дата]]","v":""},null,null,null,null,null,null,null,{"$f":"Январь[[#This Row],[Дата]]","v":""}]
["2018-01-13",null,"",null,null,null,1350,29227,29233,{"$f":"IF(W32=\"\",Январь[[#This Row],[Показание счетчика моточасов  спецоборудования на конец дня, м/ч]],Январь[[#This Row],[Показание счетчика моточасов  спецоборудования на конец дня, м/ч]]+1)-Январь[[#This Row],[Показание счетчика моточасов спецоборудования на начало дня, м/ч]]","v":6},null,{"$f":"IF(Январь[[#This Row],[Работа спецоборудования за день, м/ч]]=\"\",Январь[[#This Row],[Остаток топлива в баке на начало дня, литр]],Январь[[#This Row],[Работа спецоборудования за день, м/ч]]*$Z$2)","v":108.9},{"$f":"Январь[[#This Row],[Выдано топливо, литр]]+U32+Январь[[#This Row],[Остаток топлива в баке на начало дня, литр]]","v":1650},{"$f":"IFERROR(ROUND((Январь[[#This Row],[Пройдено за день, км]]*0.01*$Y$2+Январь[[#This Row],[Расход топлива на работу спецоборудования, литр]]),3)+X32,)","v":108.9},{"$f":"IF(Январь[[#This Row],[Дата]]=\"\",\"\",IFERROR(ROUND(Январь[[#This Row],[Расход топлива по норме, литр]]/VLOOKUP(Январь[Дата],S$2:W$4,5),0)+Y32,))","v":138},{"$f":"IFERROR(Январь[[#This Row],[Фактический расход топлива, литр]]-Январь[[#This Row],[Расход топлива по норме, литр]],\"\")","v":29.099999999999994},null,{"$f":"Январь[[#This Row],[Дата]]","v":"2018-01-13"},null,null,300,null,null,null,null,{"$f":"Январь[[#This Row],[Дата]]","v":"2018-01-13"}]
["",null,"",null,null,null,1650,29233,29233,{"$f":"IF(W33=\"\",Январь[[#This Row],[Показание счетчика моточасов  спецоборудования на конец дня, м/ч]],Январь[[#This Row],[Показание счетчика моточасов  спецоборудования на конец дня, м/ч]]+1)-Январь[[#This Row],[Показание счетчика моточасов спецоборудования на начало дня, м/ч]]","v":0},null,{"$f":"IF(Январь[[#This Row],[Работа спецоборудования за день, м/ч]]=\"\",Январь[[#This Row],[Остаток топлива в баке на начало дня, литр]],Январь[[#This Row],[Работа спецоборудования за день, м/ч]]*$Z$2)","v":0},{"$f":"Январь[[#This Row],[Выдано топливо, литр]]+U33+Январь[[#This Row],[Остаток топлива в баке на начало дня, литр]]","v":1650},{"$f":"IFERROR(ROUND((Январь[[#This Row],[Пройдено за день, км]]*0.01*$Y$2+Январь[[#This Row],[Расход топлива на работу спецоборудования, литр]]),3)+X33,)","v":0},{"$f":"IF(Январь[[#This Row],[Дата]]=\"\",\"\",IFERROR(ROUND(Январь[[#This Row],[Расход топлива по норме, литр]]/VLOOKUP(Январь[Дата],S$2:W$4,5),0)+Y33,))","v":""},{"$f":"IFERROR(Январь[[#This Row],[Фактический расход топлива, литр]]-Январь[[#This Row],[Расход топлива по норме, литр]],\"\")","v":""},null,{"$f":"Январь[[#This Row],[Дата]]","v":""},null,null,null,null,null,null,null,{"$f":"Январь[[#This Row],[Дата]]","v":""}]
["2018-01-14",null,"",null,null,null,1650,29233,29243,{"$f":"IF(W34=\"\",Январь[[#This Row],[Показание счетчика моточасов  спецоборудования на конец дня, м/ч]],Январь[[#This Row],[Показание счетчика моточасов  спецоборудования на конец дня, м/ч]]+1)-Январь[[#This Row],[Показание счетчика моточасов спецоборудования на начало дня, м/ч]]","v":10},null,{"$f":"IF(Январь[[#This Row],[Работа спецоборудования за день, м/ч]]=\"\",Январь[[#This Row],[Остаток топлива в баке на начало дня, литр]],Январь[[#This Row],[Работа спецоборудования за день, м/ч]]*$Z$2)","v":181.50000000000003},{"$f":"Январь[[#This Row],[Выдано топливо, литр]]+U34+Январь[[#This Row],[Остаток топлива в баке на начало дня, литр]]","v":1850},{"$f":"IFERROR(ROUND((Январь[[#This Row],[Пройдено за день, км]]*0.01*$Y$2+Январь[[#This Row],[Расход топлива на работу спецоборудования, литр]]),3)+X34,)","v":181.5},{"$f":"IF(Январь[[#This Row],[Дата]]=\"\",\"\",IFERROR(ROUND(Январь[[#This Row],[Расход топлива по норме, литр]]/VLOOKUP(Январь[Дата],S$2:W$4,5),0)+Y34,))","v":230},{"$f":"IFERROR(Январь[[#This Row],[Фактический расход топлива, литр]]-Январь[[#This Row],[Расход топлива по норме, литр]],\"\")","v":48.5},null,{"$f":"Январь[[#This Row],[Дата]]","v":"2018-01-14"},null,null,200,null,null,null,null,{"$f":"Январь[[#This Row],[Дата]]","v":"2018-01-14"}]
["",null,"",null,null,null,1850,29243,29243,{"$f":"IF(W35=\"\",Январь[[#This Row],[Показание счетчика моточасов  спецоборудования на конец дня, м/ч]],Январь[[#This Row],[Показание счетчика моточасов  спецоборудования на конец дня, м/ч]]+1)-Январь[[#This Row],[Показание счетчика моточасов спецоборудования на начало дня, м/ч]]","v":0},null,{"$f":"IF(Январь[[#This Row],[Работа спецоборудования за день, м/ч]]=\"\",Январь[[#This Row],[Остаток топлива в баке на начало дня, литр]],Январь[[#This Row],[Работа спецоборудования за день, м/ч]]*$Z$2)","v":0},{"$f":"Январь[[#This Row],[Выдано топливо, литр]]+U35+Январь[[#This Row],[Остаток топлива в баке на начало дня, литр]]","v":1850},{"$f":"IFERROR(ROUND((Январь[[#This Row],[Пройдено за день, км]]*0.01*$Y$2+Январь[[#This Row],[Расход топлива на работу спецоборудования, литр]]),3)+X35,)","v":0},{"$f":"IF(Январь[[#This Row],[Дата]]=\"\",\"\",IFERROR(ROUND(Январь[[#This Row],[Расход топлива по норме, литр]]/VLOOKUP(Январь[Дата],S$2:W$4,5),0)+Y35,))","v":""},{"$f":"IFERROR(Январь[[#This Row],[Фактический расход топлива, литр]]-Январь[[#This Row],[Расход топлива по норме, литр]],\"\")","v":""},null,{"$f":"Январь[[#This Row],[Дата]]","v":""},null,null,null,null,null,null,null,{"$f":"Январь[[#This Row],[Дата]]","v":""}]
["2018-01-15",null,"",null,null,null,1850,29243,29251,{"$f":"IF(W36=\"\",Январь[[#This Row],[Показание счетчика моточасов  спецоборудования на конец дня, м/ч]],Январь[[#This Row],[Показание счетчика моточасов  спецоборудования на конец дня, м/ч]]+1)-Январь[[#This Row],[Показание счетчика моточасов спецоборудования на начало дня, м/ч]]","v":8},null,{"$f":"IF(Январь[[#This Row],[Работа спецоборудования за день, м/ч]]=\"\",Январь[[#This Row],[Остаток топлива в баке на начало дня, литр]],Январь[[#This Row],[Работа спецоборудования за день, м/ч]]*$Z$2)","v":145.20000000000002},{"$f":"Январь[[#This Row],[Выдано топливо, литр]]+U36+Январь[[#This Row],[Остаток топлива в баке на начало дня, литр]]","v":2050},{"$f":"IFERROR(ROUND((Январь[[#This Row],[Пройдено за день, км]]*0.01*$Y$2+Январь[[#This Row],[Расход топлива на работу спецоборудования, литр]]),3)+X36,)","v":145.19999999999999},{"$f":"IF(Январь[[#This Row],[Дата]]=\"\",\"\",IFERROR(ROUND(Январь[[#This Row],[Расход топлива по норме, литр]]/VLOOKUP(Январь[Дата],S$2:W$4,5),0)+Y36,))","v":184},{"$f":"IFERROR(Январь[[#This Row],[Фактический расход топлива, литр]]-Январь[[#This Row],[Расход топлива по норме, литр]],\"\")","v":38.800000000000011},null,{"$f":"Январь[[#This Row],[Дата]]","v":"2018-01-15"},null,null,200,null,null,null,null,{"$f":"Январь[[#This Row],[Дата]]","v":"2018-01-15"}]
["",null,"",null,null,null,2050,29251,29251,{"$f":"IF(W37=\"\",Январь[[#This Row],[Показание счетчика моточасов  спецоборудования на конец дня, м/ч]],Январь[[#This Row],[Показание счетчика моточасов  спецоборудования на конец дня, м/ч]]+1)-Январь[[#This Row],[Показание счетчика моточасов спецоборудования на начало дня, м/ч]]","v":0},null,{"$f":"IF(Январь[[#This Row],[Работа спецоборудования за день, м/ч]]=\"\",Январь[[#This Row],[Остаток топлива в баке на начало дня, литр]],Январь[[#This Row],[Работа спецоборудования за день, м/ч]]*$Z$2)","v":0},{"$f":"Январь[[#This Row],[Выдано топливо, литр]]+U37+Январь[[#This Row],[Остаток топлива в баке на начало дня, литр]]","v":2050},{"$f":"IFERROR(ROUND((Январь[[#This Row],[Пройдено за день, км]]*0.01*$Y$2+Январь[[#This Row],[Расход топлива на работу спецоборудования, литр]]),3)+X37,)","v":0},{"$f":"IF(Январь[[#This Row],[Дата]]=\"\",\"\",IFERROR(ROUND(Январь[[#This Row],[Расход топлива по норме, литр]]/VLOOKUP(Январь[Дата],S$2:W$4,5),0)+Y37,))","v":""},{"$f":"IFERROR(Январь[[#This Row],[Фактический расход топлива, литр]]-Январь[[#This Row],[Расход топлива по норме, литр]],\"\")","v":""},null,{"$f":"Январь[[#This Row],[Дата]]","v":""},null,null,null,null,null,null,null,{"$f":"Январь[[#This Row],[Дата]]","v":""}]
["2018-01-16",null,null,null,null,null,2050,29251,29261,{"$f":"IF(W38=\"\",Январь[[#This Row],[Показание счетчика моточасов  спецоборудования на конец дня, м/ч]],Январь[[#This Row],[Показание счетчика моточасов  спецоборудования на конец дня, м/ч]]+1)-Январь[[#This Row],[Показание счетчика моточасов спецоборудования на начало дня, м/ч]]","v":10},null,{"$f":"IF(Январь[[#This Row],[Работа спецоборудования за день, м/ч]]=\"\",Январь[[#This Row],[Остаток топлива в баке на начало дня, литр]],Январь[[#This Row],[Работа спецоборудования за день, м/ч]]*$Z$2)","v":181.50000000000003},{"$f":"Январь[[#This Row],[Выдано топливо, литр]]+U38+Январь[[#This Row],[Остаток топлива в баке на начало дня, литр]]","v":2250},{"$f":"IFERROR(ROUND((Январь[[#This Row],[Пройдено за день, км]]*0.01*$Y$2+Январь[[#This Row],[Расход топлива на работу спецоборудования, литр]]),3)+X38,)","v":181.5},{"$f":"IF(Январь[[#This Row],[Дата]]=\"\",\"\",IFERROR(ROUND(Январь[[#This Row],[Расход топлива по норме, литр]]/VLOOKUP(Январь[Дата],S$2:W$4,5),0)+Y38,))","v":230},{"$f":"IFERROR(Январь[[#This Row],[Фактический расход топлива, литр]]-Январь[[#This Row],[Расход топлива по норме, литр]],\"\")","v":48.5},null,{"$f":"Январь[[#This Row],[Дата]]","v":"2018-01-16"},null,null,200,null,null,null,null,{"$f":"Январь[[#This Row],[Дата]]","v":"2018-01-16"}]
["",null,null,null,null,null,2250,29261,29261,{"$f":"IF(W39=\"\",Январь[[#This Row],[Показание счетчика моточасов  спецоборудования на конец дня, м/ч]],Январь[[#This Row],[Показание счетчика моточасов  спецоборудования на конец дня, м/ч]]+1)-Январь[[#This Row],[Показание счетчика моточасов спецоборудования на начало дня, м/ч]]","v":0},null,{"$f":"IF(Январь[[#This Row],[Работа спецоборудования за день, м/ч]]=\"\",Январь[[#This Row],[Остаток топлива в баке на начало дня, литр]],Январь[[#This Row],[Работа спецоборудования за день, м/ч]]*$Z$2)","v":0},{"$f":"Январь[[#This Row],[Выдано топливо, литр]]+U39+Январь[[#This Row],[Остаток топлива в баке на начало дня, литр]]","v":2250},{"$f":"IFERROR(ROUND((Январь[[#This Row],[Пройдено за день, км]]*0.01*$Y$2+Январь[[#This Row],[Расход топлива на работу спецоборудования, литр]]),3)+X39,)","v":0},{"$f":"IF(Январь[[#This Row],[Дата]]=\"\",\"\",IFERROR(ROUND(Январь[[#This Row],[Расход топлива по норме, литр]]/VLOOKUP(Январь[Дата],S$2:W$4,5),0)+Y39,))","v":""},{"$f":"IFERROR(Январь[[#This Row],[Фактический расход топлива, литр]]-Январь[[#This Row],[Расход топлива по норме, литр]],\"\")","v":""},null,{"$f":"Январь[[#This Row],[Дата]]","v":""},null,null,null,null,null,null,null,{"$f":"Январь[[#This Row],[Дата]]","v":""}]
["2018-01-17",null,null,null,null,null,2250,29261,29271,{"$f":"IF(W40=\"\",Январь[[#This Row],[Показание счетчика моточасов  спецоборудования на конец дня, м/ч]],Январь[[#This Row],[Показание счетчика моточасов  спецоборудования на конец дня, м/ч]]+1)-Январь[[#This Row],[Показание счетчика моточасов спецоборудования на начало дня, м/ч]]","v":10},null,{"$f":"IF(Январь[[#This Row],[Работа спецоборудования за день, м/ч]]=\"\",Январь[[#This Row],[Остаток топлива в баке на начало дня, литр]],Январь[[#This Row],[Работа спецоборудования за день, м/ч]]*$Z$2)","v":181.50000000000003},{"$f":"Январь[[#This Row],[Выдано топливо, литр]]+U40+Январь[[#This Row],[Остаток топлива в баке на начало дня, литр]]","v":2450},{"$f":"IFERROR(ROUND((Январь[[#This Row],[Пройдено за день, км]]*0.01*$Y$2+Январь[[#This Row],[Расход топлива на работу спецоборудования, литр]]),3)+X40,)","v":181.5},{"$f":"IF(Январь[[#This Row],[Дата]]=\"\",\"\",IFERROR(ROUND(Январь[[#This Row],[Расход топлива по норме, литр]]/VLOOKUP(Январь[Дата],S$2:W$4,5),0)+Y40,))","v":230},{"$f":"IFERROR(Январь[[#This Row],[Фактический расход топлива, литр]]-Январь[[#This Row],[Расход топлива по норме, литр]],\"\")","v":48.5},null,{"$f":"Январь[[#This Row],[Дата]]","v":"2018-01-17"},null,null,200,null,null,null,null,{"$f":"Январь[[#This Row],[Дата]]","v":"2018-01-17"}]
["",null,null,null,null,null,2450,29271,29271,{"$f":"IF(W41=\"\",Январь[[#This Row],[Показание счетчика моточасов  спецоборудования на конец дня, м/ч]],Январь[[#This Row],[Показание счетчика моточасов  спецоборудования на конец дня, м/ч]]+1)-Январь[[#This Row],[Показание счетчика моточасов спецоборудования на начало дня, м/ч]]","v":0},null,{"$f":"IF(Январь[[#This Row],[Работа спецоборудования за день, м/ч]]=\"\",Январь[[#This Row],[Остаток топлива в баке на начало дня, литр]],Январь[[#This Row],[Работа спецоборудования за день, м/ч]]*$Z$2)","v":0},{"$f":"Январь[[#This Row],[Выдано топливо, литр]]+U41+Январь[[#This Row],[Остаток топлива в баке на начало дня, литр]]","v":2450},{"$f":"IFERROR(ROUND((Январь[[#This Row],[Пройдено за день, км]]*0.01*$Y$2+Январь[[#This Row],[Расход топлива на работу спецоборудования, литр]]),3)+X41,)","v":0},{"$f":"IF(Январь[[#This Row],[Дата]]=\"\",\"\",IFERROR(ROUND(Январь[[#This Row],[Расход топлива по норме, литр]]/VLOOKUP(Январь[Дата],S$2:W$4,5),0)+Y41,))","v":""},{"$f":"IFERROR(Январь[[#This Row],[Фактический расход топлива, литр]]-Январь[[#This Row],[Расход топлива по норме, литр]],\"\")","v":""},null,{"$f":"Январь[[#This Row],[Дата]]","v":""},null,null,null,null,null,null,null,{"$f":"Январь[[#This Row],[Дата]]","v":""}]
["2018-01-18",null,null,null,null,null,2450,29271,29280,{"$f":"IF(W42=\"\",Январь[[#This Row],[Показание счетчика моточасов  спецоборудования на конец дня, м/ч]],Январь[[#This Row],[Показание счетчика моточасов  спецоборудования на конец дня, м/ч]]+1)-Январь[[#This Row],[Показание счетчика моточасов спецоборудования на начало дня, м/ч]]","v":9},null,{"$f":"IF(Январь[[#This Row],[Работа спецоборудования за день, м/ч]]=\"\",Январь[[#This Row],[Остаток топлива в баке на начало дня, литр]],Январь[[#This Row],[Работа спецоборудования за день, м/ч]]*$Z$2)","v":163.35000000000002},{"$f":"Январь[[#This Row],[Выдано топливо, литр]]+U42+Январь[[#This Row],[Остаток топлива в баке на начало дня, литр]]","v":2650},{"$f":"IFERROR(ROUND((Январь[[#This Row],[Пройдено за день, км]]*0.01*$Y$2+Январь[[#This Row],[Расход топлива на работу спецоборудования, литр]]),3)+X42,)","v":163.35},{"$f":"IF(Январь[[#This Row],[Дата]]=\"\",\"\",IFERROR(ROUND(Январь[[#This Row],[Расход топлива по норме, литр]]/VLOOKUP(Январь[Дата],S$2:W$4,5),0)+Y42,))","v":207},{"$f":"IFERROR(Январь[[#This Row],[Фактический расход топлива, литр]]-Январь[[#This Row],[Расход топлива по норме, литр]],\"\")","v":43.650000000000006},null,{"$f":"Январь[[#This Row],[Дата]]","v":"2018-01-18"},null,null,200,null,null,null,null,{"$f":"Январь[[#This Row],[Дата]]","v":"2018-01-18"}]
["",null,null,null,null,null,2650,29280,29280,{"$f":"IF(W43=\"\",Январь[[#This Row],[Показание счетчика моточасов  спецоборудования на конец дня, м/ч]],Январь[[#This Row],[Показание счетчика моточасов  спецоборудования на конец дня, м/ч]]+1)-Январь[[#This Row],[Показание счетчика моточасов спецоборудования на начало дня, м/ч]]","v":0},null,{"$f":"IF(Январь[[#This Row],[Работа спецоборудования за день, м/ч]]=\"\",Январь[[#This Row],[Остаток топлива в баке на начало дня, литр]],Январь[[#This Row],[Работа спецоборудования за день, м/ч]]*$Z$2)","v":0},{"$f":"Январь[[#This Row],[Выдано топливо, литр]]+U43+Январь[[#This Row],[Остаток топлива в баке на начало дня, литр]]","v":2650},{"$f":"IFERROR(ROUND((Январь[[#This Row],[Пройдено за день, км]]*0.01*$Y$2+Январь[[#This Row],[Расход топлива на работу спецоборудования, литр]]),3)+X43,)","v":0},{"$f":"IF(Январь[[#This Row],[Дата]]=\"\",\"\",IFERROR(ROUND(Январь[[#This Row],[Расход топлива по норме, литр]]/VLOOKUP(Январь[Дата],S$2:W$4,5),0)+Y43,))","v":""},{"$f":"IFERROR(Январь[[#This Row],[Фактический расход топлива, литр]]-Январь[[#This Row],[Расход топлива по норме, литр]],\"\")","v":""},null,{"$f":"Январь[[#This Row],[Дата]]","v":""},null,null,null,null,null,null,null,{"$f":"Январь[[#This Row],[Дата]]","v":""}]
["2018-01-19",null,{"$f":"IFERROR(IF(INDIRECT(TEXT(A37,\"ММММ\")&\"!A7:A37\")=\"\",\"\",IF(S37=\"\",D37,S37)),\"\")","v":""},null,null,null,2650,29280,29286,{"$f":"IF(W44=\"\",Январь[[#This Row],[Показание счетчика моточасов  спецоборудования на конец дня, м/ч]],Январь[[#This Row],[Показание счетчика моточасов  спецоборудования на конец дня, м/ч]]+1)-Январь[[#This Row],[Показание счетчика моточасов спецоборудования на начало дня, м/ч]]","v":6},null,{"$f":"IF(Январь[[#This Row],[Работа спецоборудования за день, м/ч]]=\"\",Январь[[#This Row],[Остаток топлива в баке на начало дня, литр]],Январь[[#This Row],[Работа спецоборудования за день, м/ч]]*$Z$2)","v":108.9},{"$f":"Январь[[#This Row],[Выдано топливо, литр]]+U44+Январь[[#This Row],[Остаток топлива в баке на начало дня, литр]]","v":2650},{"$f":"IFERROR(ROUND((Январь[[#This Row],[Пройдено за день, км]]*0.01*$Y$2+Январь[[#This Row],[Расход топлива на работу спецоборудования, литр]]),3)+X44,)","v":108.9},{"$f":"IF(Январь[[#This Row],[Дата]]=\"\",\"\",IFERROR(ROUND(Январь[[#This Row],[Расход топлива по норме, литр]]/VLOOKUP(Январь[Дата],S$2:W$4,5),0)+Y44,))","v":0},{"$f":"IFERROR(Январь[[#This Row],[Фактический расход топлива, литр]]-Январь[[#This Row],[Расход топлива по норме, литр]],\"\")","v":-108.9},null,{"$f":"Январь[[#This Row],[Дата]]","v":"2018-01-19"},null,null,null,null,null,null,null,{"$f":"Январь[[#This Row],[Дата]]","v":"2018-01-19"}]
["",null,null,null,null,null,2650,29286,29286,{"$f":"IF(W45=\"\",Январь[[#This Row],[Показание счетчика моточасов  спецоборудования на конец дня, м/ч]],Январь[[#This Row],[Показание счетчика моточасов  спецоборудования на конец дня, м/ч]]+1)-Январь[[#This Row],[Показание счетчика моточасов спецоборудования на начало дня, м/ч]]","v":0},null,{"$f":"IF(Январь[[#This Row],[Работа спецоборудования за день, м/ч]]=\"\",Январь[[#This Row],[Остаток топлива в баке на начало дня, литр]],Январь[[#This Row],[Работа спецоборудования за день, м/ч]]*$Z$2)","v":0},{"$f":"Январь[[#This Row],[Выдано топливо, литр]]+U45+Январь[[#This Row],[Остаток топлива в баке на начало дня, литр]]","v":2650},{"$f":"IFERROR(ROUND((Январь[[#This Row],[Пройдено за день, км]]*0.01*$Y$2+Январь[[#This Row],[Расход топлива на работу спецоборудования, литр]]),3)+X45,)","v":0},{"$f":"IF(Январь[[#This Row],[Дата]]=\"\",\"\",IFERROR(ROUND(Январь[[#This Row],[Расход топлива по норме, литр]]/VLOOKUP(Январь[Дата],S$2:W$4,5),0)+Y45,))","v":""},{"$f":"IFERROR(Январь[[#This Row],[Фактический расход топлива, литр]]-Январь[[#This Row],[Расход топлива по норме, литр]],\"\")","v":""},null,{"$f":"Январь[[#This Row],[Дата]]","v":""},null,null,null,null,null,null,null,{"$f":"Январь[[#This Row],[Дата]]","v":""}]
["2018-01-20",null,null,null,null,null,2650,29286,29297,{"$f":"IF(W46=\"\",Январь[[#This Row],[Показание счетчика моточасов  спецоборудования на конец дня, м/ч]],Январь[[#This Row],[Показание счетчика моточасов  спецоборудования на конец дня, м/ч]]+1)-Январь[[#This Row],[Показание счетчика моточасов спецоборудования на начало дня, м/ч]]","v":11},null,{"$f":"IF(Январь[[#This Row],[Работа спецоборудования за день, м/ч]]=\"\",Январь[[#This Row],[Остаток топлива в баке на начало дня, литр]],Январь[[#This Row],[Работа спецоборудования за день, м/ч]]*$Z$2)","v":199.65000000000003},{"$f":"Январь[[#This Row],[Выдано топливо, литр]]+U46+Январь[[#This Row],[Остаток топлива в баке на начало дня, литр]]","v":2900},{"$f":"IFERROR(ROUND((Январь[[#This Row],[Пройдено за день, км]]*0.01*$Y$2+Январь[[#This Row],[Расход топлива на работу спецоборудования, литр]]),3)+X46,)","v":199.65},{"$f":"IF(Январь[[#This Row],[Дата]]=\"\",\"\",IFERROR(ROUND(Январь[[#This Row],[Расход топлива по норме, литр]]/VLOOKUP(Январь[Дата],S$2:W$4,5),0)+Y46,))","v":0},{"$f":"IFERROR(Январь[[#This Row],[Фактический расход топлива, литр]]-Январь[[#This Row],[Расход топлива по норме, литр]],\"\")","v":-199.65},null,{"$f":"Январь[[#This Row],[Дата]]","v":"2018-01-20"},null,null,250,null,null,null,null,{"$f":"Январь[[#This Row],[Дата]]","v":"2018-01-20"}]
["",null,null,null,null,null,2900,29297,29307,{"$f":"IF(W47=\"\",Январь[[#This Row],[Показание счетчика моточасов  спецоборудования на конец дня, м/ч]],Январь[[#This Row],[Показание счетчика моточасов  спецоборудования на конец дня, м/ч]]+1)-Январь[[#This Row],[Показание счетчика моточасов спецоборудования на начало дня, м/ч]]","v":10},null,{"$f":"IF(Январь[[#This Row],[Работа спецоборудования за день, м/ч]]=\"\",Январь[[#This Row],[Остаток топлива в баке на начало дня, литр]],Январь[[#This Row],[Работа спецоборудования за день, м/ч]]*$Z$2)","v":181.50000000000003},{"$f":"Январь[[#This Row],[Выдано топливо, литр]]+U47+Январь[[#This Row],[Остаток топлива в баке на начало дня, литр]]","v":2900},{"$f":"IFERROR(ROUND((Январь[[#This Row],[Пройдено за день, км]]*0.01*$Y$2+Январь[[#This Row],[Расход топлива на работу спецоборудования, литр]]),3)+X47,)","v":181.5},{"$f":"IF(Январь[[#This Row],[Дата]]=\"\",\"\",IFERROR(ROUND(Январь[[#This Row],[Расход топлива по норме, литр]]/VLOOKUP(Январь[Дата],S$2:W$4,5),0)+Y47,))","v":""},{"$f":"IFERROR(Январь[[#This Row],[Фактический расход топлива, литр]]-Январь[[#This Row],[Расход топлива по норме, литр]],\"\")","v":""},null,{"$f":"Январь[[#This Row],[Дата]]","v":""},null,null,null,null,null,null,null,{"$f":"Январь[[#This Row],[Дата]]","v":""}]
["2018-01-21",null,null,null,null,null,2900,29307,29308,{"$f":"IF(W48=\"\",Январь[[#This Row],[Показание счетчика моточасов  спецоборудования на конец дня, м/ч]],Январь[[#This Row],[Показание счетчика моточасов  спецоборудования на конец дня, м/ч]]+1)-Январь[[#This Row],[Показание счетчика моточасов спецоборудования на начало дня, м/ч]]","v":1},null,{"$f":"IF(Январь[[#This Row],[Работа спецоборудования за день, м/ч]]=\"\",Январь[[#This Row],[Остаток топлива в баке на начало дня, литр]],Январь[[#This Row],[Работа спецоборудования за день, м/ч]]*$Z$2)","v":18.150000000000002},{"$f":"Январь[[#This Row],[Выдано топливо, литр]]+U48+Январь[[#This Row],[Остаток топлива в баке на начало дня, литр]]","v":3150},{"$f":"IFERROR(ROUND((Январь[[#This Row],[Пройдено за день, км]]*0.01*$Y$2+Январь[[#This Row],[Расход топлива на работу спецоборудования, литр]]),3)+X48,)","v":18.149999999999999},{"$f":"IF(Январь[[#This Row],[Дата]]=\"\",\"\",IFERROR(ROUND(Январь[[#This Row],[Расход топлива по норме, литр]]/VLOOKUP(Январь[Дата],S$2:W$4,5),0)+Y48,))","v":0},{"$f":"IFERROR(Январь[[#This Row],[Фактический расход топлива, литр]]-Январь[[#This Row],[Расход топлива по норме, литр]],\"\")","v":-18.149999999999999},null,{"$f":"Январь[[#This Row],[Дата]]","v":"2018-01-21"},null,null,250,null,null,null,null,{"$f":"Январь[[#This Row],[Дата]]","v":"2018-01-21"}]
["",null,null,null,null,null,3150,29308,29308,{"$f":"IF(W49=\"\",Январь[[#This Row],[Показание счетчика моточасов  спецоборудования на конец дня, м/ч]],Январь[[#This Row],[Показание счетчика моточасов  спецоборудования на конец дня, м/ч]]+1)-Январь[[#This Row],[Показание счетчика моточасов спецоборудования на начало дня, м/ч]]","v":0},null,{"$f":"IF(Январь[[#This Row],[Работа спецоборудования за день, м/ч]]=\"\",Январь[[#This Row],[Остаток топлива в баке на начало дня, литр]],Январь[[#This Row],[Работа спецоборудования за день, м/ч]]*$Z$2)","v":0},{"$f":"Январь[[#This Row],[Выдано топливо, литр]]+U49+Январь[[#This Row],[Остаток топлива в баке на начало дня, литр]]","v":3150},{"$f":"IFERROR(ROUND((Январь[[#This Row],[Пройдено за день, км]]*0.01*$Y$2+Январь[[#This Row],[Расход топлива на работу спецоборудования, литр]]),3)+X49,)","v":0},{"$f":"IF(Январь[[#This Row],[Дата]]=\"\",\"\",IFERROR(ROUND(Январь[[#This Row],[Расход топлива по норме, литр]]/VLOOKUP(Январь[Дата],S$2:W$4,5),0)+Y49,))","v":""},{"$f":"IFERROR(Январь[[#This Row],[Фактический расход топлива, литр]]-Январь[[#This Row],[Расход топлива по норме, литр]],\"\")","v":""},null,{"$f":"Январь[[#This Row],[Дата]]","v":""},null,null,null,null,null,null,null,{"$f":"Январь[[#This Row],[Дата]]","v":""}]
["2018-01-22",null,null,null,null,null,3150,29308,29321,{"$f":"IF(W50=\"\",Январь[[#This Row],[Показание счетчика моточасов  спецоборудования на конец дня, м/ч]],Январь[[#This Row],[Показание счетчика моточасов  спецоборудования на конец дня, м/ч]]+1)-Январь[[#This Row],[Показание счетчика моточасов спецоборудования на начало дня, м/ч]]","v":13},null,{"$f":"IF(Январь[[#This Row],[Работа спецоборудования за день, м/ч]]=\"\",Январь[[#This Row],[Остаток топлива в баке на начало дня, литр]],Январь[[#This Row],[Работа спецоборудования за день, м/ч]]*$Z$2)","v":235.95000000000002},{"$f":"Январь[[#This Row],[Выдано топливо, литр]]+U50+Январь[[#This Row],[Остаток топлива в баке на начало дня, литр]]","v":3300},{"$f":"IFERROR(ROUND((Январь[[#This Row],[Пройдено за день, км]]*0.01*$Y$2+Январь[[#This Row],[Расход топлива на работу спецоборудования, литр]]),3)+X50,)","v":235.95},{"$f":"IF(Январь[[#This Row],[Дата]]=\"\",\"\",IFERROR(ROUND(Январь[[#This Row],[Расход топлива по норме, литр]]/VLOOKUP(Январь[Дата],S$2:W$4,5),0)+Y50,))","v":0},{"$f":"IFERROR(Январь[[#This Row],[Фактический расход топлива, литр]]-Январь[[#This Row],[Расход топлива по норме, литр]],\"\")","v":-235.95},null,{"$f":"Январь[[#This Row],[Дата]]","v":"2018-01-22"},null,null,150,null,null,null,null,{"$f":"Январь[[#This Row],[Дата]]","v":"2018-01-22"}]
["",null,null,null,null,null,3300,29321,29321,{"$f":"IF(W51=\"\",Январь[[#This Row],[Показание счетчика моточасов  спецоборудования на конец дня, м/ч]],Январь[[#This Row],[Показание счетчика моточасов  спецоборудования на конец дня, м/ч]]+1)-Январь[[#This Row],[Показание счетчика моточасов спецоборудования на начало дня, м/ч]]","v":0},null,{"$f":"IF(Январь[[#This Row],[Работа спецоборудования за день, м/ч]]=\"\",Январь[[#This Row],[Остаток топлива в баке на начало дня, литр]],Январь[[#This Row],[Работа спецоборудования за день, м/ч]]*$Z$2)","v":0},{"$f":"Январь[[#This Row],[Выдано топливо, литр]]+U51+Январь[[#This Row],[Остаток топлива в баке на начало дня, литр]]","v":3300},{"$f":"IFERROR(ROUND((Январь[[#This Row],[Пройдено за день, км]]*0.01*$Y$2+Январь[[#This Row],[Расход топлива на работу спецоборудования, литр]]),3)+X51,)","v":0},{"$f":"IF(Январь[[#This Row],[Дата]]=\"\",\"\",IFERROR(ROUND(Январь[[#This Row],[Расход топлива по норме, литр]]/VLOOKUP(Январь[Дата],S$2:W$4,5),0)+Y51,))","v":""},{"$f":"IFERROR(Январь[[#This Row],[Фактический расход топлива, литр]]-Январь[[#This Row],[Расход топлива по норме, литр]],\"\")","v":""},null,{"$f":"Январь[[#This Row],[Дата]]","v":""},null,null,null,null,null,null,null,{"$f":"Январь[[#This Row],[Дата]]","v":""}]
["2018-01-23",null,null,null,null,null,3300,29321,29332,{"$f":"IF(W52=\"\",Январь[[#This Row],[Показание счетчика моточасов  спецоборудования на конец дня, м/ч]],Январь[[#This Row],[Показание счетчика моточасов  спецоборудования на конец дня, м/ч]]+1)-Январь[[#This Row],[Показание счетчика моточасов спецоборудования на начало дня, м/ч]]","v":11},null,{"$f":"IF(Январь[[#This Row],[Работа спецоборудования за день, м/ч]]=\"\",Январь[[#This Row],[Остаток топлива в баке на начало дня, литр]],Январь[[#This Row],[Работа спецоборудования за день, м/ч]]*$Z$2)","v":199.65000000000003},{"$f":"Январь[[#This Row],[Выдано топливо, литр]]+U52+Январь[[#This Row],[Остаток топлива в баке на начало дня, литр]]","v":3610},{"$f":"IFERROR(ROUND((Январь[[#This Row],[Пройдено за день, км]]*0.01*$Y$2+Январь[[#This Row],[Расход топлива на работу спецоборудования, литр]]),3)+X52,)","v":199.65},{"$f":"IF(Январь[[#This Row],[Дата]]=\"\",\"\",IFERROR(ROUND(Январь[[#This Row],[Расход топлива по норме, литр]]/VLOOKUP(Январь[Дата],S$2:W$4,5),0)+Y52,))","v":0},{"$f":"IFERROR(Январь[[#This Row],[Фактический расход топлива, литр]]-Январь[[#This Row],[Расход топлива по норме, литр]],\"\")","v":-199.65},null,{"$f":"Январь[[#This Row],[Дата]]","v":"2018-01-23"},null,null,310,null,null,null,null,{"$f":"Январь[[#This Row],[Дата]]","v":"2018-01-23"}]
["",null,null,null,null,null,3610,29332,29332,{"$f":"IF(W53=\"\",Январь[[#This Row],[Показание счетчика моточасов  спецоборудования на конец дня, м/ч]],Январь[[#This Row],[Показание счетчика моточасов  спецоборудования на конец дня, м/ч]]+1)-Январь[[#This Row],[Показание счетчика моточасов спецоборудования на начало дня, м/ч]]","v":0},null,{"$f":"IF(Январь[[#This Row],[Работа спецоборудования за день, м/ч]]=\"\",Январь[[#This Row],[Остаток топлива в баке на начало дня, литр]],Январь[[#This Row],[Работа спецоборудования за день, м/ч]]*$Z$2)","v":0},{"$f":"Январь[[#This Row],[Выдано топливо, литр]]+U53+Январь[[#This Row],[Остаток топлива в баке на начало дня, литр]]","v":3610},{"$f":"IFERROR(ROUND((Январь[[#This Row],[Пройдено за день, км]]*0.01*$Y$2+Январь[[#This Row],[Расход топлива на работу спецоборудования, литр]]),3)+X53,)","v":0},{"$f":"IF(Январь[[#This Row],[Дата]]=\"\",\"\",IFERROR(ROUND(Январь[[#This Row],[Расход топлива по норме, литр]]/VLOOKUP(Январь[Дата],S$2:W$4,5),0)+Y53,))","v":""},{"$f":"IFERROR(Январь[[#This Row],[Фактический расход топлива, литр]]-Январь[[#This Row],[Расход топлива по норме, литр]],\"\")","v":""},null,{"$f":"Январь[[#This Row],[Дата]]","v":""},null,null,null,null,null,null,null,{"$f":"Январь[[#This Row],[Дата]]","v":""}]
["2018-01-24",null,null,null,null,null,3610,29332,29343,{"$f":"IF(W54=\"\",Январь[[#This Row],[Показание счетчика моточасов  спецоборудования на конец дня, м/ч]],Январь[[#This Row],[Показание счетчика моточасов  спецоборудования на конец дня, м/ч]]+1)-Январь[[#This Row],[Показание счетчика моточасов спецоборудования на начало дня, м/ч]]","v":11},null,{"$f":"IF(Январь[[#This Row],[Работа спецоборудования за день, м/ч]]=\"\",Январь[[#This Row],[Остаток топлива в баке на начало дня, литр]],Январь[[#This Row],[Работа спецоборудования за день, м/ч]]*$Z$2)","v":199.65000000000003},{"$f":"Январь[[#This Row],[Выдано топливо, литр]]+U54+Январь[[#This Row],[Остаток топлива в баке на начало дня, литр]]","v":3610},{"$f":"IFERROR(ROUND((Январь[[#This Row],[Пройдено за день, км]]*0.01*$Y$2+Январь[[#This Row],[Расход топлива на работу спецоборудования, литр]]),3)+X54,)","v":199.65},{"$f":"IF(Январь[[#This Row],[Дата]]=\"\",\"\",IFERROR(ROUND(Январь[[#This Row],[Расход топлива по норме, литр]]/VLOOKUP(Январь[Дата],S$2:W$4,5),0)+Y54,))","v":0},{"$f":"IFERROR(Январь[[#This Row],[Фактический расход топлива, литр]]-Январь[[#This Row],[Расход топлива по норме, литр]],\"\")","v":-199.65},null,{"$f":"Январь[[#This Row],[Дата]]","v":"2018-01-24"},null,null,null,null,null,null,null,{"$f":"Январь[[#This Row],[Дата]]","v":"2018-01-24"}]
["",null,null,null,null,null,3610,29343,29343,{"$f":"IF(W55=\"\",Январь[[#This Row],[Показание счетчика моточасов  спецоборудования на конец дня, м/ч]],Январь[[#This Row],[Показание счетчика моточасов  спецоборудования на конец дня, м/ч]]+1)-Январь[[#This Row],[Показание счетчика моточасов спецоборудования на начало дня, м/ч]]","v":0},null,{"$f":"IF(Январь[[#This Row],[Работа спецоборудования за день, м/ч]]=\"\",Январь[[#This Row],[Остаток топлива в баке на начало дня, литр]],Январь[[#This Row],[Работа спецоборудования за день, м/ч]]*$Z$2)","v":0},{"$f":"Январь[[#This Row],[Выдано топливо, литр]]+U55+Январь[[#This Row],[Остаток топлива в баке на начало дня, литр]]","v":3610},{"$f":"IFERROR(ROUND((Январь[[#This Row],[Пройдено за день, км]]*0.01*$Y$2+Январь[[#This Row],[Расход топлива на работу спецоборудования, литр]]),3)+X55,)","v":0},{"$f":"IF(Январь[[#This Row],[Дата]]=\"\",\"\",IFERROR(ROUND(Январь[[#This Row],[Расход топлива по норме, литр]]/VLOOKUP(Январь[Дата],S$2:W$4,5),0)+Y55,))","v":""},{"$f":"IFERROR(Январь[[#This Row],[Фактический расход топлива, литр]]-Январь[[#This Row],[Расход топлива по норме, литр]],\"\")","v":""},null,{"$f":"Январь[[#This Row],[Дата]]","v":""},null,null,null,null,null,null,null,{"$f":"Январь[[#This Row],[Дата]]","v":""}]
["2018-01-25",null,{"$f":"IFERROR(IF(INDIRECT(TEXT(A44,\"ММММ\")&\"!A7:A37\")=\"\",\"\",IF(S44=\"\",D44,S44)),\"\")","v":""},null,null,null,3610,29343,29353,{"$f":"IF(W56=\"\",Январь[[#This Row],[Показание счетчика моточасов  спецоборудования на конец дня, м/ч]],Январь[[#This Row],[Показание счетчика моточасов  спецоборудования на конец дня, м/ч]]+1)-Январь[[#This Row],[Показание счетчика моточасов спецоборудования на начало дня, м/ч]]","v":10},null,{"$f":"IF(Январь[[#This Row],[Работа спецоборудования за день, м/ч]]=\"\",Январь[[#This Row],[Остаток топлива в баке на начало дня, литр]],Январь[[#This Row],[Работа спецоборудования за день, м/ч]]*$Z$2)","v":181.50000000000003},{"$f":"Январь[[#This Row],[Выдано топливо, литр]]+U56+Январь[[#This Row],[Остаток топлива в баке на начало дня, литр]]","v":3850},{"$f":"IFERROR(ROUND((Январь[[#This Row],[Пройдено за день, км]]*0.01*$Y$2+Январь[[#This Row],[Расход топлива на работу спецоборудования, литр]]),3)+X56,)","v":181.5},{"$f":"IF(Январь[[#This Row],[Дата]]=\"\",\"\",IFERROR(ROUND(Январь[[#This Row],[Расход топлива по норме, литр]]/VLOOKUP(Январь[Дата],S$2:W$4,5),0)+Y56,))","v":0},{"$f":"IFERROR(Январь[[#This Row],[Фактический расход топлива, литр]]-Январь[[#This Row],[Расход топлива по норме, литр]],\"\")","v":-181.5},null,{"$f":"Январь[[#This Row],[Дата]]","v":"2018-01-25"},null,null,240,null,null,null,null,{"$f":"Январь[[#This Row],[Дата]]","v":"2018-01-25"}]
["",null,"",null,null,null,3850,29353,29353,{"$f":"IF(W57=\"\",Январь[[#This Row],[Показание счетчика моточасов  спецоборудования на конец дня, м/ч]],Январь[[#This Row],[Показание счетчика моточасов  спецоборудования на конец дня, м/ч]]+1)-Январь[[#This Row],[Показание счетчика моточасов спецоборудования на начало дня, м/ч]]","v":0},null,{"$f":"IF(Январь[[#This Row],[Работа спецоборудования за день, м/ч]]=\"\",Январь[[#This Row],[Остаток топлива в баке на начало дня, литр]],Январь[[#This Row],[Работа спецоборудования за день, м/ч]]*$Z$2)","v":0},{"$f":"Январь[[#This Row],[Выдано топливо, литр]]+U57+Январь[[#This Row],[Остаток топлива в баке на начало дня, литр]]","v":3850},{"$f":"IFERROR(ROUND((Январь[[#This Row],[Пройдено за день, км]]*0.01*$Y$2+Январь[[#This Row],[Расход топлива на работу спецоборудования, литр]]),3)+X57,)","v":0},{"$f":"IF(Январь[[#This Row],[Дата]]=\"\",\"\",IFERROR(ROUND(Январь[[#This Row],[Расход топлива по норме, литр]]/VLOOKUP(Январь[Дата],S$2:W$4,5),0)+Y57,))","v":""},{"$f":"IFERROR(Январь[[#This Row],[Фактический расход топлива, литр]]-Январь[[#This Row],[Расход топлива по норме, литр]],\"\")","v":""},null,{"$f":"Январь[[#This Row],[Дата]]","v":""},null,null,null,null,null,null,null,{"$f":"Январь[[#This Row],[Дата]]","v":""}]
["2018-01-26",null,"",null,null,null,3850,29353,29361,{"$f":"IF(W58=\"\",Январь[[#This Row],[Показание счетчика моточасов  спецоборудования на конец дня, м/ч]],Январь[[#This Row],[Показание счетчика моточасов  спецоборудования на конец дня, м/ч]]+1)-Январь[[#This Row],[Показание счетчика моточасов спецоборудования на начало дня, м/ч]]","v":8},null,{"$f":"IF(Январь[[#This Row],[Работа спецоборудования за день, м/ч]]=\"\",Январь[[#This Row],[Остаток топлива в баке на начало дня, литр]],Январь[[#This Row],[Работа спецоборудования за день, м/ч]]*$Z$2)","v":145.20000000000002},{"$f":"Январь[[#This Row],[Выдано топливо, литр]]+U58+Январь[[#This Row],[Остаток топлива в баке на начало дня, литр]]","v":3850},{"$f":"IFERROR(ROUND((Январь[[#This Row],[Пройдено за день, км]]*0.01*$Y$2+Январь[[#This Row],[Расход топлива на работу спецоборудования, литр]]),3)+X58,)","v":145.19999999999999},{"$f":"IF(Январь[[#This Row],[Дата]]=\"\",\"\",IFERROR(ROUND(Январь[[#This Row],[Расход топлива по норме, литр]]/VLOOKUP(Январь[Дата],S$2:W$4,5),0)+Y58,))","v":0},{"$f":"IFERROR(Январь[[#This Row],[Фактический расход топлива, литр]]-Январь[[#This Row],[Расход топлива по норме, литр]],\"\")","v":-145.19999999999999},null,{"$f":"Январь[[#This Row],[Дата]]","v":"2018-01-26"},null,null,null,null,null,null,null,{"$f":"Январь[[#This Row],[Дата]]","v":"2018-01-26"}]
["",null,null,null,null,null,3850,29361,29361,{"$f":"IF(W59=\"\",Январь[[#This Row],[Показание счетчика моточасов  спецоборудования на конец дня, м/ч]],Январь[[#This Row],[Показание счетчика моточасов  спецоборудования на конец дня, м/ч]]+1)-Январь[[#This Row],[Показание счетчика моточасов спецоборудования на начало дня, м/ч]]","v":0},null,{"$f":"IF(Январь[[#This Row],[Работа спецоборудования за день, м/ч]]=\"\",Январь[[#This Row],[Остаток топлива в баке на начало дня, литр]],Январь[[#This Row],[Работа спецоборудования за день, м/ч]]*$Z$2)","v":0},{"$f":"Январь[[#This Row],[Выдано топливо, литр]]+U59+Январь[[#This Row],[Остаток топлива в баке на начало дня, литр]]","v":3850},{"$f":"IFERROR(ROUND((Январь[[#This Row],[Пройдено за день, км]]*0.01*$Y$2+Январь[[#This Row],[Расход топлива на работу спецоборудования, литр]]),3)+X59,)","v":0},{"$f":"IF(Январь[[#This Row],[Дата]]=\"\",\"\",IFERROR(ROUND(Январь[[#This Row],[Расход топлива по норме, литр]]/VLOOKUP(Январь[Дата],S$2:W$4,5),0)+Y59,))","v":""},{"$f":"IFERROR(Январь[[#This Row],[Фактический расход топлива, литр]]-Январь[[#This Row],[Расход топлива по норме, литр]],\"\")","v":""},null,{"$f":"Январь[[#This Row],[Дата]]","v":""},null,null,null,null,null,null,null,{"$f":"Январь[[#This Row],[Дата]]","v":""}]
["2018-01-27",null,null,null,null,null,3850,29361,29372,{"$f":"IF(W60=\"\",Январь[[#This Row],[Показание счетчика моточасов  спецоборудования на конец дня, м/ч]],Январь[[#This Row],[Показание счетчика моточасов  спецоборудования на конец дня, м/ч]]+1)-Январь[[#This Row],[Показание счетчика моточасов спецоборудования на начало дня, м/ч]]","v":11},null,{"$f":"IF(Январь[[#This Row],[Работа спецоборудования за день, м/ч]]=\"\",Январь[[#This Row],[Остаток топлива в баке на начало дня, литр]],Январь[[#This Row],[Работа спецоборудования за день, м/ч]]*$Z$2)","v":199.65000000000003},{"$f":"Январь[[#This Row],[Выдано топливо, литр]]+U60+Январь[[#This Row],[Остаток топлива в баке на начало дня, литр]]","v":4120},{"$f":"IFERROR(ROUND((Январь[[#This Row],[Пройдено за день, км]]*0.01*$Y$2+Январь[[#This Row],[Расход топлива на работу спецоборудования, литр]]),3)+X60,)","v":199.65},{"$f":"IF(Январь[[#This Row],[Дата]]=\"\",\"\",IFERROR(ROUND(Январь[[#This Row],[Расход топлива по норме, литр]]/VLOOKUP(Январь[Дата],S$2:W$4,5),0)+Y60,))","v":0},{"$f":"IFERROR(Январь[[#This Row],[Фактический расход топлива, литр]]-Январь[[#This Row],[Расход топлива по норме, литр]],\"\")","v":-199.65},null,{"$f":"Январь[[#This Row],[Дата]]","v":"2018-01-27"},null,null,270,null,null,null,null,{"$f":"Январь[[#This Row],[Дата]]","v":"2018-01-27"}]
["",null,null,null,null,null,4120,29372,29372,{"$f":"IF(W61=\"\",Январь[[#This Row],[Показание счетчика моточасов  спецоборудования на конец дня, м/ч]],Январь[[#This Row],[Показание счетчика моточасов  спецоборудования на конец дня, м/ч]]+1)-Январь[[#This Row],[Показание счетчика моточасов спецоборудования на начало дня, м/ч]]","v":0},null,{"$f":"IF(Январь[[#This Row],[Работа спецоборудования за день, м/ч]]=\"\",Январь[[#This Row],[Остаток топлива в баке на начало дня, литр]],Январь[[#This Row],[Работа спецоборудования за день, м/ч]]*$Z$2)","v":0},{"$f":"Январь[[#This Row],[Выдано топливо, литр]]+U61+Январь[[#This Row],[Остаток топлива в баке на начало дня, литр]]","v":4120},{"$f":"IFERROR(ROUND((Январь[[#This Row],[Пройдено за день, км]]*0.01*$Y$2+Январь[[#This Row],[Расход топлива на работу спецоборудования, литр]]),3)+X61,)","v":0},{"$f":"IF(Январь[[#This Row],[Дата]]=\"\",\"\",IFERROR(ROUND(Январь[[#This Row],[Расход топлива по норме, литр]]/VLOOKUP(Январь[Дата],S$2:W$4,5),0)+Y61,))","v":""},{"$f":"IFERROR(Январь[[#This Row],[Фактический расход топлива, литр]]-Январь[[#This Row],[Расход топлива по норме, литр]],\"\")","v":""},null,{"$f":"Январь[[#This Row],[Дата]]","v":""},null,null,null,null,null,null,null,{"$f":"Январь[[#This Row],[Дата]]","v":""}]
["2018-01-28",null,null,null,null,null,4120,29372,29382,{"$f":"IF(W62=\"\",Январь[[#This Row],[Показание счетчика моточасов  спецоборудования на конец дня, м/ч]],Январь[[#This Row],[Показание счетчика моточасов  спецоборудования на конец дня, м/ч]]+1)-Январь[[#This Row],[Показание счетчика моточасов спецоборудования на начало дня, м/ч]]","v":10},null,{"$f":"IF(Январь[[#This Row],[Работа спецоборудования за день, м/ч]]=\"\",Январь[[#This Row],[Остаток топлива в баке на начало дня, литр]],Январь[[#This Row],[Работа спецоборудования за день, м/ч]]*$Z$2)","v":181.50000000000003},{"$f":"Январь[[#This Row],[Выдано топливо, литр]]+U62+Январь[[#This Row],[Остаток топлива в баке на начало дня, литр]]","v":4370},{"$f":"IFERROR(ROUND((Январь[[#This Row],[Пройдено за день, км]]*0.01*$Y$2+Январь[[#This Row],[Расход топлива на работу спецоборудования, литр]]),3)+X62,)","v":181.5},{"$f":"IF(Январь[[#This Row],[Дата]]=\"\",\"\",IFERROR(ROUND(Январь[[#This Row],[Расход топлива по норме, литр]]/VLOOKUP(Январь[Дата],S$2:W$4,5),0)+Y62,))","v":0},{"$f":"IFERROR(Январь[[#This Row],[Фактический расход топлива, литр]]-Январь[[#This Row],[Расход топлива по норме, литр]],\"\")","v":-181.5},null,{"$f":"Январь[[#This Row],[Дата]]","v":"2018-01-28"},null,null,250,null,null,null,null,{"$f":"Январь[[#This Row],[Дата]]","v":"2018-01-28"}]
["",null,null,null,null,null,4370,29382,29382,{"$f":"IF(W63=\"\",Январь[[#This Row],[Показание счетчика моточасов  спецоборудования на конец дня, м/ч]],Январь[[#This Row],[Показание счетчика моточасов  спецоборудования на конец дня, м/ч]]+1)-Январь[[#This Row],[Показание счетчика моточасов спецоборудования на начало дня, м/ч]]","v":0},null,{"$f":"IF(Январь[[#This Row],[Работа спецоборудования за день, м/ч]]=\"\",Январь[[#This Row],[Остаток топлива в баке на начало дня, литр]],Январь[[#This Row],[Работа спецоборудования за день, м/ч]]*$Z$2)","v":0},{"$f":"Январь[[#This Row],[Выдано топливо, литр]]+U63+Январь[[#This Row],[Остаток топлива в баке на начало дня, литр]]","v":4370},{"$f":"IFERROR(ROUND((Январь[[#This Row],[Пройдено за день, км]]*0.01*$Y$2+Январь[[#This Row],[Расход топлива на работу спецоборудования, литр]]),3)+X63,)","v":0},{"$f":"IF(Январь[[#This Row],[Дата]]=\"\",\"\",IFERROR(ROUND(Январь[[#This Row],[Расход топлива по норме, литр]]/VLOOKUP(Январь[Дата],S$2:W$4,5),0)+Y63,))","v":""},{"$f":"IFERROR(Январь[[#This Row],[Фактический расход топлива, литр]]-Январь[[#This Row],[Расход топлива по норме, литр]],\"\")","v":""},null,{"$f":"Январь[[#This Row],[Дата]]","v":""},null,null,null,null,null,null,null,{"$f":"Январь[[#This Row],[Дата]]","v":""}]
["2018-01-29",null,null,null,null,null,4370,29382,29393,{"$f":"IF(W64=\"\",Январь[[#This Row],[Показание счетчика моточасов  спецоборудования на конец дня, м/ч]],Январь[[#This Row],[Показание счетчика моточасов  спецоборудования на конец дня, м/ч]]+1)-Январь[[#This Row],[Показание счетчика моточасов спецоборудования на начало дня, м/ч]]","v":11},null,{"$f":"IF(Январь[[#This Row],[Работа спецоборудования за день, м/ч]]=\"\",Январь[[#This Row],[Остаток топлива в баке на начало дня, литр]],Январь[[#This Row],[Работа спецоборудования за день, м/ч]]*$Z$2)","v":199.65000000000003},{"$f":"Январь[[#This Row],[Выдано топливо, литр]]+U64+Январь[[#This Row],[Остаток топлива в баке на начало дня, литр]]","v":4600},{"$f":"IFERROR(ROUND((Январь[[#This Row],[Пройдено за день, км]]*0.01*$Y$2+Январь[[#This Row],[Расход топлива на работу спецоборудования, литр]]),3)+X64,)","v":199.65},{"$f":"IF(Январь[[#This Row],[Дата]]=\"\",\"\",IFERROR(ROUND(Январь[[#This Row],[Расход топлива по норме, литр]]/VLOOKUP(Январь[Дата],S$2:W$4,5),0)+Y64,))","v":0},{"$f":"IFERROR(Январь[[#This Row],[Фактический расход топлива, литр]]-Январь[[#This Row],[Расход топлива по норме, литр]],\"\")","v":-199.65},null,{"$f":"Январь[[#This Row],[Дата]]","v":"2018-01-29"},null,null,230,null,null,null,null,{"$f":"Январь[[#This Row],[Дата]]","v":"2018-01-29"}]
["",null,null,null,null,null,4600,29393,29393,{"$f":"IF(W65=\"\",Январь[[#This Row],[Показание счетчика моточасов  спецоборудования на конец дня, м/ч]],Январь[[#This Row],[Показание счетчика моточасов  спецоборудования на конец дня, м/ч]]+1)-Январь[[#This Row],[Показание счетчика моточасов спецоборудования на начало дня, м/ч]]","v":0},null,{"$f":"IF(Январь[[#This Row],[Работа спецоборудования за день, м/ч]]=\"\",Январь[[#This Row],[Остаток топлива в баке на начало дня, литр]],Январь[[#This Row],[Работа спецоборудования за день, м/ч]]*$Z$2)","v":0},{"$f":"Январь[[#This Row],[Выдано топливо, литр]]+U65+Январь[[#This Row],[Остаток топлива в баке на начало дня, литр]]","v":4600},{"$f":"IFERROR(ROUND((Январь[[#This Row],[Пройдено за день, км]]*0.01*$Y$2+Январь[[#This Row],[Расход топлива на работу спецоборудования, литр]]),3)+X65,)","v":0},{"$f":"IF(Январь[[#This Row],[Дата]]=\"\",\"\",IFERROR(ROUND(Январь[[#This Row],[Расход топлива по норме, литр]]/VLOOKUP(Январь[Дата],S$2:W$4,5),0)+Y65,))","v":""},{"$f":"IFERROR(Январь[[#This Row],[Фактический расход топлива, литр]]-Январь[[#This Row],[Расход топлива по норме, литр]],\"\")","v":""},null,{"$f":"Январь[[#This Row],[Дата]]","v":""},null,null,null,null,null,null,null,{"$f":"Январь[[#This Row],[Дата]]","v":""}]
["2018-01-30",null,null,null,null,null,4600,29393,29404,{"$f":"IF(W66=\"\",Январь[[#This Row],[Показание счетчика моточасов  спецоборудования на конец дня, м/ч]],Январь[[#This Row],[Показание счетчика моточасов  спецоборудования на конец дня, м/ч]]+1)-Январь[[#This Row],[Показание счетчика моточасов спецоборудования на начало дня, м/ч]]","v":11},null,{"$f":"IF(Январь[[#This Row],[Работа спецоборудования за день, м/ч]]=\"\",Январь[[#This Row],[Остаток топлива в баке на начало дня, литр]],Январь[[#This Row],[Работа спецоборудования за день, м/ч]]*$Z$2)","v":199.65000000000003},{"$f":"Январь[[#This Row],[Выдано топливо, литр]]+U66+Январь[[#This Row],[Остаток топлива в баке на начало дня, литр]]","v":4800},{"$f":"IFERROR(ROUND((Январь[[#This Row],[Пройдено за день, км]]*0.01*$Y$2+Январь[[#This Row],[Расход топлива на работу спецоборудования, литр]]),3)+X66,)","v":199.65},{"$f":"IF(Январь[[#This Row],[Дата]]=\"\",\"\",IFERROR(ROUND(Январь[[#This Row],[Расход топлива по норме, литр]]/VLOOKUP(Январь[Дата],S$2:W$4,5),0)+Y66,))","v":0},{"$f":"IFERROR(Январь[[#This Row],[Фактический расход топлива, литр]]-Январь[[#This Row],[Расход топлива по норме, литр]],\"\")","v":-199.65},null,{"$f":"Январь[[#This Row],[Дата]]","v":"2018-01-30"},null,null,200,null,null,null,null,{"$f":"Январь[[#This Row],[Дата]]","v":"2018-01-30"}]
["",null,{"$f":"IFERROR(IF(INDIRECT(TEXT(A58,\"ММММ\")&\"!A7:A37\")=\"\",\"\",IF(S58=\"\",D58,S58)),\"\")","v":""},null,null,null,4800,29404,29404,{"$f":"IF(W67=\"\",Январь[[#This Row],[Показание счетчика моточасов  спецоборудования на конец дня, м/ч]],Январь[[#This Row],[Показание счетчика моточасов  спецоборудования на конец дня, м/ч]]+1)-Январь[[#This Row],[Показание счетчика моточасов спецоборудования на начало дня, м/ч]]","v":0},null,{"$f":"IF(Январь[[#This Row],[Работа спецоборудования за день, м/ч]]=\"\",Январь[[#This Row],[Остаток топлива в баке на начало дня, литр]],Январь[[#This Row],[Работа спецоборудования за день, м/ч]]*$Z$2)","v":0},{"$f":"Январь[[#This Row],[Выдано топливо, литр]]+U67+Январь[[#This Row],[Остаток топлива в баке на начало дня, литр]]","v":4800},{"$f":"IFERROR(ROUND((Январь[[#This Row],[Пройдено за день, км]]*0.01*$Y$2+Январь[[#This Row],[Расход топлива на работу спецоборудования, литр]]),3)+X67,)","v":0},{"$f":"IF(Январь[[#This Row],[Дата]]=\"\",\"\",IFERROR(ROUND(Январь[[#This Row],[Расход топлива по норме, литр]]/VLOOKUP(Январь[Дата],S$2:W$4,5),0)+Y67,))","v":""},{"$f":"IFERROR(Январь[[#This Row],[Фактический расход топлива, литр]]-Январь[[#This Row],[Расход топлива по норме, литр]],\"\")","v":""},null,{"$f":"Январь[[#This Row],[Дата]]","v":""},null,null,null,null,null,null,null,{"$f":"Январь[[#This Row],[Дата]]","v":""}]
["2018-01-31",null,{"$f":"IFERROR(IF(INDIRECT(TEXT(#REF!,\"ММММ\")&\"!A7:A37\")=\"\",\"\",IF(#REF!=\"\",#REF!,#REF!)),\"\")","v":""},null,null,null,4800,29404,29409,{"$f":"IF(W68=\"\",Январь[[#This Row],[Показание счетчика моточасов  спецоборудования на конец дня, м/ч]],Январь[[#This Row],[Показание счетчика моточасов  спецоборудования на конец дня, м/ч]]+1)-Январь[[#This Row],[Показание счетчика моточасов спецоборудования на начало дня, м/ч]]","v":5},null,{"$f":"IF(Январь[[#This Row],[Работа спецоборудования за день, м/ч]]=\"\",Январь[[#This Row],[Остаток топлива в баке на начало дня, литр]],Январь[[#This Row],[Работа спецоборудования за день, м/ч]]*$Z$2)","v":90.750000000000014},{"$f":"Январь[[#This Row],[Выдано топливо, литр]]+U68+Январь[[#This Row],[Остаток топлива в баке на начало дня, литр]]","v":4980},{"$f":"IFERROR(ROUND((Январь[[#This Row],[Пройдено за день, км]]*0.01*$Y$2+Январь[[#This Row],[Расход топлива на работу спецоборудования, литр]]),3)+X68,)","v":90.75},{"$f":"IF(Январь[[#This Row],[Дата]]=\"\",\"\",IFERROR(ROUND(Январь[[#This Row],[Расход топлива по норме, литр]]/VLOOKUP(Январь[Дата],S$2:W$4,5),0)+Y68,))","v":0},{"$f":"IFERROR(Январь[[#This Row],[Фактический расход топлива, литр]]-Январь[[#This Row],[Расход топлива по норме, литр]],\"\")","v":-90.75},null,{"$f":"Январь[[#This Row],[Дата]]","v":"2018-01-31"},null,null,180,null,null,null,null,{"$f":"Январь[[#This Row],[Дата]]","v":"2018-01-31"}]
[{"$f":"IF(ISEVEN(ROW(A63)),IFERROR(--(ROW(A63)/2&P$1&I$4),\"\"),\"\")","v":""},null,null,null,null,null,4980,29409,29416,{"$f":"IF(W70=\"\",Январь[[#This Row],[Показание счетчика моточасов  спецоборудования на конец дня, м/ч]],Январь[[#This Row],[Показание счетчика моточасов  спецоборудования на конец дня, м/ч]]+1)-Январь[[#This Row],[Показание счетчика моточасов спецоборудования на начало дня, м/ч]]","v":8},null,{"$f":"IF(Январь[[#This Row],[Работа спецоборудования за день, м/ч]]=\"\",Январь[[#This Row],[Остаток топлива в баке на начало дня, литр]],Январь[[#This Row],[Работа спецоборудования за день, м/ч]]*$Z$2)","v":145.20000000000002},{"$f":"Январь[[#This Row],[Выдано топливо, литр]]+U70+Январь[[#This Row],[Остаток топлива в баке на начало дня, литр]]","v":7280},{"$f":"IFERROR(ROUND((Январь[[#This Row],[Пройдено за день, км]]*0.01*$Y$2+Январь[[#This Row],[Расход топлива на работу спецоборудования, литр]]),3)+X70,)","v":145.19999999999999},{"$f":"IF(Январь[[#This Row],[Дата]]=\"\",\"\",IFERROR(ROUND(Январь[[#This Row],[Расход топлива по норме, литр]]/VLOOKUP(Январь[Дата],S$2:W$4,5),0)+Y69,))","v":""},{"$f":"IFERROR(Январь[[#This Row],[Фактический расход топлива, литр]]-Январь[[#This Row],[Расход топлива по норме, литр]],\"\")","v":""},null,{"$f":"Январь[[#This Row],[Дата]]","v":""},null,null,null,null,null,null,null,{"$f":"Январь[[#This Row],[Дата]]","v":""}]
["Итог",null,null,null,{"$f":"SUBTOTAL(109,Январь[Пройдено за день, км])","v":0},{"$f":"SUBTOTAL(109,Январь[Выдано топливо, литр])","v":0},null,null,null,{"$f":"SUBTOTAL(109,Январь[Работа спецоборудования за день, м/ч])","v":247},{"$f":"SUBTOTAL(109,Январь[Количество ходок])","v":0},{"$f":"SUBTOTAL(109,Январь[Расход топлива на работу спецоборудования, литр])","v":4483.05},null,{"$f":"SUBTOTAL(109,Январь[Расход топлива по норме, литр])","v":4483.05},{"$f":"SUBTOTAL(109,Январь[Фактический расход топлива, литр])","v":2300},{"$f":"SUBTOTAL(109,Январь[Отклонение от нормы (Перерасход(+), экономия(-)), литр])","v":-1674.85},null,"1-я пол.",{"$f":"SUMIFS(S$7:S$69,INDIRECT(\"Январь[Дата]\"),\">=\"&$S$2,INDIRECT(\"Январь[Дата]\"),\"<=\"&$T$2)+IF(MONTH($T$2)<>MONTH($S$2),INDIRECT(TEXT($A$7-1,\"ММММ\")&\"!F38\")-SUM(INDIRECT(TEXT($A$7-1,\"ММММ\")&\"!V1:V2\")))","v":0},0,2300,0,0,0,0,"1-я пол."]
[null,null,null,null,null,null,null,null,null,null,{"$f":"SUMIFS(K7:K69,A7:A69,\">=\"&$S$2,A7:A69,\"<=\"&$T$2)","v":0},null,null,null,null,null,null,"2-я пол.",{"$f":"SUMIFS(S$7:S$69,INDIRECT(\"Январь[Дата]\"),\">=\"&$S$3,INDIRECT(\"Январь[Дата]\"),\"<=\"&$T$3)+IF(MONTH($T$3)<>MONTH($S$3),INDIRECT(TEXT($A$7-1,\"ММММ\")&\"!F38\")-SUM(INDIRECT(TEXT($A$7-1,\"ММММ\")&\"!V1:V2\")))","v":{"$error":"#VALUE!"}},{"$error":"#VALUE!"},{"$error":"#VALUE!"},{"$error":"#VALUE!"},{"$error":"#VALUE!"},{"$error":"#VALUE!"},{"$error":"#VALUE!"},"2-я пол."]
[null,null,null,null,null,null,null,null,null,null,{"$f":"SUMIFS(K7:K69,A7:A69,\">=\"&$S$3,A7:A69,\"<=\"&$T$3)","v":0}]

{"sheet":"Февраль","index":1,"n_rows":40,"n_cols":26,"rows_kept":40,"cut":false,"hidden":false,"merged":[[1,0,1,15],[2,0,2,15],[3,14,3,15]]}
[null,null,null,null,null,null,null,null,null,null,null,null,null,null,null,"Февраль",null,null,null,null,null,null,null,"Экономия","Базовая норма расхода на 100 км","Базовая норма расхода на 1 мото/час"]
["Общество с ограниченной ответственностью  \"Втормет Царицыно\"",null,null,null,null,null,null,null,null,null,null,null,null,null,null,null,null,"1-я пол.",{"$f":"INDIRECT(TEXT(A7-1,\"ММММ\")&\"!T3\")+1","v":{"$error":"#VALUE!"}},"2018-02-15",{"$f":"ТС!E5","v":350},{"$f":"SUMIFS(Февраль[Выдано топливо, литр],Февраль[Дата],\">=\"&$S$2,Февраль[Дата],\"<=\"&$T$2)+IF(MONTH(T2)<>MONTH(S2),INDIRECT(TEXT(A7-1,\"ММММ\")&\"!F38\")-SUM(INDIRECT(TEXT(A7-1,\"ММММ\")&\"!V1:V2\")))+SUMIFS($U$7:$U$37,Февраль[Дата],\">=\"&$S$2,Февраль[Дата],\"<=\"&$T$2)+IF(MONTH(T2)<>MONTH(S2),INDIRECT(TEXT(A7-1,\"ММММ\")&\"!F38\")-SUM(INDIRECT(TEXT(A7-1,\"ММММ\")&\"!V1:V2\")))","v":{"$error":"#VALUE!"}},{"$f":"IF(V2=0,0,(SUMIFS(N7:N37,A7:A37,\">=\"&S2,A7:A37,\"<=\"&T2)+SUMIFS(INDIRECT(TEXT(A7-1,\"ММММ\")&\"!N7:N37\"),INDIRECT(TEXT(A7-1,\"ММММ\")&\"!A7:A37\"),\">=\"&S2))/(V2-U2+IF(MONTH(T2)=MONTH(S2),G7,INDEX(INDIRECT(TEXT(A7-1,\"ММММ\")&\"!G7:G37\"),DAY(S2)))))","v":{"$error":"#VALUE!"}},{"$f":"SUMIFS(Февраль[Отклонение от нормы (Перерасход(+), экономия(-)), литр],Февраль[Дата],\">=\"&$S$2,Февраль[Дата],\"<=\"&$T$2)","v":0},{"$f":"IF(Y4=\"Зима\",VLOOKUP(Z4,Расчет[[Номер гос.регистрации / Заводской номер]:[Итога норма а/м \"ЛЕТО\"]],8,FALSE),VLOOKUP(Z4,Расчет[[Номер гос.регистрации / Заводской номер]:[Итога норма а/м \"ЛЕТО\"]],9,FALSE))","v":0},{"$f":"IF(Y4=\"Зима\",VLOOKUP(Z4,Расчет[[Номер гос.регистрации / Заводской номер]:[Итога норма а/м \"ЛЕТО\"]],13,FALSE),VLOOKUP(Z4,Расчет[[Номер гос.регистрации / Заводской номер]:[Итога норма а/м \"ЛЕТО\"]],14,FALSE))","v":18.150000000000002}]
["Отчет водителя ломовоза с манипулятором",null,null,null,null,null,null,null,null,null,null,null,null,null,null,null,null,"2-я пол.",{"$f":"T2+1","v":"2018-02-16"},{"$f":"INDEX(Февраль[Дата],COUNT(Февраль[Дата]))-T1","v":"2018-02-28"},{"$f":"ТС!E6","v":350},{"$f":"SUMIFS(Февраль[Выдано топливо, литр],Февраль[Дата],\">=\"&$S$3,Февраль[Дата],\"<=\"&$T$3)+IF(MONTH(T3)<>MONTH(S3),INDIRECT(TEXT(A7-1,\"ММММ\")&\"!F38\")-SUM(INDIRECT(TEXT(A7-1,\"ММММ\")&\"!V1:V2\")))+SUMIFS($U$7:$U$37,Февраль[Дата],\">=\"&$S$3,Февраль[Дата],\"<=\"&$T$3)+IF(MONTH(T3)<>MONTH(S3),INDIRECT(TEXT(A7-1,\"ММММ\")&\"!F38\")-SUM(INDIRECT(TEXT(A7-1,\"ММММ\")&\"!V1:V2\")))","v":{"$error":"#REF!"}},{"$f":"IF(V3=0,0,(SUMIFS(N7:N37,A7:A37,\">=\"&S3,A7:A37,\"<=\"&T3)+SUMIFS(INDIRECT(TEXT(A7-1,\"ММММ\")&\"!N7:N37\"),INDIRECT(TEXT(A7-1,\"ММММ\")&\"!A7:A37\"),\">=\"&S3))/(V3-U3+IF(MONTH(T3)=MONTH(S3),G7,INDEX(INDIRECT(TEXT(A7-1,\"ММММ\")&\"!G7:G37\"),DAY(S3)))))","v":{"$error":"#REF!"}},{"$f":"SUMIFS(Февраль[Отклонение от нормы (Перерасход(+), экономия(-)), литр],Февраль[Дата],\">=\"&$S$3,Февраль[Дата],\"<=\"&$T$3)","v":-2559.1499999999996}]
[null,null,null,null,null,null,null,"за",2018,null,null,null,null,null,{"$f":"Январь!O4","v":"Фукс 350 c"},null,null,null,{"$f":"IF(INDEX(Февраль[Дата],COUNT(Февраль[Дата]))=T3,\"\",T3+1)","v":""},null,null,null,{"$f":"IFERROR(IF(S4=\"\",\"\",INDIRECT(TEXT(A7+40,\"ММММ\")&\"!W2\")),)","v":""},null,"Зима","Норма 1"]
[]
["Дата","ФИО водителя","Показание одометра машины на начало дня, км","Показание одометра машины на конец дня, км","Пройдено за день, км","Выдано топливо, литр","Остаток топлива в баке на начало дня, литр","Показание счетчика моточасов спецоборудования на начало дня, м/ч","Показание счетчика моточасов  спецоборудования на конец дня, м/ч","Работа спецоборудования за день, м/ч","Количество ходок","Расход топлива на работу спецоборудования, литр","Остаток топлива в баке на конец дня, литр","Расход топлива по норме, литр","Фактический расход топлива, литр","Отклонение от нормы (Перерасход(+), экономия(-)), литр",null,"Дата","Обнуление одометра, км","Пройдено за день, км","Выдано топливо, литр","Обнуление счетчика моточасов спецоборудования, м/ч","Работа спецоборудования за день, м/ч","Расход топлива по норме, литр","Фактический расход топлива, литр","Дата"]
[{"$f":"IFERROR(DATEVALUE((COUNT($A$6:A6)+1)&$P$1&$I$4),\"\")","v":"2018-02-01"},"Шумов С.А.",{"$f":"INDEX(Январь!D7:D69,COUNT(Январь!D7:D69))","v":0},null,{"$f":"IFERROR(Февраль[[#This Row],[Показание одометра машины на конец дня, км]]-Февраль[[#This Row],[Показание одометра машины на начало дня, км]]+T7,\"\")","v":0},{"$f":"IF(Февраль[[#This Row],[Дата]]=\"\",\"\",SUMPRODUCT([1]Февраль!$E$4:$E$153*([1]Февраль!$F$4:$F$153=$O$4)*([1]Февраль!$D$4:$D$153=Январь[[#This Row],[Дата]])))","v":{"$error":"#REF!"}},{"$f":"U2","v":350},{"$f":"INDEX(Январь!I7:I68,COUNT(Январь!I7:I68))","v":29409},29425,{"$f":"IFERROR(IF(W7=\"\",Февраль[[#This Row],[Показание счетчика моточасов  спецоборудования на конец дня, м/ч]],Февраль[[#This Row],[Показание счетчика моточасов  спецоборудования на конец дня, м/ч]]+1)-Февраль[[#This Row],[Показание счетчика моточасов спецоборудования на начало дня, м/ч]],\"\")","v":16},null,{"$f":"IF(Февраль[[#This Row],[Работа спецоборудования за день, м/ч]]=\"\",\"\",Февраль[[#This Row],[Работа спецоборудования за день, м/ч]]*$Z$2)","v":290.40000000000003},{"$f":"IFERROR(IF(VLOOKUP(Февраль[Дата],S$2:U$3,3),IFERROR(IF(U7=\"\",Февраль[[#This Row],[Выдано топливо, литр]],Февраль[[#This Row],[Выдано топливо, литр]]+U7)+Февраль[[#This Row],[Остаток топлива в баке на начало дня, литр]]-Февраль[[#This Row],[Фактический расход топлива, литр]],\"\"),\"\"),\"\")","v":""},{"$f":"IFERROR(ROUND((Февраль[[#This Row],[Пройдено за день, км]]*0.01*$Y$2+Февраль[[#This Row],[Расход топлива на работу спецоборудования, литр]]),3)+X7,\"\")","v":290.39999999999998},{"$f":"IF(Февраль[[#This Row],[Дата]]=\"\",\"\",IFERROR(ROUND(Февраль[[#This Row],[Расход топлива по норме, литр]]/VLOOKUP(Февраль[Дата],S$2:W$4,5),0)+Y7,))","v":0},{"$f":"IFERROR(Февраль[[#This Row],[Фактический расход топлива, литр]]-Февраль[[#This Row],[Расход топлива по норме, литр]],\"\")","v":-290.39999999999998},null,{"$f":"Февраль[[#This Row],[Дата]]","v":"2018-02-01"},null,null,null,null,null,null,null,{"$f":"Февраль[[#This Row],[Дата]]","v":"2018-02-01"}]
[{"$f":"IFERROR(DATEVALUE((COUNT($A$6:A7)+1)&$P$1&$I$4),\"\")","v":"2018-02-02"},"Шумов С.А.",{"$f":"IFERROR(IF(INDIRECT(TEXT(A7-1,\"ММММ\")&\"!A7:A37\")=\"\",\"\",IF(S7=\"\",D7,S7)),\"\")","v":0},null,{"$f":"IFERROR(Февраль[[#This Row],[Показание одометра машины на конец дня, км]]-Февраль[[#This Row],[Показание одометра машины на начало дня, км]]+T8,\"\")","v":0},{"$f":"IF(Февраль[[#This Row],[Дата]]=\"\",\"\",SUMPRODUCT([1]Февраль!$E$4:$E$153*([1]Февраль!$F$4:$F$153=$O$4)*([1]Февраль!$D$4:$D$153=Январь[[#This Row],[Дата]])))","v":{"$error":"#REF!"}},{"$f":"IF(Февраль[[#This Row],[Дата]]=\"\",\"\",M7)","v":""},{"$f":"IFERROR(IF(INDIRECT(TEXT(A7-1,\"ММММ\")&\"!A7:A37\")=\"\",\"\",IF(V7=\"\",I7,V7)),\"\")","v":29425},29434,{"$f":"IFERROR(IF(W8=\"\",Февраль[[#This Row],[Показание счетчика моточасов  спецоборудования на конец дня, м/ч]],Февраль[[#This Row],[Показание счетчика моточасов  спецоборудования на конец дня, м/ч]]+1)-Февраль[[#This Row],[Показание счетчика моточасов спецоборудования на начало дня, м/ч]],\"\")","v":9},null,{"$f":"IF(Февраль[[#This Row],[Работа спецоборудования за день, м/ч]]=\"\",\"\",Февраль[[#This Row],[Работа спецоборудования за день, м/ч]]*$Z$2)","v":163.35000000000002},{"$f":"IFERROR(IF(VLOOKUP(Февраль[Дата],S$2:U$3,3),IFERROR(IF(U8=\"\",Февраль[[#This Row],[Выдано топливо, литр]],Февраль[[#This Row],[Выдано топливо, литр]]+U8)+Февраль[[#This Row],[Остаток топлива в баке на начало дня, литр]]-Февраль[[#This Row],[Фактический расход топлива, литр]],\"\"),\"\"),\"\")","v":""},{"$f":"IFERROR(ROUND((Февраль[[#This Row],[Пройдено за день, км]]*0.01*$Y$2+Февраль[[#This Row],[Расход топлива на работу спецоборудования, литр]]),3)+X8,\"\")","v":163.35},{"$f":"IF(Февраль[[#This Row],[Дата]]=\"\",\"\",IFERROR(ROUND(Февраль[[#This Row],[Расход топлива по норме, литр]]/VLOOKUP(Февраль[Дата],S$2:W$4,5),0)+Y8,))","v":0},{"$f":"IFERROR(Февраль[[#This Row],[Фактический расход топлива, литр]]-Февраль[[#This Row],[Расход топлива по норме, литр]],\"\")","v":-163.35},null,{"$f":"Февраль[[#This Row],[Дата]]","v":"2018-02-02"},null,null,null,null,null,null,null,{"$f":"Февраль[[#This Row],[Дата]]","v":"2018-02-02"}]
[{"$f":"IFERROR(DATEVALUE((COUNT($A$6:A8)+1)&$P$1&$I$4),\"\")","v":"2018-02-03"},"Шумов С.А.",{"$f":"IFERROR(IF(INDIRECT(TEXT(A8-1,\"ММММ\")&\"!A7:A37\")=\"\",\"\",IF(S8=\"\",D8,S8)),\"\")","v":0},null,{"$f":"IFERROR(Февраль[[#This Row],[Показание одометра машины на конец дня, км]]-Февраль[[#This Row],[Показание одометра машины на начало дня, км]]+T9,\"\")","v":0},{"$f":"IF(Февраль[[#This Row],[Дата]]=\"\",\"\",SUMPRODUCT([1]Февраль!$E$4:$E$153*([1]Февраль!$F$4:$F$153=$O$4)*([1]Февраль!$D$4:$D$153=Январь[[#This Row],[Дата]])))","v":{"$error":"#REF!"}},{"$f":"IF(Февраль[[#This Row],[Дата]]=\"\",\"\",M8)","v":""},{"$f":"IFERROR(IF(INDIRECT(TEXT(A8-1,\"ММММ\")&\"!A7:A37\")=\"\",\"\",IF(V8=\"\",I8,V8)),\"\")","v":29434},29441,{"$f":"IFERROR(IF(W9=\"\",Февраль[[#This Row],[Показание счетчика моточасов  спецоборудования на конец дня, м/ч]],Февраль[[#This Row],[Показание счетчика моточасов  спецоборудования на конец дня, м/ч]]+1)-Февраль[[#This Row],[Показание счетчика моточасов спецоборудования на начало дня, м/ч]],\"\")","v":7},null,{"$f":"IF(Февраль[[#This Row],[Работа спецоборудования за день, м/ч]]=\"\",\"\",Февраль[[#This Row],[Работа спецоборудования за день, м/ч]]*$Z$2)","v":127.05000000000001},{"$f":"IFERROR(IF(VLOOKUP(Февраль[Дата],S$2:U$3,3),IFERROR(IF(U9=\"\",Февраль[[#This Row],[Выдано топливо, литр]],Февраль[[#This Row],[Выдано топливо, литр]]+U9)+Февраль[[#This Row],[Остаток топлива в баке на начало дня, литр]]-Февраль[[#This Row],[Фактический расход топлива, литр]],\"\"),\"\"),\"\")","v":""},{"$f":"IFERROR(ROUND((Февраль[[#This Row],[Пройдено за день, км]]*0.01*$Y$2+Февраль[[#This Row],[Расход топлива на работу спецоборудования, литр]]),3)+X9,\"\")","v":127.05},{"$f":"IF(Февраль[[#This Row],[Дата]]=\"\",\"\",IFERROR(ROUND(Февраль[[#This Row],[Расход топлива по норме, литр]]/VLOOKUP(Февраль[Дата],S$2:W$4,5),0)+Y9,))","v":0},{"$f":"IFERROR(Февраль[[#This Row],[Фактический расход топлива, литр]]-Февраль[[#This Row],[Расход топлива по норме, литр]],\"\")","v":-127.05},null,{"$f":"Февраль[[#This Row],[Дата]]","v":"2018-02-03"},null,null,300,null,null,null,null,{"$f":"Февраль[[#This Row],[Дата]]","v":"2018-02-03"}]
[{"$f":"IFERROR(DATEVALUE((COUNT($A$6:A9)+1)&$P$1&$I$4),\"\")","v":"2018-02-04"},"Шумов С.А.",0,null,{"$f":"IFERROR(Февраль[[#This Row],[Показание одометра машины на конец дня, км]]-Февраль[[#This Row],[Показание одометра машины на начало дня, км]]+T10,\"\")","v":0},{"$f":"IF(Февраль[[#This Row],[Дата]]=\"\",\"\",SUMPRODUCT([1]Февраль!$E$4:$E$153*([1]Февраль!$F$4:$F$153=$O$4)*([1]Февраль!$D$4:$D$153=Январь[[#This Row],[Дата]])))","v":{"$error":"#REF!"}},{"$f":"IF(Февраль[[#This Row],[Дата]]=\"\",\"\",M9)","v":""},29441,29447,{"$f":"IFERROR(IF(W10=\"\",Февраль[[#This Row],[Показание счетчика моточасов  спецоборудования на конец дня, м/ч]],Февраль[[#This Row],[Показание счетчика моточасов  спецоборудования на конец дня, м/ч]]+1)-Февраль[[#This Row],[Показание счетчика моточасов спецоборудования на начало дня, м/ч]],\"\")","v":6},null,{"$f":"IF(Февраль[[#This Row],[Работа спецоборудования за день, м/ч]]=\"\",\"\",Февраль[[#This Row],[Работа спецоборудования за день, м/ч]]*$Z$2)","v":108.9},{"$f":"IFERROR(IF(VLOOKUP(Февраль[Дата],S$2:U$3,3),IFERROR(IF(U10=\"\",Февраль[[#This Row],[Выдано топливо, литр]],Февраль[[#This Row],[Выдано топливо, литр]]+U10)+Февраль[[#This Row],[Остаток топлива в баке на начало дня, литр]]-Февраль[[#This Row],[Фактический расход топлива, литр]],\"\"),\"\"),\"\")","v":""},{"$f":"IFERROR(ROUND((Февраль[[#This Row],[Пройдено за день, км]]*0.01*$Y$2+Февраль[[#This Row],[Расход топлива на работу спецоборудования, литр]]),3)+X10,\"\")","v":108.9},{"$f":"IF(Февраль[[#This Row],[Дата]]=\"\",\"\",IFERROR(ROUND(Февраль[[#This Row],[Расход топлива по норме, литр]]/VLOOKUP(Февраль[Дата],S$2:W$4,5),0)+Y10,))","v":0},{"$f":"IFERROR(Февраль[[#This Row],[Фактический расход топлива, литр]]-Февраль[[#This Row],[Расход топлива по норме, литр]],\"\")","v":-108.9},null,{"$f":"Февраль[[#This Row],[Дата]]","v":"2018-02-04"},null,null,null,null,null,null,null,{"$f":"Февраль[[#This Row],[Дата]]","v":"2018-02-04"}]
[{"$f":"IFERROR(DATEVALUE((COUNT($A$6:A10)+1)&$P$1&$I$4),\"\")","v":"2018-02-05"},"Шумов С.А.",0,null,{"$f":"IFERROR(Февраль[[#This Row],[Показание одометра машины на конец дня, км]]-Февраль[[#This Row],[Показание одометра машины на начало дня, км]]+T11,\"\")","v":0},{"$f":"IF(Февраль[[#This Row],[Дата]]=\"\",\"\",SUMPRODUCT([1]Февраль!$E$4:$E$153*([1]Февраль!$F$4:$F$153=$O$4)*([1]Февраль!$D$4:$D$153=Январь[[#This Row],[Дата]])))","v":{"$error":"#REF!"}},{"$f":"IF(Февраль[[#This Row],[Дата]]=\"\",\"\",M10)","v":""},29447,29456,{"$f":"IFERROR(IF(W11=\"\",Февраль[[#This Row],[Показание счетчика моточасов  спецоборудования на конец дня, м/ч]],Февраль[[#This Row],[Показание счетчика моточасов  спецоборудования на конец дня, м/ч]]+1)-Февраль[[#This Row],[Показание счетчика моточасов спецоборудования на начало дня, м/ч]],\"\")","v":9},null,{"$f":"IF(Февраль[[#This Row],[Работа спецоборудования за день, м/ч]]=\"\",\"\",Февраль[[#This Row],[Работа спецоборудования за день, м/ч]]*$Z$2)","v":163.35000000000002},{"$f":"IFERROR(IF(VLOOKUP(Февраль[Дата],S$2:U$3,3),IFERROR(IF(U11=\"\",Февраль[[#This Row],[Выдано топливо, литр]],Февраль[[#This Row],[Выдано топливо, литр]]+U11)+Февраль[[#This Row],[Остаток топлива в баке на начало дня, литр]]-Февраль[[#This Row],[Фактический расход топлива, литр]],\"\"),\"\"),\"\")","v":""},{"$f":"IFERROR(ROUND((Февраль[[#This Row],[Пройдено за день, км]]*0.01*$Y$2+Февраль[[#This Row],[Расход топлива на работу спецоборудования, литр]]),3)+X11,\"\")","v":163.35},{"$f":"IF(Февраль[[#This Row],[Дата]]=\"\",\"\",IFERROR(ROUND(Февраль[[#This Row],[Расход топлива по норме, литр]]/VLOOKUP(Февраль[Дата],S$2:W$4,5),0)+Y11,))","v":0},{"$f":"IFERROR(Февраль[[#This Row],[Фактический расход топлива, литр]]-Февраль[[#This Row],[Расход топлива по норме, литр]],\"\")","v":-163.35},null,{"$f":"Февраль[[#This Row],[Дата]]","v":"2018-02-05"},null,null,null,null,null,null,null,{"$f":"Февраль[[#This Row],[Дата]]","v":"2018-02-05"}]
[{"$f":"IFERROR(DATEVALUE((COUNT($A$6:A11)+1)&$P$1&$I$4),\"\")","v":"2018-02-06"},"Шумов С.А.",0,null,{"$f":"IFERROR(Февраль[[#This Row],[Показание одометра машины на конец дня, км]]-Февраль[[#This Row],[Показание одометра машины на начало дня, км]]+T12,\"\")","v":0},{"$f":"IF(Февраль[[#This Row],[Дата]]=\"\",\"\",SUMPRODUCT([1]Февраль!$E$4:$E$153*([1]Февраль!$F$4:$F$153=$O$4)*([1]Февраль!$D$4:$D$153=Январь[[#This Row],[Дата]])))","v":{"$error":"#REF!"}},{"$f":"IF(Февраль[[#This Row],[Дата]]=\"\",\"\",M11)","v":""},29456,29463,{"$f":"IFERROR(IF(W12=\"\",Февраль[[#This Row],[Показание счетчика моточасов  спецоборудования на конец дня, м/ч]],Февраль[[#This Row],[Показание счетчика моточасов  спецоборудования на конец дня, м/ч]]+1)-Февраль[[#This Row],[Показание счетчика моточасов спецоборудования на начало дня, м/ч]],\"\")","v":7},null,{"$f":"IF(Февраль[[#This Row],[Работа спецоборудования за день, м/ч]]=\"\",\"\",Февраль[[#This Row],[Работа спецоборудования за день, м/ч]]*$Z$2)","v":127.05000000000001},{"$f":"IFERROR(IF(VLOOKUP(Февраль[Дата],S$2:U$3,3),IFERROR(IF(U12=\"\",Февраль[[#This Row],[Выдано топливо, литр]],Февраль[[#This Row],[Выдано топливо, литр]]+U12)+Февраль[[#This Row],[Остаток топлива в баке на начало дня, литр]]-Февраль[[#This Row],[Фактический расход топлива, литр]],\"\"),\"\"),\"\")","v":""},{"$f":"IFERROR(ROUND((Февраль[[#This Row],[Пройдено за день, км]]*0.01*$Y$2+Февраль[[#This Row],[Расход топлива на работу спецоборудования, литр]]),3)+X12,\"\")","v":127.05},{"$f":"IF(Февраль[[#This Row],[Дата]]=\"\",\"\",IFERROR(ROUND(Февраль[[#This Row],[Расход топлива по норме, литр]]/VLOOKUP(Февраль[Дата],S$2:W$4,5),0)+Y12,))","v":0},{"$f":"IFERROR(Февраль[[#This Row],[Фактический расход топлива, литр]]-Февраль[[#This Row],[Расход топлива по норме, литр]],\"\")","v":-127.05},null,{"$f":"Февраль[[#This Row],[Дата]]","v":"2018-02-06"},null,null,270,null,null,null,null,{"$f":"Февраль[[#This Row],[Дата]]","v":"2018-02-06"}]
[{"$f":"IFERROR(DATEVALUE((COUNT($A$6:A12)+1)&$P$1&$I$4),\"\")","v":"2018-02-07"},"Шумов С.А.",0,null,{"$f":"IFERROR(Февраль[[#This Row],[Показание одометра машины на конец дня, км]]-Февраль[[#This Row],[Показание одометра машины на начало дня, км]]+T13,\"\")","v":0},{"$f":"IF(Февраль[[#This Row],[Дата]]=\"\",\"\",SUMPRODUCT([1]Февраль!$E$4:$E$153*([1]Февраль!$F$4:$F$153=$O$4)*([1]Февраль!$D$4:$D$153=Январь[[#This Row],[Дата]])))","v":{"$error":"#REF!"}},{"$f":"IF(Февраль[[#This Row],[Дата]]=\"\",\"\",M12)","v":""},29463,29475,{"$f":"IFERROR(IF(W13=\"\",Февраль[[#This Row],[Показание счетчика моточасов  спецоборудования на конец дня, м/ч]],Февраль[[#This Row],[Показание счетчика моточасов  спецоборудования на конец дня, м/ч]]+1)-Февраль[[#This Row],[Показание счетчика моточасов спецоборудования на начало дня, м/ч]],\"\")","v":12},null,{"$f":"IF(Февраль[[#This Row],[Работа спецоборудования за день, м/ч]]=\"\",\"\",Февраль[[#This Row],[Работа спецоборудования за день, м/ч]]*$Z$2)","v":217.8},{"$f":"IFERROR(IF(VLOOKUP(Февраль[Дата],S$2:U$3,3),IFERROR(IF(U13=\"\",Февраль[[#This Row],[Выдано топливо, литр]],Февраль[[#This Row],[Выдано топливо, литр]]+U13)+Февраль[[#This Row],[Остаток топлива в баке на начало дня, литр]]-Февраль[[#This Row],[Фактический расход топлива, литр]],\"\"),\"\"),\"\")","v":""},{"$f":"IFERROR(ROUND((Февраль[[#This Row],[Пройдено за день, км]]*0.01*$Y$2+Февраль[[#This Row],[Расход топлива на работу спецоборудования, литр]]),3)+X13,\"\")","v":217.8},{"$f":"IF(Февраль[[#This Row],[Дата]]=\"\",\"\",IFERROR(ROUND(Февраль[[#This Row],[Расход топлива по норме, литр]]/VLOOKUP(Февраль[Дата],S$2:W$4,5),0)+Y13,))","v":0},{"$f":"IFERROR(Февраль[[#This Row],[Фактический расход топлива, литр]]-Февраль[[#This Row],[Расход топлива по норме, литр]],\"\")","v":-217.8},null,{"$f":"Февраль[[#This Row],[Дата]]","v":"2018-02-07"},null,null,null,null,null,null,null,{"$f":"Февраль[[#This Row],[Дата]]","v":"2018-02-07"}]
[{"$f":"IFERROR(DATEVALUE((COUNT($A$6:A13)+1)&$P$1&$I$4),\"\")","v":"2018-02-08"},"Шумов С.А.",0,null,{"$f":"IFERROR(Февраль[[#This Row],[Показание одометра машины на конец дня, км]]-Февраль[[#This Row],[Показание одометра машины на начало дня, км]]+T14,\"\")","v":0},{"$f":"IF(Февраль[[#This Row],[Дата]]=\"\",\"\",SUMPRODUCT([1]Февраль!$E$4:$E$153*([1]Февраль!$F$4:$F$153=$O$4)*([1]Февраль!$D$4:$D$153=Январь[[#This Row],[Дата]])))","v":{"$error":"#REF!"}},{"$f":"IF(Февраль[[#This Row],[Дата]]=\"\",\"\",M13)","v":""},29475,29483,{"$f":"IFERROR(IF(W14=\"\",Февраль[[#This Row],[Показание счетчика моточасов  спецоборудования на конец дня, м/ч]],Февраль[[#This Row],[Показание счетчика моточасов  спецоборудования на конец дня, м/ч]]+1)-Февраль[[#This Row],[Показание счетчика моточасов спецоборудования на начало дня, м/ч]],\"\")","v":8},null,{"$f":"IF(Февраль[[#This Row],[Работа спецоборудования за день, м/ч]]=\"\",\"\",Февраль[[#This Row],[Работа спецоборудования за день, м/ч]]*$Z$2)","v":145.20000000000002},{"$f":"IFERROR(IF(VLOOKUP(Февраль[Дата],S$2:U$3,3),IFERROR(IF(U14=\"\",Февраль[[#This Row],[Выдано топливо, литр]],Февраль[[#This Row],[Выдано топливо, литр]]+U14)+Февраль[[#This Row],[Остаток топлива в баке на начало дня, литр]]-Февраль[[#This Row],[Фактический расход топлива, литр]],\"\"),\"\"),\"\")","v":""},{"$f":"IFERROR(ROUND((Февраль[[#This Row],[Пройдено за день, км]]*0.01*$Y$2+Февраль[[#This Row],[Расход топлива на работу спецоборудования, литр]]),3)+X14,\"\")","v":145.19999999999999},{"$f":"IF(Февраль[[#This Row],[Дата]]=\"\",\"\",IFERROR(ROUND(Февраль[[#This Row],[Расход топлива по норме, литр]]/VLOOKUP(Февраль[Дата],S$2:W$4,5),0)+Y14,))","v":0},{"$f":"IFERROR(Февраль[[#This Row],[Фактический расход топлива, литр]]-Февраль[[#This Row],[Расход топлива по норме, литр]],\"\")","v":-145.19999999999999},null,{"$f":"Февраль[[#This Row],[Дата]]","v":"2018-02-08"},null,null,null,null,null,null,null,{"$f":"Февраль[[#This Row],[Дата]]","v":"2018-02-08"}]
[{"$f":"IFERROR(DATEVALUE((COUNT($A$6:A14)+1)&$P$1&$I$4),\"\")","v":"2018-02-09"},"Шумов С.А.",0,null,{"$f":"IFERROR(Февраль[[#This Row],[Показание одометра машины на конец дня, км]]-Февраль[[#This Row],[Показание одометра машины на начало дня, км]]+T15,\"\")","v":0},{"$f":"IF(Февраль[[#This Row],[Дата]]=\"\",\"\",SUMPRODUCT([1]Февраль!$E$4:$E$153*([1]Февраль!$F$4:$F$153=$O$4)*([1]Февраль!$D$4:$D$153=Январь[[#This Row],[Дата]])))","v":{"$error":"#REF!"}},{"$f":"IF(Февраль[[#This Row],[Дата]]=\"\",\"\",M14)","v":""},29483,29488,{"$f":"IFERROR(IF(W15=\"\",Февраль[[#This Row],[Показание счетчика моточасов  спецоборудования на конец дня, м/ч]],Февраль[[#This Row],[Показание счетчика моточасов  спецоборудования на конец дня, м/ч]]+1)-Февраль[[#This Row],[Показание счетчика моточасов спецоборудования на начало дня, м/ч]],\"\")","v":5},null,{"$f":"IF(Февраль[[#This Row],[Работа спецоборудования за день, м/ч]]=\"\",\"\",Февраль[[#This Row],[Работа спецоборудования за день, м/ч]]*$Z$2)","v":90.750000000000014},{"$f":"IFERROR(IF(VLOOKUP(Февраль[Дата],S$2:U$3,3),IFERROR(IF(U15=\"\",Февраль[[#This Row],[Выдано топливо, литр]],Февраль[[#This Row],[Выдано топливо, литр]]+U15)+Февраль[[#This Row],[Остаток топлива в баке на начало дня, литр]]-Февраль[[#This Row],[Фактический расход топлива, литр]],\"\"),\"\"),\"\")","v":""},{"$f":"IFERROR(ROUND((Февраль[[#This Row],[Пройдено за день, км]]*0.01*$Y$2+Февраль[[#This Row],[Расход топлива на работу спецоборудования, литр]]),3)+X15,\"\")","v":90.75},{"$f":"IF(Февраль[[#This Row],[Дата]]=\"\",\"\",IFERROR(ROUND(Февраль[[#This Row],[Расход топлива по норме, литр]]/VLOOKUP(Февраль[Дата],S$2:W$4,5),0)+Y15,))","v":0},{"$f":"IFERROR(Февраль[[#This Row],[Фактический расход топлива, литр]]-Февраль[[#This Row],[Расход топлива по норме, литр]],\"\")","v":-90.75},null,{"$f":"Февраль[[#This Row],[Дата]]","v":"2018-02-09"},null,null,null,null,null,null,null,{"$f":"Февраль[[#This Row],[Дата]]","v":"2018-02-09"}]
[{"$f":"IFERROR(DATEVALUE((COUNT($A$6:A15)+1)&$P$1&$I$4),\"\")","v":"2018-02-10"},"Шумов С.А.",0,null,{"$f":"IFERROR(Февраль[[#This Row],[Показание одометра машины на конец дня, км]]-Февраль[[#This Row],[Показание одометра машины на начало дня, км]]+T16,\"\")","v":0},{"$f":"IF(Февраль[[#This Row],[Дата]]=\"\",\"\",SUMPRODUCT([1]Февраль!$E$4:$E$153*([1]Февраль!$F$4:$F$153=$O$4)*([1]Февраль!$D$4:$D$153=Январь[[#This Row],[Дата]])))","v":{"$error":"#REF!"}},{"$f":"IF(Февраль[[#This Row],[Дата]]=\"\",\"\",M15)","v":""},29488,29496,{"$f":"IFERROR(IF(W16=\"\",Февраль[[#This Row],[Показание счетчика моточасов  спецоборудования на конец дня, м/ч]],Февраль[[#This Row],[Показание счетчика моточасов  спецоборудования на конец дня, м/ч]]+1)-Февраль[[#This Row],[Показание счетчика моточасов спецоборудования на начало дня, м/ч]],\"\")","v":8},null,{"$f":"IF(Февраль[[#This Row],[Работа спецоборудования за день, м/ч]]=\"\",\"\",Февраль[[#This Row],[Работа спецоборудования за день, м/ч]]*$Z$2)","v":145.20000000000002},{"$f":"IFERROR(IF(VLOOKUP(Февраль[Дата],S$2:U$3,3),IFERROR(IF(U16=\"\",Февраль[[#This Row],[Выдано топливо, литр]],Февраль[[#This Row],[Выдано топливо, литр]]+U16)+Февраль[[#This Row],[Остаток топлива в баке на начало дня, литр]]-Февраль[[#This Row],[Фактический расход топлива, литр]],\"\"),\"\"),\"\")","v":""},{"$f":"IFERROR(ROUND((Февраль[[#This Row],[Пройдено за день, км]]*0.01*$Y$2+Февраль[[#This Row],[Расход топлива на работу спецоборудования, литр]]),3)+X16,\"\")","v":145.19999999999999},{"$f":"IF(Февраль[[#This Row],[Дата]]=\"\",\"\",IFERROR(ROUND(Февраль[[#This Row],[Расход топлива по норме, литр]]/VLOOKUP(Февраль[Дата],S$2:W$4,5),0)+Y16,))","v":0},{"$f":"IFERROR(Февраль[[#This Row],[Фактический расход топлива, литр]]-Февраль[[#This Row],[Расход топлива по норме, литр]],\"\")","v":-145.19999999999999},null,{"$f":"Февраль[[#This Row],[Дата]]","v":"2018-02-10"},null,null,150,null,null,null,null,{"$f":"Февраль[[#This Row],[Дата]]","v":"2018-02-10"}]
[{"$f":"IFERROR(DATEVALUE((COUNT($A$6:A16)+1)&$P$1&$I$4),\"\")","v":"2018-02-11"},"Шумов С.А.",0,null,{"$f":"IFERROR(Февраль[[#This Row],[Показание одометра машины на конец дня, км]]-Февраль[[#This Row],[Показание одометра машины на начало дня, км]]+T17,\"\")","v":0},{"$f":"IF(Февраль[[#This Row],[Дата]]=\"\",\"\",SUMPRODUCT([1]Февраль!$E$4:$E$153*([1]Февраль!$F$4:$F$153=$O$4)*([1]Февраль!$D$4:$D$153=Январь[[#This Row],[Дата]])))","v":{"$error":"#REF!"}},{"$f":"IF(Февраль[[#This Row],[Дата]]=\"\",\"\",M16)","v":""},29496,29506,{"$f":"IFERROR(IF(W17=\"\",Февраль[[#This Row],[Показание счетчика моточасов  спецоборудования на конец дня, м/ч]],Февраль[[#This Row],[Показание счетчика моточасов  спецоборудования на конец дня, м/ч]]+1)-Февраль[[#This Row],[Показание счетчика моточасов спецоборудования на начало дня, м/ч]],\"\")","v":10},null,{"$f":"IF(Февраль[[#This Row],[Работа спецоборудования за день, м/ч]]=\"\",\"\",Февраль[[#This Row],[Работа спецоборудования за день, м/ч]]*$Z$2)","v":181.50000000000003},{"$f":"IFERROR(IF(VLOOKUP(Февраль[Дата],S$2:U$3,3),IFERROR(IF(U17=\"\",Февраль[[#This Row],[Выдано топливо, литр]],Февраль[[#This Row],[Выдано топливо, литр]]+U17)+Февраль[[#This Row],[Остаток топлива в баке на начало дня, литр]]-Февраль[[#This Row],[Фактический расход топлива, литр]],\"\"),\"\"),\"\")","v":""},{"$f":"IFERROR(ROUND((Февраль[[#This Row],[Пройдено за день, км]]*0.01*$Y$2+Февраль[[#This Row],[Расход топлива на работу спецоборудования, литр]]),3)+X17,\"\")","v":181.5},{"$f":"IF(Февраль[[#This Row],[Дата]]=\"\",\"\",IFERROR(ROUND(Февраль[[#This Row],[Расход топлива по норме, литр]]/VLOOKUP(Февраль[Дата],S$2:W$4,5),0)+Y17,))","v":0},{"$f":"IFERROR(Февраль[[#This Row],[Фактический расход топлива, литр]]-Февраль[[#This Row],[Расход топлива по норме, литр]],\"\")","v":-181.5},null,{"$f":"Февраль[[#This Row],[Дата]]","v":"2018-02-11"},null,null,190,null,null,null,null,{"$f":"Февраль[[#This Row],[Дата]]","v":"2018-02-11"}]
[{"$f":"IFERROR(DATEVALUE((COUNT($A$6:A17)+1)&$P$1&$I$4),\"\")","v":"2018-02-12"},"Шумов С.А.",0,null,{"$f":"IFERROR(Февраль[[#This Row],[Показание одометра машины на конец дня, км]]-Февраль[[#This Row],[Показание одометра машины на начало дня, км]]+T18,\"\")","v":0},{"$f":"IF(Февраль[[#This Row],[Дата]]=\"\",\"\",SUMPRODUCT([1]Февраль!$E$4:$E$153*([1]Февраль!$F$4:$F$153=$O$4)*([1]Февраль!$D$4:$D$153=Январь[[#This Row],[Дата]])))","v":{"$error":"#REF!"}},{"$f":"IF(Февраль[[#This Row],[Дата]]=\"\",\"\",M17)","v":""},29506,29511,{"$f":"IFERROR(IF(W18=\"\",Февраль[[#This Row],[Показание счетчика моточасов  спецоборудования на конец дня, м/ч]],Февраль[[#This Row],[Показание счетчика моточасов  спецоборудования на конец дня, м/ч]]+1)-Февраль[[#This Row],[Показание счетчика моточасов спецоборудования на начало дня, м/ч]],\"\")","v":5},null,{"$f":"IF(Февраль[[#This Row],[Работа спецоборудования за день, м/ч]]=\"\",\"\",Февраль[[#This Row],[Работа спецоборудования за день, м/ч]]*$Z$2)","v":90.750000000000014},{"$f":"IFERROR(IF(VLOOKUP(Февраль[Дата],S$2:U$3,3),IFERROR(IF(U18=\"\",Февраль[[#This Row],[Выдано топливо, литр]],Февраль[[#This Row],[Выдано топливо, литр]]+U18)+Февраль[[#This Row],[Остаток топлива в баке на начало дня, литр]]-Февраль[[#This Row],[Фактический расход топлива, литр]],\"\"),\"\"),\"\")","v":""},{"$f":"IFERROR(ROUND((Февраль[[#This Row],[Пройдено за день, км]]*0.01*$Y$2+Февраль[[#This Row],[Расход топлива на работу спецоборудования, литр]]),3)+X18,\"\")","v":90.75},{"$f":"IF(Февраль[[#This Row],[Дата]]=\"\",\"\",IFERROR(ROUND(Февраль[[#This Row],[Расход топлива по норме, литр]]/VLOOKUP(Февраль[Дата],S$2:W$4,5),0)+Y18,))","v":0},{"$f":"IFERROR(Февраль[[#This Row],[Фактический расход топлива, литр]]-Февраль[[#This Row],[Расход топлива по норме, литр]],\"\")","v":-90.75},null,{"$f":"Февраль[[#This Row],[Дата]]","v":"2018-02-12"},null,null,170,null,null,null,null,{"$f":"Февраль[[#This Row],[Дата]]","v":"2018-02-12"}]
[{"$f":"IFERROR(DATEVALUE((COUNT($A$6:A18)+1)&$P$1&$I$4),\"\")","v":"2018-02-13"},"Шумов С.А.",0,null,{"$f":"IFERROR(Февраль[[#This Row],[Показание одометра машины на конец дня, км]]-Февраль[[#This Row],[Показание одометра машины на начало дня, км]]+T19,\"\")","v":0},{"$f":"IF(Февраль[[#This Row],[Дата]]=\"\",\"\",SUMPRODUCT([1]Февраль!$E$4:$E$153*([1]Февраль!$F$4:$F$153=$O$4)*([1]Февраль!$D$4:$D$153=Январь[[#This Row],[Дата]])))","v":{"$error":"#REF!"}},{"$f":"IF(Февраль[[#This Row],[Дата]]=\"\",\"\",M18)","v":""},29511,29516,{"$f":"IFERROR(IF(W19=\"\",Февраль[[#This Row],[Показание счетчика моточасов  спецоборудования на конец дня, м/ч]],Февраль[[#This Row],[Показание счетчика моточасов  спецоборудования на конец дня, м/ч]]+1)-Февраль[[#This Row],[Показание счетчика моточасов спецоборудования на начало дня, м/ч]],\"\")","v":5},null,{"$f":"IF(Февраль[[#This Row],[Работа спецоборудования за день, м/ч]]=\"\",\"\",Февраль[[#This Row],[Работа спецоборудования за день, м/ч]]*$Z$2)","v":90.750000000000014},{"$f":"IFERROR(IF(VLOOKUP(Февраль[Дата],S$2:U$3,3),IFERROR(IF(U19=\"\",Февраль[[#This Row],[Выдано топливо, литр]],Февраль[[#This Row],[Выдано топливо, литр]]+U19)+Февраль[[#This Row],[Остаток топлива в баке на начало дня, литр]]-Февраль[[#This Row],[Фактический расход топлива, литр]],\"\"),\"\"),\"\")","v":""},{"$f":"IFERROR(ROUND((Февраль[[#This Row],[Пройдено за день, км]]*0.01*$Y$2+Февраль[[#This Row],[Расход топлива на работу спецоборудования, литр]]),3)+X19,\"\")","v":90.75},{"$f":"IF(Февраль[[#This Row],[Дата]]=\"\",\"\",IFERROR(ROUND(Февраль[[#This Row],[Расход топлива по норме, литр]]/VLOOKUP(Февраль[Дата],S$2:W$4,5),0)+Y19,))","v":0},{"$f":"IFERROR(Февраль[[#This Row],[Фактический расход топлива, литр]]-Февраль[[#This Row],[Расход топлива по норме, литр]],\"\")","v":-90.75},null,{"$f":"Февраль[[#This Row],[Дата]]","v":"2018-02-13"},null,null,null,null,null,null,null,{"$f":"Февраль[[#This Row],[Дата]]","v":"2018-02-13"}]
[{"$f":"IFERROR(DATEVALUE((COUNT($A$6:A19)+1)&$P$1&$I$4),\"\")","v":"2018-02-14"},"Шумов С.А.",0,null,{"$f":"IFERROR(Февраль[[#This Row],[Показание одометра машины на конец дня, км]]-Февраль[[#This Row],[Показание одометра машины на начало дня, км]]+T20,\"\")","v":0},{"$f":"IF(Февраль[[#This Row],[Дата]]=\"\",\"\",SUMPRODUCT([1]Февраль!$E$4:$E$153*([1]Февраль!$F$4:$F$153=$O$4)*([1]Февраль!$D$4:$D$153=Январь[[#This Row],[Дата]])))","v":{"$error":"#REF!"}},{"$f":"IF(Февраль[[#This Row],[Дата]]=\"\",\"\",M19)","v":""},29516,29523,{"$f":"IFERROR(IF(W20=\"\",Февраль[[#This Row],[Показание счетчика моточасов  спецоборудования на конец дня, м/ч]],Февраль[[#This Row],[Показание счетчика моточасов  спецоборудования на конец дня, м/ч]]+1)-Февраль[[#This Row],[Показание счетчика моточасов спецоборудования на начало дня, м/ч]],\"\")","v":7},null,{"$f":"IF(Февраль[[#This Row],[Работа спецоборудования за день, м/ч]]=\"\",\"\",Февраль[[#This Row],[Работа спецоборудования за день, м/ч]]*$Z$2)","v":127.05000000000001},{"$f":"IFERROR(IF(VLOOKUP(Февраль[Дата],S$2:U$3,3),IFERROR(IF(U20=\"\",Февраль[[#This Row],[Выдано топливо, литр]],Февраль[[#This Row],[Выдано топливо, литр]]+U20)+Февраль[[#This Row],[Остаток топлива в баке на начало дня, литр]]-Февраль[[#This Row],[Фактический расход топлива, литр]],\"\"),\"\"),\"\")","v":""},{"$f":"IFERROR(ROUND((Февраль[[#This Row],[Пройдено за день, км]]*0.01*$Y$2+Февраль[[#This Row],[Расход топлива на работу спецоборудования, литр]]),3)+X20,\"\")","v":127.05},{"$f":"IF(Февраль[[#This Row],[Дата]]=\"\",\"\",IFERROR(ROUND(Февраль[[#This Row],[Расход топлива по норме, литр]]/VLOOKUP(Февраль[Дата],S$2:W$4,5),0)+Y20,))","v":0},{"$f":"IFERROR(Февраль[[#This Row],[Фактический расход топлива, литр]]-Февраль[[#This Row],[Расход топлива по норме, литр]],\"\")","v":-127.05},null,{"$f":"Февраль[[#This Row],[Дата]]","v":"2018-02-14"},null,null,null,null,null,null,null,{"$f":"Февраль[[#This Row],[Дата]]","v":"2018-02-14"}]
[{"$f":"IFERROR(DATEVALUE((COUNT($A$6:A20)+1)&$P$1&$I$4),\"\")","v":"2018-02-15"},"Шумов С.А.",0,null,{"$f":"IFERROR(Февраль[[#This Row],[Показание одометра машины на конец дня, км]]-Февраль[[#This Row],[Показание одометра машины на начало дня, км]]+T21,\"\")","v":0},{"$f":"IF(Февраль[[#This Row],[Дата]]=\"\",\"\",SUMPRODUCT([1]Февраль!$E$4:$E$153*([1]Февраль!$F$4:$F$153=$O$4)*([1]Февраль!$D$4:$D$153=Январь[[#This Row],[Дата]])))","v":{"$error":"#REF!"}},{"$f":"IF(Февраль[[#This Row],[Дата]]=\"\",\"\",M20)","v":""},29523,29527,{"$f":"IFERROR(IF(W21=\"\",Февраль[[#This Row],[Показание счетчика моточасов  спецоборудования на конец дня, м/ч]],Февраль[[#This Row],[Показание счетчика моточасов  спецоборудования на конец дня, м/ч]]+1)-Февраль[[#This Row],[Показание счетчика моточасов спецоборудования на начало дня, м/ч]],\"\")","v":4},null,{"$f":"IF(Февраль[[#This Row],[Работа спецоборудования за день, м/ч]]=\"\",\"\",Февраль[[#This Row],[Работа спецоборудования за день, м/ч]]*$Z$2)","v":72.600000000000009},{"$f":"IFERROR(IF(VLOOKUP(Февраль[Дата],S$2:U$3,3),IFERROR(IF(U21=\"\",Февраль[[#This Row],[Выдано топливо, литр]],Февраль[[#This Row],[Выдано топливо, литр]]+U21)+Февраль[[#This Row],[Остаток топлива в баке на начало дня, литр]]-Февраль[[#This Row],[Фактический расход топлива, литр]],\"\"),\"\"),\"\")","v":""},{"$f":"IFERROR(ROUND((Февраль[[#This Row],[Пройдено за день, км]]*0.01*$Y$2+Февраль[[#This Row],[Расход топлива на работу спецоборудования, литр]]),3)+X21,\"\")","v":72.599999999999994},{"$f":"IF(Февраль[[#This Row],[Дата]]=\"\",\"\",IFERROR(ROUND(Февраль[[#This Row],[Расход топлива по норме, литр]]/VLOOKUP(Февраль[Дата],S$2:W$4,5),0)+Y21,))","v":0},{"$f":"IFERROR(Февраль[[#This Row],[Фактический расход топлива, литр]]-Февраль[[#This Row],[Расход топлива по норме, литр]],\"\")","v":-72.599999999999994},null,{"$f":"Февраль[[#This Row],[Дата]]","v":"2018-02-15"},null,null,null,null,null,null,-2,{"$f":"Февраль[[#This Row],[Дата]]","v":"2018-02-15"}]
[{"$f":"IFERROR(DATEVALUE((COUNT($A$6:A21)+1)&$P$1&$I$4),\"\")","v":"2018-02-16"},"Григоренко А.И.",0,null,{"$f":"IFERROR(Февраль[[#This Row],[Показание одометра машины на конец дня, км]]-Февраль[[#This Row],[Показание одометра машины на начало дня, км]]+T22,\"\")","v":0},{"$f":"IF(Февраль[[#This Row],[Дата]]=\"\",\"\",SUMPRODUCT([1]Февраль!$E$4:$E$153*([1]Февраль!$F$4:$F$153=$O$4)*([1]Февраль!$D$4:$D$153=Январь[[#This Row],[Дата]])))","v":{"$error":"#REF!"}},{"$f":"IF(Февраль[[#This Row],[Дата]]=\"\",\"\",M21)","v":""},29527,29538,{"$f":"IFERROR(IF(W22=\"\",Февраль[[#This Row],[Показание счетчика моточасов  спецоборудования на конец дня, м/ч]],Февраль[[#This Row],[Показание счетчика моточасов  спецоборудования на конец дня, м/ч]]+1)-Февраль[[#This Row],[Показание счетчика моточасов спецоборудования на начало дня, м/ч]],\"\")","v":11},null,{"$f":"IF(Февраль[[#This Row],[Работа спецоборудования за день, м/ч]]=\"\",\"\",Февраль[[#This Row],[Работа спецоборудования за день, м/ч]]*$Z$2)","v":199.65000000000003},{"$f":"IFERROR(IF(VLOOKUP(Февраль[Дата],S$2:U$3,3),IFERROR(IF(U22=\"\",Февраль[[#This Row],[Выдано топливо, литр]],Февраль[[#This Row],[Выдано топливо, литр]]+U22)+Февраль[[#This Row],[Остаток топлива в баке на начало дня, литр]]-Февраль[[#This Row],[Фактический расход топлива, литр]],\"\"),\"\"),\"\")","v":""},{"$f":"IFERROR(ROUND((Февраль[[#This Row],[Пройдено за день, км]]*0.01*$Y$2+Февраль[[#This Row],[Расход топлива на работу спецоборудования, литр]]),3)+X22,\"\")","v":199.65},{"$f":"IF(Февраль[[#This Row],[Дата]]=\"\",\"\",IFERROR(ROUND(Февраль[[#This Row],[Расход топлива по норме, литр]]/VLOOKUP(Февраль[Дата],S$2:W$4,5),0)+Y22,))","v":0},{"$f":"IFERROR(Февраль[[#This Row],[Фактический расход топлива, литр]]-Февраль[[#This Row],[Расход топлива по норме, литр]],\"\")","v":-199.65},null,{"$f":"Февраль[[#This Row],[Дата]]","v":"2018-02-16"},null,null,null,null,null,null,null,{"$f":"Февраль[[#This Row],[Дата]]","v":"2018-02-16"}]
[{"$f":"IFERROR(DATEVALUE((COUNT($A$6:A22)+1)&$P$1&$I$4),\"\")","v":"2018-02-17"},"Григоренко А.И.",0,null,{"$f":"IFERROR(Февраль[[#This Row],[Показание одометра машины на конец дня, км]]-Февраль[[#This Row],[Показание одометра машины на начало дня, км]]+T23,\"\")","v":0},{"$f":"IF(Февраль[[#This Row],[Дата]]=\"\",\"\",SUMPRODUCT([1]Февраль!$E$4:$E$153*([1]Февраль!$F$4:$F$153=$O$4)*([1]Февраль!$D$4:$D$153=Январь[[#This Row],[Дата]])))","v":{"$error":"#REF!"}},{"$f":"IF(Февраль[[#This Row],[Дата]]=\"\",\"\",M22)","v":""},29538,29548,{"$f":"IFERROR(IF(W23=\"\",Февраль[[#This Row],[Показание счетчика моточасов  спецоборудования на конец дня, м/ч]],Февраль[[#This Row],[Показание счетчика моточасов  спецоборудования на конец дня, м/ч]]+1)-Февраль[[#This Row],[Показание счетчика моточасов спецоборудования на начало дня, м/ч]],\"\")","v":10},null,{"$f":"IF(Февраль[[#This Row],[Работа спецоборудования за день, м/ч]]=\"\",\"\",Февраль[[#This Row],[Работа спецоборудования за день, м/ч]]*$Z$2)","v":181.50000000000003},{"$f":"IFERROR(IF(VLOOKUP(Февраль[Дата],S$2:U$3,3),IFERROR(IF(U23=\"\",Февраль[[#This Row],[Выдано топливо, литр]],Февраль[[#This Row],[Выдано топливо, литр]]+U23)+Февраль[[#This Row],[Остаток топлива в баке на начало дня, литр]]-Февраль[[#This Row],[Фактический расход топлива, литр]],\"\"),\"\"),\"\")","v":""},{"$f":"IFERROR(ROUND((Февраль[[#This Row],[Пройдено за день, км]]*0.01*$Y$2+Февраль[[#This Row],[Расход топлива на работу спецоборудования, литр]]),3)+X23,\"\")","v":181.5},{"$f":"IF(Февраль[[#This Row],[Дата]]=\"\",\"\",IFERROR(ROUND(Февраль[[#This Row],[Расход топлива по норме, литр]]/VLOOKUP(Февраль[Дата],S$2:W$4,5),0)+Y23,))","v":0},{"$f":"IFERROR(Февраль[[#This Row],[Фактический расход топлива, литр]]-Февраль[[#This Row],[Расход топлива по норме, литр]],\"\")","v":-181.5},null,{"$f":"Февраль[[#This Row],[Дата]]","v":"2018-02-17"},null,null,340,null,null,null,6,{"$f":"Февраль[[#This Row],[Дата]]","v":"2018-02-17"}]
[{"$f":"IFERROR(DATEVALUE((COUNT($A$6:A23)+1)&$P$1&$I$4),\"\")","v":"2018-02-18"},"Григоренко А.И.",0,null,{"$f":"IFERROR(Февраль[[#This Row],[Показание одометра машины на конец дня, км]]-Февраль[[#This Row],[Показание одометра машины на начало дня, км]]+T24,\"\")","v":0},{"$f":"IF(Февраль[[#This Row],[Дата]]=\"\",\"\",SUMPRODUCT([1]Февраль!$E$4:$E$153*([1]Февраль!$F$4:$F$153=$O$4)*([1]Февраль!$D$4:$D$153=Январь[[#This Row],[Дата]])))","v":{"$error":"#REF!"}},{"$f":"IF(Февраль[[#This Row],[Дата]]=\"\",\"\",M23)","v":""},29548,29559,{"$f":"IFERROR(IF(W24=\"\",Февраль[[#This Row],[Показание счетчика моточасов  спецоборудования на конец дня, м/ч]],Февраль[[#This Row],[Показание счетчика моточасов  спецоборудования на конец дня, м/ч]]+1)-Февраль[[#This Row],[Показание счетчика моточасов спецоборудования на начало дня, м/ч]],\"\")","v":11},null,{"$f":"IF(Февраль[[#This Row],[Работа спецоборудования за день, м/ч]]=\"\",\"\",Февраль[[#This Row],[Работа спецоборудования за день, м/ч]]*$Z$2)","v":199.65000000000003},{"$f":"IFERROR(IF(VLOOKUP(Февраль[Дата],S$2:U$3,3),IFERROR(IF(U24=\"\",Февраль[[#This Row],[Выдано топливо, литр]],Февраль[[#This Row],[Выдано топливо, литр]]+U24)+Февраль[[#This Row],[Остаток топлива в баке на начало дня, литр]]-Февраль[[#This Row],[Фактический расход топлива, литр]],\"\"),\"\"),\"\")","v":""},{"$f":"IFERROR(ROUND((Февраль[[#This Row],[Пройдено за день, км]]*0.01*$Y$2+Февраль[[#This Row],[Расход топлива на работу спецоборудования, литр]]),3)+X24,\"\")","v":199.65},{"$f":"IF(Февраль[[#This Row],[Дата]]=\"\",\"\",IFERROR(ROUND(Февраль[[#This Row],[Расход топлива по норме, литр]]/VLOOKUP(Февраль[Дата],S$2:W$4,5),0)+Y24,))","v":0},{"$f":"IFERROR(Февраль[[#This Row],[Фактический расход топлива, литр]]-Февраль[[#This Row],[Расход топлива по норме, литр]],\"\")","v":-199.65},null,{"$f":"Февраль[[#This Row],[Дата]]","v":"2018-02-18"},null,null,null,null,null,null,null,{"$f":"Февраль[[#This Row],[Дата]]","v":"2018-02-18"}]
[{"$f":"IFERROR(DATEVALUE((COUNT($A$6:A24)+1)&$P$1&$I$4),\"\")","v":"2018-02-19"},"Григоренко А.И.",0,null,{"$f":"IFERROR(Февраль[[#This Row],[Показание одометра машины на конец дня, км]]-Февраль[[#This Row],[Показание одометра машины на начало дня, км]]+T25,\"\")","v":0},{"$f":"IF(Февраль[[#This Row],[Дата]]=\"\",\"\",SUMPRODUCT([1]Февраль!$E$4:$E$153*([1]Февраль!$F$4:$F$153=$O$4)*([1]Февраль!$D$4:$D$153=Январь[[#This Row],[Дата]])))","v":{"$error":"#REF!"}},{"$f":"IF(Февраль[[#This Row],[Дата]]=\"\",\"\",M24)","v":""},29559,29561,{"$f":"IFERROR(IF(W25=\"\",Февраль[[#This Row],[Показание счетчика моточасов  спецоборудования на конец дня, м/ч]],Февраль[[#This Row],[Показание счетчика моточасов  спецоборудования на конец дня, м/ч]]+1)-Февраль[[#This Row],[Показание счетчика моточасов спецоборудования на начало дня, м/ч]],\"\")","v":2},null,{"$f":"IF(Февраль[[#This Row],[Работа спецоборудования за день, м/ч]]=\"\",\"\",Февраль[[#This Row],[Работа спецоборудования за день, м/ч]]*$Z$2)","v":36.300000000000004},{"$f":"IFERROR(IF(VLOOKUP(Февраль[Дата],S$2:U$3,3),IFERROR(IF(U25=\"\",Февраль[[#This Row],[Выдано топливо, литр]],Февраль[[#This Row],[Выдано топливо, литр]]+U25)+Февраль[[#This Row],[Остаток топлива в баке на начало дня, литр]]-Февраль[[#This Row],[Фактический расход топлива, литр]],\"\"),\"\"),\"\")","v":""},{"$f":"IFERROR(ROUND((Февраль[[#This Row],[Пройдено за день, км]]*0.01*$Y$2+Февраль[[#This Row],[Расход топлива на работу спецоборудования, литр]]),3)+X25,\"\")","v":36.299999999999997},{"$f":"IF(Февраль[[#This Row],[Дата]]=\"\",\"\",IFERROR(ROUND(Февраль[[#This Row],[Расход топлива по норме, литр]]/VLOOKUP(Февраль[Дата],S$2:W$4,5),0)+Y25,))","v":0},{"$f":"IFERROR(Февраль[[#This Row],[Фактический расход топлива, литр]]-Февраль[[#This Row],[Расход топлива по норме, литр]],\"\")","v":-36.299999999999997},null,{"$f":"Февраль[[#This Row],[Дата]]","v":"2018-02-19"},null,null,210,null,null,null,null,{"$f":"Февраль[[#This Row],[Дата]]","v":"2018-02-19"}]
[{"$f":"IFERROR(DATEVALUE((COUNT($A$6:A25)+1)&$P$1&$I$4),\"\")","v":"2018-02-20"},"Григоренко А.И.",0,null,{"$f":"IFERROR(Февраль[[#This Row],[Показание одометра машины на конец дня, км]]-Февраль[[#This Row],[Показание одометра машины на начало дня, км]]+T26,\"\")","v":0},{"$f":"IF(Февраль[[#This Row],[Дата]]=\"\",\"\",SUMPRODUCT([1]Февраль!$E$4:$E$153*([1]Февраль!$F$4:$F$153=$O$4)*([1]Февраль!$D$4:$D$153=Январь[[#This Row],[Дата]])))","v":{"$error":"#REF!"}},{"$f":"IF(Февраль[[#This Row],[Дата]]=\"\",\"\",M25)","v":""},29561,29561,{"$f":"IFERROR(IF(W26=\"\",Февраль[[#This Row],[Показание счетчика моточасов  спецоборудования на конец дня, м/ч]],Февраль[[#This Row],[Показание счетчика моточасов  спецоборудования на конец дня, м/ч]]+1)-Февраль[[#This Row],[Показание счетчика моточасов спецоборудования на начало дня, м/ч]],\"\")","v":0},null,{"$f":"IF(Февраль[[#This Row],[Работа спецоборудования за день, м/ч]]=\"\",\"\",Февраль[[#This Row],[Работа спецоборудования за день, м/ч]]*$Z$2)","v":0},{"$f":"IFERROR(IF(VLOOKUP(Февраль[Дата],S$2:U$3,3),IFERROR(IF(U26=\"\",Февраль[[#This Row],[Выдано топливо, литр]],Февраль[[#This Row],[Выдано топливо, литр]]+U26)+Февраль[[#This Row],[Остаток топлива в баке на начало дня, литр]]-Февраль[[#This Row],[Фактический расход топлива, литр]],\"\"),\"\"),\"\")","v":""},{"$f":"IFERROR(ROUND((Февраль[[#This Row],[Пройдено за день, км]]*0.01*$Y$2+Февраль[[#This Row],[Расход топлива на работу спецоборудования, литр]]),3)+X26,\"\")","v":0},{"$f":"IF(Февраль[[#This Row],[Дата]]=\"\",\"\",IFERROR(ROUND(Февраль[[#This Row],[Расход топлива по норме, литр]]/VLOOKUP(Февраль[Дата],S$2:W$4,5),0)+Y26,))","v":0},{"$f":"IFERROR(Февраль[[#This Row],[Фактический расход топлива, литр]]-Февраль[[#This Row],[Расход топлива по норме, литр]],\"\")","v":0},null,{"$f":"Февраль[[#This Row],[Дата]]","v":"2018-02-20"},null,null,null,null,null,null,null,{"$f":"Февраль[[#This Row],[Дата]]","v":"2018-02-20"}]
[{"$f":"IFERROR(DATEVALUE((COUNT($A$6:A26)+1)&$P$1&$I$4),\"\")","v":"2018-02-21"},"Григоренко А.И.",0,null,{"$f":"IFERROR(Февраль[[#This Row],[Показание одометра машины на конец дня, км]]-Февраль[[#This Row],[Показание одометра машины на начало дня, км]]+T27,\"\")","v":0},{"$f":"IF(Февраль[[#This Row],[Дата]]=\"\",\"\",SUMPRODUCT([1]Февраль!$E$4:$E$153*([1]Февраль!$F$4:$F$153=$O$4)*([1]Февраль!$D$4:$D$153=Январь[[#This Row],[Дата]])))","v":{"$error":"#REF!"}},{"$f":"IF(Февраль[[#This Row],[Дата]]=\"\",\"\",M26)","v":""},29561,29570,{"$f":"IFERROR(IF(W27=\"\",Февраль[[#This Row],[Показание счетчика моточасов  спецоборудования на конец дня, м/ч]],Февраль[[#This Row],[Показание счетчика моточасов  спецоборудования на конец дня, м/ч]]+1)-Февраль[[#This Row],[Показание счетчика моточасов спецоборудования на начало дня, м/ч]],\"\")","v":9},null,{"$f":"IF(Февраль[[#This Row],[Работа спецоборудования за день, м/ч]]=\"\",\"\",Февраль[[#This Row],[Работа спецоборудования за день, м/ч]]*$Z$2)","v":163.35000000000002},{"$f":"IFERROR(IF(VLOOKUP(Февраль[Дата],S$2:U$3,3),IFERROR(IF(U27=\"\",Февраль[[#This Row],[Выдано топливо, литр]],Февраль[[#This Row],[Выдано топливо, литр]]+U27)+Февраль[[#This Row],[Остаток топлива в баке на начало дня, литр]]-Февраль[[#This Row],[Фактический расход топлива, литр]],\"\"),\"\"),\"\")","v":""},{"$f":"IFERROR(ROUND((Февраль[[#This Row],[Пройдено за день, км]]*0.01*$Y$2+Февраль[[#This Row],[Расход топлива на работу спецоборудования, литр]]),3)+X27,\"\")","v":163.35},{"$f":"IF(Февраль[[#This Row],[Дата]]=\"\",\"\",IFERROR(ROUND(Февраль[[#This Row],[Расход топлива по норме, литр]]/VLOOKUP(Февраль[Дата],S$2:W$4,5),0)+Y27,))","v":0},{"$f":"IFERROR(Февраль[[#This Row],[Фактический расход топлива, литр]]-Февраль[[#This Row],[Расход топлива по норме, литр]],\"\")","v":-163.35},null,{"$f":"Февраль[[#This Row],[Дата]]","v":"2018-02-21"},null,null,null,null,null,null,null,{"$f":"Февраль[[#This Row],[Дата]]","v":"2018-02-21"}]
[{"$f":"IFERROR(DATEVALUE((COUNT($A$6:A27)+1)&$P$1&$I$4),\"\")","v":"2018-02-22"},"Григоренко А.И.",0,null,{"$f":"IFERROR(Февраль[[#This Row],[Показание одометра машины на конец дня, км]]-Февраль[[#This Row],[Показание одометра машины на начало дня, км]]+T28,\"\")","v":0},{"$f":"IF(Февраль[[#This Row],[Дата]]=\"\",\"\",SUMPRODUCT([1]Февраль!$E$4:$E$153*([1]Февраль!$F$4:$F$153=$O$4)*([1]Февраль!$D$4:$D$153=Январь[[#This Row],[Дата]])))","v":{"$error":"#REF!"}},{"$f":"IF(Февраль[[#This Row],[Дата]]=\"\",\"\",M27)","v":""},29570,29581,{"$f":"IFERROR(IF(W28=\"\",Февраль[[#This Row],[Показание счетчика моточасов  спецоборудования на конец дня, м/ч]],Февраль[[#This Row],[Показание счетчика моточасов  спецоборудования на конец дня, м/ч]]+1)-Февраль[[#This Row],[Показание счетчика моточасов спецоборудования на начало дня, м/ч]],\"\")","v":11},null,{"$f":"IF(Февраль[[#This Row],[Работа спецоборудования за день, м/ч]]=\"\",\"\",Февраль[[#This Row],[Работа спецоборудования за день, м/ч]]*$Z$2)","v":199.65000000000003},{"$f":"IFERROR(IF(VLOOKUP(Февраль[Дата],S$2:U$3,3),IFERROR(IF(U28=\"\",Февраль[[#This Row],[Выдано топливо, литр]],Февраль[[#This Row],[Выдано топливо, литр]]+U28)+Февраль[[#This Row],[Остаток топлива в баке на начало дня, литр]]-Февраль[[#This Row],[Фактический расход топлива, литр]],\"\"),\"\"),\"\")","v":""},{"$f":"IFERROR(ROUND((Февраль[[#This Row],[Пройдено за день, км]]*0.01*$Y$2+Февраль[[#This Row],[Расход топлива на работу спецоборудования, литр]]),3)+X28,\"\")","v":199.65},{"$f":"IF(Февраль[[#This Row],[Дата]]=\"\",\"\",IFERROR(ROUND(Февраль[[#This Row],[Расход топлива по норме, литр]]/VLOOKUP(Февраль[Дата],S$2:W$4,5),0)+Y28,))","v":0},{"$f":"IFERROR(Февраль[[#This Row],[Фактический расход топлива, литр]]-Февраль[[#This Row],[Расход топлива по норме, литр]],\"\")","v":-199.65},null,{"$f":"Февраль[[#This Row],[Дата]]","v":"2018-02-22"},null,null,190,null,null,null,null,{"$f":"Февраль[[#This Row],[Дата]]","v":"2018-02-22"}]
[{"$f":"IFERROR(DATEVALUE((COUNT($A$6:A28)+1)&$P$1&$I$4),\"\")","v":"2018-02-23"},"Григоренко А.И.",0,null,{"$f":"IFERROR(Февраль[[#This Row],[Показание одометра машины на конец дня, км]]-Февраль[[#This Row],[Показание одометра машины на начало дня, км]]+T29,\"\")","v":0},{"$f":"IF(Февраль[[#This Row],[Дата]]=\"\",\"\",SUMPRODUCT([1]Февраль!$E$4:$E$153*([1]Февраль!$F$4:$F$153=$O$4)*([1]Февраль!$D$4:$D$153=Январь[[#This Row],[Дата]])))","v":{"$error":"#REF!"}},{"$f":"IF(Февраль[[#This Row],[Дата]]=\"\",\"\",M28)","v":""},29581,29592,{"$f":"IFERROR(IF(W29=\"\",Февраль[[#This Row],[Показание счетчика моточасов  спецоборудования на конец дня, м/ч]],Февраль[[#This Row],[Показание счетчика моточасов  спецоборудования на конец дня, м/ч]]+1)-Февраль[[#This Row],[Показание счетчика моточасов спецоборудования на начало дня, м/ч]],\"\")","v":11},null,{"$f":"IF(Февраль[[#This Row],[Работа спецоборудования за день, м/ч]]=\"\",\"\",Февраль[[#This Row],[Работа спецоборудования за день, м/ч]]*$Z$2)","v":199.65000000000003},{"$f":"IFERROR(IF(VLOOKUP(Февраль[Дата],S$2:U$3,3),IFERROR(IF(U29=\"\",Февраль[[#This Row],[Выдано топливо, литр]],Февраль[[#This Row],[Выдано топливо, литр]]+U29)+Февраль[[#This Row],[Остаток топлива в баке на начало дня, литр]]-Февраль[[#This Row],[Фактический расход топлива, литр]],\"\"),\"\"),\"\")","v":""},{"$f":"IFERROR(ROUND((Февраль[[#This Row],[Пройдено за день, км]]*0.01*$Y$2+Февраль[[#This Row],[Расход топлива на работу спецоборудования, литр]]),3)+X29,\"\")","v":199.65},{"$f":"IF(Февраль[[#This Row],[Дата]]=\"\",\"\",IFERROR(ROUND(Февраль[[#This Row],[Расход топлива по норме, литр]]/VLOOKUP(Февраль[Дата],S$2:W$4,5),0)+Y29,))","v":0},{"$f":"IFERROR(Февраль[[#This Row],[Фактический расход топлива, литр]]-Февраль[[#This Row],[Расход топлива по норме, литр]],\"\")","v":-199.65},null,{"$f":"Февраль[[#This Row],[Дата]]","v":"2018-02-23"},null,null,null,null,null,null,null,{"$f":"Февраль[[#This Row],[Дата]]","v":"2018-02-23"}]
[{"$f":"IFERROR(DATEVALUE((COUNT($A$6:A29)+1)&$P$1&$I$4),\"\")","v":"2018-02-24"},"Григоренко А.И.",0,null,{"$f":"IFERROR(Февраль[[#This Row],[Показание одометра машины на конец дня, км]]-Февраль[[#This Row],[Показание одометра машины на начало дня, км]]+T30,\"\")","v":0},{"$f":"IF(Февраль[[#This Row],[Дата]]=\"\",\"\",SUMPRODUCT([1]Февраль!$E$4:$E$153*([1]Февраль!$F$4:$F$153=$O$4)*([1]Февраль!$D$4:$D$153=Январь[[#This Row],[Дата]])))","v":{"$error":"#REF!"}},{"$f":"IF(Февраль[[#This Row],[Дата]]=\"\",\"\",M29)","v":""},29592,29604,{"$f":"IFERROR(IF(W30=\"\",Февраль[[#This Row],[Показание счетчика моточасов  спецоборудования на конец дня, м/ч]],Февраль[[#This Row],[Показание счетчика моточасов  спецоборудования на конец дня, м/ч]]+1)-Февраль[[#This Row],[Показание счетчика моточасов спецоборудования на начало дня, м/ч]],\"\")","v":12},null,{"$f":"IF(Февраль[[#This Row],[Работа спецоборудования за день, м/ч]]=\"\",\"\",Февраль[[#This Row],[Работа спецоборудования за день, м/ч]]*$Z$2)","v":217.8},{"$f":"IFERROR(IF(VLOOKUP(Февраль[Дата],S$2:U$3,3),IFERROR(IF(U30=\"\",Февраль[[#This Row],[Выдано топливо, литр]],Февраль[[#This Row],[Выдано топливо, литр]]+U30)+Февраль[[#This Row],[Остаток топлива в баке на начало дня, литр]]-Февраль[[#This Row],[Фактический расход топлива, литр]],\"\"),\"\"),\"\")","v":""},{"$f":"IFERROR(ROUND((Февраль[[#This Row],[Пройдено за день, км]]*0.01*$Y$2+Февраль[[#This Row],[Расход топлива на работу спецоборудования, литр]]),3)+X30,\"\")","v":217.8},{"$f":"IF(Февраль[[#This Row],[Дата]]=\"\",\"\",IFERROR(ROUND(Февраль[[#This Row],[Расход топлива по норме, литр]]/VLOOKUP(Февраль[Дата],S$2:W$4,5),0)+Y30,))","v":0},{"$f":"IFERROR(Февраль[[#This Row],[Фактический расход топлива, литр]]-Февраль[[#This Row],[Расход топлива по норме, литр]],\"\")","v":-217.8},null,{"$f":"Февраль[[#This Row],[Дата]]","v":"2018-02-24"},null,null,240,null,null,null,null,{"$f":"Февраль[[#This Row],[Дата]]","v":"2018-02-24"}]
[{"$f":"IFERROR(DATEVALUE((COUNT($A$6:A30)+1)&$P$1&$I$4),\"\")","v":"2018-02-25"},"Григоренко А.И.",0,null,{"$f":"IFERROR(Февраль[[#This Row],[Показание одометра машины на конец дня, км]]-Февраль[[#This Row],[Показание одометра машины на начало дня, км]]+T31,\"\")","v":0},{"$f":"IF(Февраль[[#This Row],[Дата]]=\"\",\"\",SUMPRODUCT([1]Февраль!$E$4:$E$153*([1]Февраль!$F$4:$F$153=$O$4)*([1]Февраль!$D$4:$D$153=Январь[[#This Row],[Дата]])))","v":{"$error":"#REF!"}},{"$f":"IF(Февраль[[#This Row],[Дата]]=\"\",\"\",M30)","v":""},29604,29621,{"$f":"IFERROR(IF(W31=\"\",Февраль[[#This Row],[Показание счетчика моточасов  спецоборудования на конец дня, м/ч]],Февраль[[#This Row],[Показание счетчика моточасов  спецоборудования на конец дня, м/ч]]+1)-Февраль[[#This Row],[Показание счетчика моточасов спецоборудования на начало дня, м/ч]],\"\")","v":17},null,{"$f":"IF(Февраль[[#This Row],[Работа спецоборудования за день, м/ч]]=\"\",\"\",Февраль[[#This Row],[Работа спецоборудования за день, м/ч]]*$Z$2)","v":308.55},{"$f":"IFERROR(IF(VLOOKUP(Февраль[Дата],S$2:U$3,3),IFERROR(IF(U31=\"\",Февраль[[#This Row],[Выдано топливо, литр]],Февраль[[#This Row],[Выдано топливо, литр]]+U31)+Февраль[[#This Row],[Остаток топлива в баке на начало дня, литр]]-Февраль[[#This Row],[Фактический расход топлива, литр]],\"\"),\"\"),\"\")","v":""},{"$f":"IFERROR(ROUND((Февраль[[#This Row],[Пройдено за день, км]]*0.01*$Y$2+Февраль[[#This Row],[Расход топлива на работу спецоборудования, литр]]),3)+X31,\"\")","v":308.55},{"$f":"IF(Февраль[[#This Row],[Дата]]=\"\",\"\",IFERROR(ROUND(Февраль[[#This Row],[Расход топлива по норме, литр]]/VLOOKUP(Февраль[Дата],S$2:W$4,5),0)+Y31,))","v":0},{"$f":"IFERROR(Февраль[[#This Row],[Фактический расход топлива, литр]]-Февраль[[#This Row],[Расход топлива по норме, литр]],\"\")","v":-308.55},null,{"$f":"Февраль[[#This Row],[Дата]]","v":"2018-02-25"},null,null,230,null,null,null,null,{"$f":"Февраль[[#This Row],[Дата]]","v":"2018-02-25"}]
[{"$f":"IFERROR(DATEVALUE((COUNT($A$6:A31)+1)&$P$1&$I$4),\"\")","v":"2018-02-26"},"Григоренко А.И.",0,null,{"$f":"IFERROR(Февраль[[#This Row],[Показание одометра машины на конец дня, км]]-Февраль[[#This Row],[Показание одометра машины на начало дня, км]]+T32,\"\")","v":0},{"$f":"IF(Февраль[[#This Row],[Дата]]=\"\",\"\",SUMPRODUCT([1]Февраль!$E$4:$E$153*([1]Февраль!$F$4:$F$153=$O$4)*([1]Февраль!$D$4:$D$153=Январь[[#This Row],[Дата]])))","v":{"$error":"#REF!"}},{"$f":"IF(Февраль[[#This Row],[Дата]]=\"\",\"\",M31)","v":""},29621,29633,{"$f":"IFERROR(IF(W32=\"\",Февраль[[#This Row],[Показание счетчика моточасов  спецоборудования на конец дня, м/ч]],Февраль[[#This Row],[Показание счетчика моточасов  спецоборудования на конец дня, м/ч]]+1)-Февраль[[#This Row],[Показание счетчика моточасов спецоборудования на начало дня, м/ч]],\"\")","v":12},null,{"$f":"IF(Февраль[[#This Row],[Работа спецоборудования за день, м/ч]]=\"\",\"\",Февраль[[#This Row],[Работа спецоборудования за день, м/ч]]*$Z$2)","v":217.8},{"$f":"IFERROR(IF(VLOOKUP(Февраль[Дата],S$2:U$3,3),IFERROR(IF(U32=\"\",Февраль[[#This Row],[Выдано топливо, литр]],Февраль[[#This Row],[Выдано топливо, литр]]+U32)+Февраль[[#This Row],[Остаток топлива в баке на начало дня, литр]]-Февраль[[#This Row],[Фактический расход топлива, литр]],\"\"),\"\"),\"\")","v":""},{"$f":"IFERROR(ROUND((Февраль[[#This Row],[Пройдено за день, км]]*0.01*$Y$2+Февраль[[#This Row],[Расход топлива на работу спецоборудования, литр]]),3)+X32,\"\")","v":217.8},{"$f":"IF(Февраль[[#This Row],[Дата]]=\"\",\"\",IFERROR(ROUND(Февраль[[#This Row],[Расход топлива по норме, литр]]/VLOOKUP(Февраль[Дата],S$2:W$4,5),0)+Y32,))","v":0},{"$f":"IFERROR(Февраль[[#This Row],[Фактический расход топлива, литр]]-Февраль[[#This Row],[Расход топлива по норме, литр]],\"\")","v":-217.8},null,{"$f":"Февраль[[#This Row],[Дата]]","v":"2018-02-26"},null,null,290,null,null,null,null,{"$f":"Февраль[[#This Row],[Дата]]","v":"2018-02-26"}]
[{"$f":"IFERROR(DATEVALUE((COUNT($A$6:A32)+1)&$P$1&$I$4),\"\")","v":"2018-02-27"},"Григоренко А.И.",0,null,{"$f":"IFERROR(Февраль[[#This Row],[Показание одометра машины на конец дня, км]]-Февраль[[#This Row],[Показание одометра машины на начало дня, км]]+T33,\"\")","v":0},{"$f":"IF(Февраль[[#This Row],[Дата]]=\"\",\"\",SUMPRODUCT([1]Февраль!$E$4:$E$153*([1]Февраль!$F$4:$F$153=$O$4)*([1]Февраль!$D$4:$D$153=Январь[[#This Row],[Дата]])))","v":{"$error":"#REF!"}},{"$f":"IF(Февраль[[#This Row],[Дата]]=\"\",\"\",M32)","v":""},29633,29648,{"$f":"IFERROR(IF(W33=\"\",Февраль[[#This Row],[Показание счетчика моточасов  спецоборудования на конец дня, м/ч]],Февраль[[#This Row],[Показание счетчика моточасов  спецоборудования на конец дня, м/ч]]+1)-Февраль[[#This Row],[Показание счетчика моточасов спецоборудования на начало дня, м/ч]],\"\")","v":15},null,{"$f":"IF(Февраль[[#This Row],[Работа спецоборудования за день, м/ч]]=\"\",\"\",Февраль[[#This Row],[Работа спецоборудования за день, м/ч]]*$Z$2)","v":272.25000000000006},{"$f":"IFERROR(IF(VLOOKUP(Февраль[Дата],S$2:U$3,3),IFERROR(IF(U33=\"\",Февраль[[#This Row],[Выдано топливо, литр]],Февраль[[#This Row],[Выдано топливо, литр]]+U33)+Февраль[[#This Row],[Остаток топлива в баке на начало дня, литр]]-Февраль[[#This Row],[Фактический расход топлива, литр]],\"\"),\"\"),\"\")","v":""},{"$f":"IFERROR(ROUND((Февраль[[#This Row],[Пройдено за день, км]]*0.01*$Y$2+Февраль[[#This Row],[Расход топлива на работу спецоборудования, литр]]),3)+X33,\"\")","v":272.25},{"$f":"IF(Февраль[[#This Row],[Дата]]=\"\",\"\",IFERROR(ROUND(Февраль[[#This Row],[Расход топлива по норме, литр]]/VLOOKUP(Февраль[Дата],S$2:W$4,5),0)+Y33,))","v":0},{"$f":"IFERROR(Февраль[[#This Row],[Фактический расход топлива, литр]]-Февраль[[#This Row],[Расход топлива по норме, литр]],\"\")","v":-272.25},null,{"$f":"Февраль[[#This Row],[Дата]]","v":"2018-02-27"},null,null,210,null,null,null,null,{"$f":"Февраль[[#This Row],[Дата]]","v":"2018-02-27"}]
[{"$f":"IFERROR(DATEVALUE((COUNT($A$6:A33)+1)&$P$1&$I$4),\"\")","v":"2018-02-28"},"Григоренко А.И.",0,null,{"$f":"IFERROR(Февраль[[#This Row],[Показание одометра машины на конец дня, км]]-Февраль[[#This Row],[Показание одометра машины на начало дня, км]]+T34,\"\")","v":0},{"$f":"IF(Февраль[[#This Row],[Дата]]=\"\",\"\",SUMPRODUCT([1]Февраль!$E$4:$E$153*([1]Февраль!$F$4:$F$153=$O$4)*([1]Февраль!$D$4:$D$153=Январь[[#This Row],[Дата]])))","v":{"$error":"#REF!"}},{"$f":"IF(Февраль[[#This Row],[Дата]]=\"\",\"\",M33)","v":""},29648,29668,{"$f":"IFERROR(IF(W34=\"\",Февраль[[#This Row],[Показание счетчика моточасов  спецоборудования на конец дня, м/ч]],Февраль[[#This Row],[Показание счетчика моточасов  спецоборудования на конец дня, м/ч]]+1)-Февраль[[#This Row],[Показание счетчика моточасов спецоборудования на начало дня, м/ч]],\"\")","v":20},null,{"$f":"IF(Февраль[[#This Row],[Работа спецоборудования за день, м/ч]]=\"\",\"\",Февраль[[#This Row],[Работа спецоборудования за день, м/ч]]*$Z$2)","v":363.00000000000006},{"$f":"IFERROR(IF(VLOOKUP(Февраль[Дата],S$2:U$3,3),IFERROR(IF(U34=\"\",Февраль[[#This Row],[Выдано топливо, литр]],Февраль[[#This Row],[Выдано топливо, литр]]+U34)+Февраль[[#This Row],[Остаток топлива в баке на начало дня, литр]]-Февраль[[#This Row],[Фактический расход топлива, литр]],\"\"),\"\"),\"\")","v":""},{"$f":"IFERROR(ROUND((Февраль[[#This Row],[Пройдено за день, км]]*0.01*$Y$2+Февраль[[#This Row],[Расход топлива на работу спецоборудования, литр]]),3)+X34,\"\")","v":363},{"$f":"IF(Февраль[[#This Row],[Дата]]=\"\",\"\",IFERROR(ROUND(Февраль[[#This Row],[Расход топлива по норме, литр]]/VLOOKUP(Февраль[Дата],S$2:W$4,5),0)+Y34,))","v":0},{"$f":"IFERROR(Февраль[[#This Row],[Фактический расход топлива, литр]]-Февраль[[#This Row],[Расход топлива по норме, литр]],\"\")","v":-363},null,{"$f":"Февраль[[#This Row],[Дата]]","v":"2018-02-28"},null,null,270,null,null,null,null,{"$f":"Февраль[[#This Row],[Дата]]","v":"2018-02-28"}]
[{"$f":"IFERROR(DATEVALUE((COUNT($A$6:A34)+1)&$P$1&$I$4),\"\")","v":""},null,"",null,{"$f":"IFERROR(Февраль[[#This Row],[Показание одометра машины на конец дня, км]]-Февраль[[#This Row],[Показание одометра машины на начало дня, км]]+T35,\"\")","v":""},{"$f":"IF(Февраль[[#This Row],[Дата]]=\"\",\"\",SUMPRODUCT([1]Февраль!$E$4:$E$153*([1]Февраль!$F$4:$F$153=$O$4)*([1]Февраль!$D$4:$D$153=Январь[[#This Row],[Дата]])))","v":""},{"$f":"IF(Февраль[[#This Row],[Дата]]=\"\",\"\",M34)","v":""},"",null,{"$f":"IFERROR(IF(W35=\"\",Февраль[[#This Row],[Показание счетчика моточасов  спецоборудования на конец дня, м/ч]],Февраль[[#This Row],[Показание счетчика моточасов  спецоборудования на конец дня, м/ч]]+1)-Февраль[[#This Row],[Показание счетчика моточасов спецоборудования на начало дня, м/ч]],\"\")","v":""},null,{"$f":"IF(Февраль[[#This Row],[Работа спецоборудования за день, м/ч]]=\"\",\"\",Февраль[[#This Row],[Работа спецоборудования за день, м/ч]]*$Z$2)","v":""},{"$f":"IFERROR(IF(VLOOKUP(Февраль[Дата],S$2:U$3,3),IFERROR(IF(U35=\"\",Февраль[[#This Row],[Выдано топливо, литр]],Февраль[[#This Row],[Выдано топливо, литр]]+U35)+Февраль[[#This Row],[Остаток топлива в баке на начало дня, литр]]-Февраль[[#This Row],[Фактический расход топлива, литр]],\"\"),\"\"),\"\")","v":""},{"$f":"IFERROR(ROUND((Февраль[[#This Row],[Пройдено за день, км]]*0.01*$Y$2+Февраль[[#This Row],[Расход топлива на работу спецоборудования, литр]]),3)+X35,\"\")","v":""},{"$f":"IF(Февраль[[#This Row],[Дата]]=\"\",\"\",IFERROR(ROUND(Февраль[[#This Row],[Расход топлива по норме, литр]]/VLOOKUP(Февраль[Дата],S$2:W$4,5),0)+Y35,))","v":""},{"$f":"IFERROR(Февраль[[#This Row],[Фактический расход топлива, литр]]-Февраль[[#This Row],[Расход топлива по норме, литр]],\"\")","v":""},null,{"$f":"Февраль[[#This Row],[Дата]]","v":""},null,null,null,null,null,null,null,{"$f":"Февраль[[#This Row],[Дата]]","v":""}]
[{"$f":"IFERROR(DATEVALUE((COUNT($A$6:A35)+1)&$P$1&$I$4),\"\")","v":""},null,"",null,{"$f":"IFERROR(Февраль[[#This Row],[Показание одометра машины на конец дня, км]]-Февраль[[#This Row],[Показание одометра машины на начало дня, км]]+T36,\"\")","v":""},{"$f":"IF(Февраль[[#This Row],[Дата]]=\"\",\"\",SUMPRODUCT([1]Февраль!$E$4:$E$153*([1]Февраль!$F$4:$F$153=$O$4)*([1]Февраль!$D$4:$D$153=Январь[[#This Row],[Дата]])))","v":""},{"$f":"IF(Февраль[[#This Row],[Дата]]=\"\",\"\",M35)","v":""},"",null,{"$f":"IFERROR(IF(W36=\"\",Февраль[[#This Row],[Показание счетчика моточасов  спецоборудования на конец дня, м/ч]],Февраль[[#This Row],[Показание счетчика моточасов  спецоборудования на конец дня, м/ч]]+1)-Февраль[[#This Row],[Показание счетчика моточасов спецоборудования на начало дня, м/ч]],\"\")","v":""},null,{"$f":"IF(Февраль[[#This Row],[Работа спецоборудования за день, м/ч]]=\"\",\"\",Февраль[[#This Row],[Работа спецоборудования за день, м/ч]]*$Z$2)","v":""},{"$f":"IFERROR(IF(VLOOKUP(Февраль[Дата],S$2:U$3,3),IFERROR(IF(U36=\"\",Февраль[[#This Row],[Выдано топливо, литр]],Февраль[[#This Row],[Выдано топливо, литр]]+U36)+Февраль[[#This Row],[Остаток топлива в баке на начало дня, литр]]-Февраль[[#This Row],[Фактический расход топлива, литр]],\"\"),\"\"),\"\")","v":""},{"$f":"IFERROR(ROUND((Февраль[[#This Row],[Пройдено за день, км]]*0.01*$Y$2+Февраль[[#This Row],[Расход топлива на работу спецоборудования, литр]]),3)+X36,\"\")","v":""},{"$f":"IF(Февраль[[#This Row],[Дата]]=\"\",\"\",IFERROR(ROUND(Февраль[[#This Row],[Расход топлива по норме, литр]]/VLOOKUP(Февраль[Дата],S$2:W$4,5),0)+Y36,))","v":""},{"$f":"IFERROR(Февраль[[#This Row],[Фактический расход топлива, литр]]-Февраль[[#This Row],[Расход топлива по норме, литр]],\"\")","v":""},null,{"$f":"Февраль[[#This Row],[Дата]]","v":""},null,null,null,null,null,null,null,{"$f":"Февраль[[#This Row],[Дата]]","v":""}]
[{"$f":"IFERROR(DATEVALUE((COUNT($A$6:A36)+1)&$P$1&$I$4),\"\")","v":""},null,"",null,{"$f":"IFERROR(Февраль[[#This Row],[Показание одометра машины на конец дня, км]]-Февраль[[#This Row],[Показание одометра машины на начало дня, км]]+T37,\"\")","v":""},{"$f":"IF(Февраль[[#This Row],[Дата]]=\"\",\"\",SUMPRODUCT([1]Февраль!$E$4:$E$153*([1]Февраль!$F$4:$F$153=$O$4)*([1]Февраль!$D$4:$D$153=Январь[[#This Row],[Дата]])))","v":""},{"$f":"IF(Февраль[[#This Row],[Дата]]=\"\",\"\",M36)","v":""},"",null,{"$f":"IFERROR(IF(W37=\"\",Февраль[[#This Row],[Показание счетчика моточасов  спецоборудования на конец дня, м/ч]],Февраль[[#This Row],[Показание счетчика моточасов  спецоборудования на конец дня, м/ч]]+1)-Февраль[[#This Row],[Показание счетчика моточасов спецоборудования на начало дня, м/ч]],\"\")","v":""},null,{"$f":"IF(Февраль[[#This Row],[Работа спецоборудования за день, м/ч]]=\"\",\"\",Февраль[[#This Row],[Работа спецоборудования за день, м/ч]]*$Z$2)","v":""},{"$f":"IFERROR(IF(VLOOKUP(Февраль[Дата],S$2:U$3,3),IFERROR(IF(U37=\"\",Февраль[[#This Row],[Выдано топливо, литр]],Февраль[[#This Row],[Выдано топливо, литр]]+U37)+Февраль[[#This Row],[Остаток топлива в баке на начало дня, литр]]-Февраль[[#This Row],[Фактический расход топлива, литр]],\"\"),\"\"),\"\")","v":""},{"$f":"IFERROR(ROUND((Февраль[[#This Row],[Пройдено за день, км]]*0.01*$Y$2+Февраль[[#This Row],[Расход топлива на работу спецоборудования, литр]]),3)+X37,\"\")","v":""},{"$f":"IF(Февраль[[#This Row],[Дата]]=\"\",\"\",IFERROR(ROUND(Февраль[[#This Row],[Расход топлива по норме, литр]]/VLOOKUP(Февраль[Дата],S$2:W$4,5),0)+Y37,))","v":""},{"$f":"IFERROR(Февраль[[#This Row],[Фактический расход топлива, литр]]-Февраль[[#This Row],[Расход топлива по норме, литр]],\"\")","v":""},null,{"$f":"Февраль[[#This Row],[Дата]]","v":""},null,null,null,null,null,null,null,{"$f":"Февраль[[#This Row],[Дата]]","v":""}]
["Итог",null,null,null,{"$f":"SUBTOTAL(109,Февраль[Пройдено за день, км])","v":0},{"$f":"SUBTOTAL(109,Февраль[Выдано топливо, литр])","v":{"$error":"#REF!"}},null,null,null,{"$f":"SUBTOTAL(109,Февраль[Работа спецоборудования за день, м/ч])","v":259},{"$f":"SUBTOTAL(109,Февраль[Количество ходок])","v":0},{"$f":"SUBTOTAL(109,Февраль[Расход топлива на работу спецоборудования, литр])","v":4700.8500000000013},null,{"$f":"SUBTOTAL(109,Февраль[Расход топлива по норме, литр])","v":4700.8500000000004},{"$f":"SUBTOTAL(109,Февраль[Фактический расход топлива, литр])","v":0},{"$f":"SUBTOTAL(109,Февраль[Отклонение от нормы (Перерасход(+), экономия(-)), литр])","v":-4700.8500000000004},null,"1-я пол.",{"$f":"SUMIFS(S$7:S$37,INDIRECT(\"Февраль[Дата]\"),\">=\"&$S$2,INDIRECT(\"Февраль[Дата]\"),\"<=\"&$T$2)+IF(MONTH($T$2)<>MONTH($S$2),INDIRECT(TEXT($A$7-1,\"ММММ\")&\"!F38\")-SUM(INDIRECT(TEXT($A$7-1,\"ММММ\")&\"!V1:V2\")))","v":{"$error":"#VALUE!"}},{"$f":"SUMIFS(T$7:T$37,INDIRECT(\"Февраль[Дата]\"),\">=\"&$S$2,INDIRECT(\"Февраль[Дата]\"),\"<=\"&$T$2)+IF(MONTH($T$2)<>MONTH($S$2),INDIRECT(TEXT($A$7-1,\"ММММ\")&\"!F38\")-SUM(INDIRECT(TEXT($A$7-1,\"ММММ\")&\"!V1:V2\")))","v":{"$error":"#VALUE!"}},{"$error":"#VALUE!"},{"$error":"#VALUE!"},{"$error":"#VALUE!"},{"$error":"#VALUE!"},{"$error":"#VALUE!"},"1-я пол."]
[null,null,null,null,null,null,null,null,null,null,{"$f":"SUMIFS(K7:K37,A7:A37,\">=\"&$S$2,A7:A37,\"<=\"&$T$2)","v":0},null,null,null,null,null,null,"2-я пол.",{"$f":"SUMIFS(S$7:S$37,INDIRECT(\"Февраль[Дата]\"),\">=\"&$S$3,INDIRECT(\"Февраль[Дата]\"),\"<=\"&$T$3)+IF(MONTH($T$3)<>MONTH($S$3),INDIRECT(TEXT($A$7-1,\"ММММ\")&\"!F38\")-SUM(INDIRECT(TEXT($A$7-1,\"ММММ\")&\"!V1:V2\")))","v":0},{"$f":"SUMIFS(T$7:T$37,INDIRECT(\"Февраль[Дата]\"),\">=\"&$S$3,INDIRECT(\"Февраль[Дата]\"),\"<=\"&$T$3)+IF(MONTH($T$3)<>MONTH($S$3),INDIRECT(TEXT($A$7-1,\"ММММ\")&\"!F38\")-SUM(INDIRECT(TEXT($A$7-1,\"ММММ\")&\"!V1:V2\")))","v":0},1980,0,0,0,6,"2-я пол."]
[null,null,null,null,null,null,null,null,null,null,{"$f":"SUMIFS(K7:K37,A7:A37,\">=\"&$S$3,A7:A37,\"<=\"&$T$3)","v":0}]

{"sheet":"ТС","index":2,"n_rows":33,"n_cols":25,"rows_kept":33,"cut":false,"hidden":false,"merged":[[0,15,2,24],[2,6,2,7],[2,11,2,12]]}
[null,null,null,null,null,null,"Зима :","01.11 - 31.03",null,null,null,"Зима :","01.11 - 31.03",null,null,"Расчет максимальной нормы расхода ДТ (литр/100км)"]
[null,null,null,null,null,null,"Лето:","01.04 - 30.10",null,null,null,"Лето:","01.04 - 30.10"]
[null,null,null,null,null,null,"доп.коэфф-т к норме",null,null,null,null,"доп.коэфф-т к норме"]
["№ п/п","Номер гос.регистрации / Заводской номер","Километраж, км","Спецоборудование, м/ч","Топливо, л","Базовая норма расхода на 100 км","Зима","Лето","Итога норма а/м ЗИМА","Итога норма а/м ЛЕТО","Базовая норма расхода на 1 мото/час","\"Зима\"","\"Лето\"","Итога норма а/м \"ЗИМА\"","Итога норма а/м \"ЛЕТО\"","Норма на 100 км, литров","движение с манипулятором","Тоннаж","Литры","На движение с грузом","Тоннаж1","К-т загрузки","ИТОГ","25% за работу в городе с населением свыше 3 млн. человек","10 % за работу зимой"]
[1,"Норма 1",null,29170,350,null,10,0,{"$f":"F5*(100+G5)%","v":0},{"$f":"F5*(100+H5)%","v":0},16.5,10,0,{"$f":"K5*(100+L5)%","v":18.150000000000002},{"$f":"K5*(100+M5)%","v":16.5},32.200000000000003,{"$f":"R5*S5","v":2.9379999999999997},2.2599999999999998,1.3,{"$f":"U5*V5*S5","v":5.2},8,0.5,{"$f":"P5+Q5+T5","v":40.338000000000008},{"$f":"W5*25%+W5","v":50.422500000000014},{"$f":"W5*10%+X5","v":54.456300000000013}]
[2,"Норма 2",null,null,350,{"$f":"F5-F5*5%","v":0},10,0,{"$f":"F6*(100+G6)%","v":0},{"$f":"F6*(100+H6)%","v":0},{"$f":"K5-K5*5%","v":15.675000000000001},10,0,{"$f":"K6*(100+L6)%","v":17.242500000000003},{"$f":"K6*(100+M6)%","v":15.675000000000001},32.200000000000003,{"$f":"R6*S6","v":2.9379999999999997},2.2599999999999998,1.3,{"$f":"U6*V6*S6","v":5.2},8,0.5,{"$f":"P6+Q6+T6","v":40.338000000000008},{"$f":"W6*25%+W6","v":50.422500000000014},{"$f":"W6*10%+X6","v":54.456300000000013}]
[3,"Норма 3",null,null,350,{"$f":"F5-F5*10%","v":0},10,0,{"$f":"F7*(100+G7)%","v":0},0,{"$f":"K5-K5*10%","v":14.85},10,0,{"$f":"K7*(100+L7)%","v":16.335000000000001},{"$f":"K7*(100+M7)%","v":14.85},32.200000000000003,{"$f":"R7*S7","v":2.9379999999999997},2.2599999999999998,1.3,{"$f":"U7*V7*S7","v":5.2},8,0.5,{"$f":"P7+Q7+T7","v":40.338000000000008},{"$f":"W7*25%+W7","v":50.422500000000014},{"$f":"W7*10%+X7","v":54.456300000000013}]
[4,"Переход 1",null,null,350,null,10,0,{"$f":"F8*(100+G8)%","v":0},{"$f":"F8*(100+H8)%","v":0},5.5,10,0,{"$f":"K8*(100+L8)%","v":6.0500000000000007},{"$f":"K8*(100+M8)%","v":5.5},null,{"$f":"R8*S8","v":0},null,null,{"$f":"U8*V8*S8","v":0},null,null,{"$f":"P8+Q8+T8","v":0},{"$f":"W8*25%+W8","v":0},{"$f":"W8*10%+X8","v":0}]
[5,"Переход 2",null,null,350,{"$f":"F8-F8*5%","v":0},10,0,{"$f":"F9*(100+G9)%","v":0},{"$f":"F9*(100+H9)%","v":0},{"$f":"K8-K8*5%","v":5.2249999999999996},10,0,{"$f":"K9*(100+L9)%","v":5.7475000000000005},{"$f":"K9*(100+M9)%","v":5.2249999999999996},null,{"$f":"R9*S9","v":0},null,null,{"$f":"U9*V9*S9","v":0},null,null,{"$f":"P9+Q9+T9","v":0},{"$f":"W9*25%+W9","v":0},{"$f":"W9*10%+X9","v":0}]
[6,"Переход 3",null,null,350,{"$f":"F8-F8*10%","v":0},10,0,{"$f":"F10*(100+G10)%","v":0},0,{"$f":"K8-K8*10%","v":4.95},10,0,{"$f":"K10*(100+L10)%","v":5.4450000000000003},{"$f":"K10*(100+M10)%","v":4.95},null,{"$f":"R10*S10","v":0},null,null,{"$f":"U10*V10*S10","v":0},null,null,{"$f":"P10+Q10+T10","v":0},{"$f":"W10*25%+W10","v":0},{"$f":"W10*10%+X10","v":0}]
[]
[null,"Зима"]
[null,"Лето"]
[]
[null,"Январь"]
[null,"Февраль"]
[null,"Март"]
[null,"Апрель"]
[null,"Май"]
[null,"Июнь"]
[null,"Июль"]
[null,"Август"]
[null,"Сентябрь"]
[null,"Октябрь"]
[null,"Ноябрь"]
[null,"Декабрь"]
[]
[null,"Норма 1"]
[null,"Норма 2"]
[null,"Норма 3"]
[null,"Переход 1"]
[null,"Переход 2"]
[null,"Переход 3"]

{"sheet":"Сотрудники","index":3,"n_rows":16,"n_cols":2,"rows_kept":16,"cut":false,"hidden":false,"merged":[]}
[null,"Ф.И.О."]
[null,"Григоренко А.И."]
[null,"Дьяков В.М."]
[null,"Евстратов А.В."]
[null,"Зяблов А.А"]
[null,"Ильин А.Г."]
[null,"Ильин Е.Н."]
[null,"Ильичев Ю.Ф."]
[null,"Кобалян М.В."]
[null,"Лагутенко А.А."]
[null,"Малышев О.С."]
[null,"Никляев В.А."]
[null,"Сергеев Д.О."]
[null,"Фрук П.И."]
[null,"Шумов С.А."]
[null,"Ястребов Е.В."]